Authority,Department,Spending Area,Expense Type,Posting Date,Reference,Amount,Supplier
OXFORDSHIRE CC,"CHILDRENS, YOUNG PEOPLE AND FAMILIES",THAME E&A HOME,CATERING PROVISIONS,27/11/2020,9294773103,1.37,ASDA SUPERSTORE
OXFORDSHIRE CC,"CHILDRENS, YOUNG PEOPLE AND FAMILIES",KINGFISHER,CATERING,27/11/2020,9294773105,6.21,COSTA COFFEE 43036780
OXFORDSHIRE CC,"CHILDRENS, YOUNG PEOPLE AND FAMILIES","	OCCG GRANT",CATERING PROVISIONS,27/11/2020,9294773107,3.03,CO-OPERATIVE FOOD
OXFORDSHIRE CC,"CHILDRENS, YOUNG PEOPLE AND FAMILIES",THAME E&A HOME,CATERING PROVISIONS,27/11/2020,9294773117,10.85,SAINSBURYS SACAT 2096
OXFORDSHIRE CC,"CHILDRENS, YOUNG PEOPLE AND FAMILIES","	40 THE MOORS",TELEPHONE - EQUIPMENT,27/11/2020,9294773225,15.00,EE TOPUP  VESTA
OXFORDSHIRE CC,CORPORATE CORE,"MARKETING, COMMUNICATIONS & ENGAGEMENT","PUBLICITY, PROMOTIONS AND ADVERTISEMENT",27/11/2020,9294773095,20.20,SNAP  ADS
OXFORDSHIRE CC,"CHILDRENS, YOUNG PEOPLE AND FAMILIES","	SEN/ICT EQUIPMENT",PURCHASE OF IT EQUIPMENT,27/11/2020,9294773191,32.99,AMZNMKTPLACE
OXFORDSHIRE CC,"CHILDRENS, YOUNG PEOPLE AND FAMILIES","	SEN/ICT EQUIPMENT",PURCHASE OF IT EQUIPMENT,27/11/2020,9294773193,228.00,AMZNMKTPLACE
OXFORDSHIRE CC,"CHILDRENS, YOUNG PEOPLE AND FAMILIES","	LOOKED AFTER SOUTH",CATERING PROVISIONS,27/11/2020,9294773283,42.40,MYPROTEIN.COM
OXFORDSHIRE CC,"CHILDRENS, YOUNG PEOPLE AND FAMILIES",FIELDWORK UASC,"SUPPLIES, STATIONERY AND MATERIALS",27/11/2020,9294773279,42.48,AMAZON.CO.UK MY79T6EU4
OXFORDSHIRE CC,"CHILDRENS, YOUNG PEOPLE AND FAMILIES","	LOOKED AFTER SOUTH",CLOTHING AND UNIFORMS,27/11/2020,9294773285,121.53,MYPROTEIN.COM
OXFORDSHIRE CC,SOCIAL AND COMMUNITY SERVICES,"	ASSESSMENT TEAM NORT",CLOTHING AND UNIFORMS,27/11/2020,9294773215,108.45,TESCO STORES 4480
OXFORDSHIRE CC,CORPORATE CORE,,"SUPPLIES, STATIONERY AND MATERIALS",27/11/2020,9294773305,647.38,LYRECO UK LTD
OXFORDSHIRE CC,CORPORATE CORE,,"SUPPLIES, STATIONERY AND MATERIALS",27/11/2020,9294773307,-98.59,LYRECO UK LTD
OXFORDSHIRE CC,"CHILDRENS, YOUNG PEOPLE AND FAMILIES",FAMILY SOLUTIONS PLUS NON-STAFF - NORTH,MATERIALS,27/11/2020,9294772897,5.29,AMZNMKTPLACE
OXFORDSHIRE CC,SOCIAL AND COMMUNITY SERVICES,CSS WITNEY,MATERIALS,27/11/2020,9294772899,12.86,ROBERT DYAS HOLDNG LTD
OXFORDSHIRE CC,"CHILDRENS, YOUNG PEOPLE AND FAMILIES",THAME E&A HOME,MATERIALS,27/11/2020,9294772903,9.99,AMAZON.CO.UK MY6Z190E4
OXFORDSHIRE CC,"CHILDRENS, YOUNG PEOPLE AND FAMILIES",FAMILY SOLUTIONS PLUS NON-STAFF - NORTH,POSTAGE AND DELIVERY,27/11/2020,9294773007,172.00,ROYAL MAIL ONLINE SHOP
OXFORDSHIRE CC,SOCIAL AND COMMUNITY SERVICES,CICC,MATERIALS,27/11/2020,9294773009,25.41,AMZNMKTPLACE
OXFORDSHIRE CC,SOCIAL AND COMMUNITY SERVICES,"	EMERGENCY DUTY TEAM",HIRE OF ACCOMMODATION AND FACILITIES,27/11/2020,9294773015,45.50,PREMIER INN
OXFORDSHIRE CC,"CHILDRENS, YOUNG PEOPLE AND FAMILIES",THAME E&A HOME,CATERING PROVISIONS,27/11/2020,9294773101,72.40,ASDA SUPERSTORE
OXFORDSHIRE CC,"CHILDRENS, YOUNG PEOPLE AND FAMILIES","	LOOKED AFTER CITY 2",OTHER EXPENSES,27/11/2020,9294773249,20.00,CO-OP GROUP 350035
OXFORDSHIRE CC,SOCIAL AND COMMUNITY SERVICES,ADMIN SUPPORT REVIEW,MATERIALS,27/11/2020,9294773251,14.99,AMZNMKTPLACE
OXFORDSHIRE CC,"CHILDRENS, YOUNG PEOPLE AND FAMILIES",FAMILY SOLUTIONS PLUS NON-STAFF - NORTH,PAYMENTS TO TRANSPORT OPERATORS,27/11/2020,9294772975,22.00,WWW.GWR.COM
OXFORDSHIRE CC,ENTERPRISEVC,BUSINESS SYST STAFF,MATERIALS,27/11/2020,9294772977,18.39,AMZNMKTPLACE
OXFORDSHIRE CC,"CHILDRENS, YOUNG PEOPLE AND FAMILIES","	40 THE MOORS",MATERIALS,27/11/2020,9294773063,14.99,ARGOS LTD
OXFORDSHIRE CC,"CHILDRENS, YOUNG PEOPLE AND FAMILIES",UASC POST 18,OTHER TRANSPORT ARRANGEMENTS,27/11/2020,9294773075,2.30,STGCOACH/CTYLINK
OXFORDSHIRE CC,"CHILDRENS, YOUNG PEOPLE AND FAMILIES",UASC POST 18,STAFF USE OF PUBLIC TRANSPORT,27/11/2020,9294773077,13.65,TRAINLINE
OXFORDSHIRE CC,"CHILDRENS, YOUNG PEOPLE AND FAMILIES",THAME E&A HOME,CATERING PROVISIONS,27/11/2020,9294773165,20.00,B&M 515 - ABINGDON
OXFORDSHIRE CC,CORPORATE CORE,HISTORY SERVICE,MATERIALS,27/11/2020,9294773171,4.70,AMAZON.CO.UK MY3OX7EP4
OXFORDSHIRE CC,"CHILDRENS, YOUNG PEOPLE AND FAMILIES","	OCCG GRANT",OTHER EXPENSES,27/11/2020,9294773173,23.50,TESCO STORE 2994
OXFORDSHIRE CC,"CHILDRENS, YOUNG PEOPLE AND FAMILIES","	OCCG GRANT",OTHER EXPENSES,27/11/2020,9294773175,59.99,TESCO STORE 2994
OXFORDSHIRE CC,"CHILDRENS, YOUNG PEOPLE AND FAMILIES",DIDCOT MOVE-ON HOME,CATERING PROVISIONS,27/11/2020,9294772979,4.05,MOONPIG
OXFORDSHIRE CC,"CHILDRENS, YOUNG PEOPLE AND FAMILIES",DIDCOT MOVE-ON HOME,IT SOFTWARE,27/11/2020,9294772981,349.99,NINTENDO.COM
OXFORDSHIRE CC,CORPORATE CORE,"MARKETING, COMMUNICATIONS & ENGAGEMENT","PUBLICITY, PROMOTIONS AND ADVERTISEMENT",27/11/2020,9294773093,500.00,FACEBK 52GTBXJ9Z2
OXFORDSHIRE CC,"CHILDRENS, YOUNG PEOPLE AND FAMILIES",EYNSHAM,FURNITURE,27/11/2020,9294772919,10.98,AMZNMKTPLACE
OXFORDSHIRE CC,"CHILDRENS, YOUNG PEOPLE AND FAMILIES",EYNSHAM,OTHER EXPENSES,27/11/2020,9294772921,14.99,AMZNMKTPLACE
OXFORDSHIRE CC,ENVIRONMENT AND ECONOMY,"	NAT TRAILS GENERAL",MATERIALS,27/11/2020,9294772929,297.30,WWW.LSENGINEERS.CO.UK
OXFORDSHIRE CC,ENVIRONMENT AND ECONOMY,"	NAT TRAILS GENERAL",MATERIALS,27/11/2020,9294772931,15.95,AMAZON.CO.UK MY7Z82064
OXFORDSHIRE CC,ENVIRONMENT AND ECONOMY,"	NAT TRAILS GENERAL",MATERIALS,27/11/2020,9294772933,528.00,RAPID RACKING
OXFORDSHIRE CC,ENVIRONMENT AND ECONOMY,"	NAT TRAILS GENERAL",MATERIALS,27/11/2020,9294772935,17.67,AMAZON.CO.UK MY7PE50A4
OXFORDSHIRE CC,"CHILDRENS, YOUNG PEOPLE AND FAMILIES",THAME E&A HOME,CATERING PROVISIONS,27/11/2020,9294773025,18.45,MILK AND MORE
OXFORDSHIRE CC,"CHILDRENS, YOUNG PEOPLE AND FAMILIES",DIDCOT MOVE-ON HOME,CATERING PROVISIONS,27/11/2020,9294773027,14.12,SAINSBURYS 2067
OXFORDSHIRE CC,"CHILDRENS, YOUNG PEOPLE AND FAMILIES",MANAGEMENT & ADMIN,MATERIALS,27/11/2020,9294773119,26.90,AMZNMKTPLACE
OXFORDSHIRE CC,SOCIAL AND COMMUNITY SERVICES,"	VISUAL IMP. TEAM",MATERIALS,27/11/2020,9294773135,145.00,AMZNMKTPLACE AMAZON.CO
OXFORDSHIRE CC,CORPORATE CORE,OPERATIONS,EQUIPMENT,27/11/2020,9294773137,38.23,AMAZON.CO.UK MY0IA5EL4
OXFORDSHIRE CC,"CHILDRENS, YOUNG PEOPLE AND FAMILIES","	LOOKED AFTER CITY 1",MATERIALS,27/11/2020,9294772941,24.73,AMAZON.CO.UK MY39Z2064
OXFORDSHIRE CC,ENVIRONMENT AND ECONOMY,HARD FM,VEHICLES REPAIRS AND MAINTENANCE,27/11/2020,9294772943,340.03,MERITYRE SPECIALISTS
OXFORDSHIRE CC,ENVIRONMENT AND ECONOMY,HARD FM,HARDWARE AND CROCKERY,27/11/2020,9294772945,438.00,CITY PLUMBING
OXFORDSHIRE CC,ENVIRONMENT AND ECONOMY,HARD FM,HARDWARE AND CROCKERY,27/11/2020,9294772947,6.99,TOOLSTATION LTD
OXFORDSHIRE CC,ENVIRONMENT AND ECONOMY,HARD FM,HARDWARE AND CROCKERY,27/11/2020,9294772949,69.90,SCREWFIX DIRECT
OXFORDSHIRE CC,ENVIRONMENT AND ECONOMY,HARD FM,HARDWARE AND CROCKERY,27/11/2020,9294772951,49.96,SCREWFIX DIRECT
OXFORDSHIRE CC,ENVIRONMENT AND ECONOMY,HARD FM,HARDWARE AND CROCKERY,27/11/2020,9294772953,17.05,WICKES OXFORD
OXFORDSHIRE CC,"CHILDRENS, YOUNG PEOPLE AND FAMILIES","	LEAVING CARE CITY 2",CATERING PROVISIONS,27/11/2020,9294773041,16.99,TESCO STORES 4480
OXFORDSHIRE CC,"CHILDRENS, YOUNG PEOPLE AND FAMILIES",THAME E&A HOME,CATERING PROVISIONS,27/11/2020,9294773055,2.78,AL-KHIR GROCERS
OXFORDSHIRE CC,CORPORATE CORE,INCOME TEAM,PAYMENT TO GOVERNMENT DEPARTMENTS,27/11/2020,9294773057,14.00,GEN REGISTER OFFICE
OXFORDSHIRE CC,CORPORATE CORE,TRANSPORT GENERAL,HEALTH AND SAFETY EQUIPMENT,27/11/2020,9294773139,21.90,AMAZON.CO.UK MY9KS0E44
OXFORDSHIRE CC,CORPORATE CORE,,"SUPPLIES, STATIONERY AND MATERIALS",26/11/2020,9293073955,14.04,LYRECO UK LTD
OXFORDSHIRE CC,ENTERPRISEVC,,CAR LEASING - PRIVATE RENTALS,26/11/2020,9293073961,569.90,ENTERPRISE RENT-A-CAR
OXFORDSHIRE CC,ENTERPRISEVC,,CAR LEASING - PRIVATE RENTALS,26/11/2020,9293073963,542.00,ENTERPRISE RENT-A-CAR
OXFORDSHIRE CC,ENTERPRISEVC,,CAR LEASING - PRIVATE RENTALS,26/11/2020,9293073967,402.50,ENTERPRISE RENT-A-CAR
OXFORDSHIRE CC,ENTERPRISEVC,,CAR LEASING - PRIVATE RENTALS,26/11/2020,9293073969,290.90,ENTERPRISE RENT-A-CAR
OXFORDSHIRE CC,ENTERPRISEVC,,CAR LEASING - PRIVATE RENTALS,26/11/2020,9293073973,314.34,ENTERPRISE RENT-A-CAR
OXFORDSHIRE CC,ENTERPRISEVC,,CAR LEASING - PRIVATE RENTALS,26/11/2020,9293073977,314.34,ENTERPRISE RENT-A-CAR
OXFORDSHIRE CC,ENTERPRISEVC,,CAR LEASING - PRIVATE RENTALS,26/11/2020,9293073983,402.50,ENTERPRISE RENT-A-CAR
OXFORDSHIRE CC,ENTERPRISEVC,,CAR LEASING - PRIVATE RENTALS,26/11/2020,9293073979,290.90,ENTERPRISE RENT-A-CAR
OXFORDSHIRE CC,ENVIRONMENT AND ECONOMY,"	NAT TRAILS GENERAL",MATERIALS,26/11/2020,9293072923,674.38,MACHINE MART WEB
OXFORDSHIRE CC,"CHILDRENS, YOUNG PEOPLE AND FAMILIES","	LEAVING CARE CITY 2","SUPPLIES, STATIONERY AND MATERIALS",26/11/2020,9293073835,18.99,AMZNMKTPLACE
OXFORDSHIRE CC,"CHILDRENS, YOUNG PEOPLE AND FAMILIES","	LEAVING CARE CITY 2",OTHER TRANSPORT ARRANGEMENTS,26/11/2020,9293073841,7.00,GWR OXFORD SST
OXFORDSHIRE CC,ENVIRONMENT AND ECONOMY,"	NAT TRAILS GENERAL",EQUIPMENT,26/11/2020,9293072927,380.87,PLASTIC BOX WAREHOUSE
OXFORDSHIRE CC,SOCIAL AND COMMUNITY SERVICES,CSS - ABINGDON,MATERIALS,26/11/2020,9293072947,15.98,AMZNMKTPLACE
OXFORDSHIRE CC,ENVIRONMENT AND ECONOMY,HARD FM,EQUIPMENT,26/11/2020,9293072957,20.46,WILTS ELECTRICAL
OXFORDSHIRE CC,ENVIRONMENT AND ECONOMY,HARD FM,GENERAL MAINTENANCE,26/11/2020,9293072963,32.75,WOLSELEY UK
OXFORDSHIRE CC,ENVIRONMENT AND ECONOMY,HARD FM,HARDWARE AND CROCKERY,26/11/2020,9293072967,150.10,JEWSONS
OXFORDSHIRE CC,ENVIRONMENT AND ECONOMY,HARD FM,HARDWARE AND CROCKERY,26/11/2020,9293072973,35.82,CITY ELECTRICAL FA
OXFORDSHIRE CC,ENVIRONMENT AND ECONOMY,HARD FM,HARDWARE AND CROCKERY,26/11/2020,9293072979,132.34,CITY ELECTRICAL FA
OXFORDSHIRE CC,"CHILDRENS, YOUNG PEOPLE AND FAMILIES","	LEAVING CARE CITY 2","SUPPLIES, STATIONERY AND MATERIALS",26/11/2020,9293073843,37.80,AMZNMKTPLACE
OXFORDSHIRE CC,"CHILDRENS, YOUNG PEOPLE AND FAMILIES","	LOOKED AFTER CITY 2","SUPPLIES, STATIONERY AND MATERIALS",26/11/2020,9293073847,28.99,JD SPORTS INTERNET
OXFORDSHIRE CC,SOCIAL AND COMMUNITY SERVICES,"	SHARED LIVES",PURCHASE OF IT EQUIPMENT,26/11/2020,9293073867,27.99,ARGOS LTD
OXFORDSHIRE CC,ENVIRONMENT AND ECONOMY,HARD FM,HARDWARE AND CROCKERY,26/11/2020,9293072983,165.59,CITY ELECTRICAL FA
OXFORDSHIRE CC,ENVIRONMENT AND ECONOMY,HARD FM,HARDWARE AND CROCKERY,26/11/2020,9293072991,61.24,JEWSONS
OXFORDSHIRE CC,ENVIRONMENT AND ECONOMY,HARD FM,HARDWARE AND CROCKERY,26/11/2020,9293072997,63.42,JEWSONS
OXFORDSHIRE CC,ENVIRONMENT AND ECONOMY,HARD FM,HARDWARE AND CROCKERY,26/11/2020,9293073005,87.56,WICKES BANBURY
OXFORDSHIRE CC,"CHILDRENS, YOUNG PEOPLE AND FAMILIES",THAME E&A HOME,MATERIALS,26/11/2020,9293073013,65.98,SPORTSDIRECT.COM
OXFORDSHIRE CC,SOCIAL AND COMMUNITY SERVICES,CSS BICESTER,CATERING PROVISIONS,26/11/2020,9293073037,1.38,ALDI 49 775
OXFORDSHIRE CC,CORPORATE CORE,MOTOR FLEET,MOTOR IF FEES,26/11/2020,9293073897,42.00,SIDNEY H HOOPER & COMP
OXFORDSHIRE CC,CORPORATE CORE,,"SUPPLIES, STATIONERY AND MATERIALS",26/11/2020,9293073943,47.32,LYRECO UK LTD
OXFORDSHIRE CC,CORPORATE CORE,,"SUPPLIES, STATIONERY AND MATERIALS",26/11/2020,9293073947,191.18,LYRECO UK LTD
OXFORDSHIRE CC,"CHILDRENS, YOUNG PEOPLE AND FAMILIES",THAME E&A HOME,MATERIALS,26/11/2020,9293073069,7.99,AMAZON PRIME MY7MI0TC4
OXFORDSHIRE CC,SOCIAL AND COMMUNITY SERVICES,UASC 16&17,CATERING PROVISIONS,26/11/2020,9293073075,14.00,LIDL GB  BICESTER
OXFORDSHIRE CC,"CHILDRENS, YOUNG PEOPLE AND FAMILIES",EYNSHAM,CATERING PROVISIONS,26/11/2020,9293073091,4.55,ALDI STORES 775-142
OXFORDSHIRE CC,"CHILDRENS, YOUNG PEOPLE AND FAMILIES",THAME E&A HOME,CATERING PROVISIONS,26/11/2020,9293073097,25.20,SAINSBURYS 2096
OXFORDSHIRE CC,"CHILDRENS, YOUNG PEOPLE AND FAMILIES",EYNSHAM,CATERING PROVISIONS,26/11/2020,9293073087,6.25,SAINSBURYS SACAT 0600
OXFORDSHIRE CC,CORPORATE CORE,,"SUPPLIES, STATIONERY AND MATERIALS",26/11/2020,9293073951,8.00,LYRECO UK LTD
OXFORDSHIRE CC,SOCIAL AND COMMUNITY SERVICES,CSS WITNEY,MATERIALS,26/11/2020,9293073615,17.98,AMZNMKTPLACE AMAZON.CO
OXFORDSHIRE CC,SOCIAL AND COMMUNITY SERVICES,CSS WITNEY,MATERIALS,26/11/2020,9293073621,13.50,AMZNMKTPLACE AMAZON.CO
OXFORDSHIRE CC,SOCIAL AND COMMUNITY SERVICES,CSS WITNEY,MATERIALS,26/11/2020,9293073625,13.16,AMAZON.CO.UK MY4O93T24
OXFORDSHIRE CC,SOCIAL AND COMMUNITY SERVICES,CSS WITNEY,MATERIALS,26/11/2020,9293073629,13.95,AMZNMKTPLACE
OXFORDSHIRE CC,SOCIAL AND COMMUNITY SERVICES,CSS WITNEY,MATERIALS,26/11/2020,9293073635,11.67,AMZNMKTPLACE
OXFORDSHIRE CC,SOCIAL AND COMMUNITY SERVICES,CSS WITNEY,MATERIALS,26/11/2020,9293073637,8.49,AMZNMKTPLACE
OXFORDSHIRE CC,SOCIAL AND COMMUNITY SERVICES,CSS WITNEY,MATERIALS,26/11/2020,9293073641,5.50,AMZNMKTPLACE
OXFORDSHIRE CC,SOCIAL AND COMMUNITY SERVICES,CSS WANTAGE,LICENCES,26/11/2020,9293073649,157.50,TVLICENSING.CO.UK
OXFORDSHIRE CC,"CHILDRENS, YOUNG PEOPLE AND FAMILIES","	SEN/ICT EQUIPMENT",PURCHASE OF IT EQUIPMENT,26/11/2020,9293073655,9.99,AMZNMKTPLACE AMAZON.CO
OXFORDSHIRE CC,"CHILDRENS, YOUNG PEOPLE AND FAMILIES",THAME E&A HOME,MATERIALS,26/11/2020,9293072771,-39.99,ARGOS HEYFORD HILL
OXFORDSHIRE CC,SOCIAL AND COMMUNITY SERVICES,"	ASSESSMENT TEAM NORT",OTHER EXPENSES,26/11/2020,9293073735,72.99,HALFORDS 0853
OXFORDSHIRE CC,"CHILDRENS, YOUNG PEOPLE AND FAMILIES","	LOOKED AFTER SOUTH",OTHER EXPENSES,26/11/2020,9293072809,455.98,CURRYS ONLINE
OXFORDSHIRE CC,"CHILDRENS, YOUNG PEOPLE AND FAMILIES","	LOOKED AFTER SOUTH",OTHER EXPENSES,26/11/2020,9293072815,83.92,ARGOS LTD
OXFORDSHIRE CC,"CHILDRENS, YOUNG PEOPLE AND FAMILIES","	LOOKED AFTER SOUTH",OTHER EXPENSES,26/11/2020,9293072819,63.95,ARGOS LTD
OXFORDSHIRE CC,"CHILDRENS, YOUNG PEOPLE AND FAMILIES","	FAM SUPP CITY 1",MATERIALS,26/11/2020,9293073775,92.95,ARGOS LTD
OXFORDSHIRE CC,"CHILDRENS, YOUNG PEOPLE AND FAMILIES","	40 THE MOORS",TELEPHONE - EQUIPMENT,26/11/2020,9293073781,35.00,WWW.THREE.CO.UK
OXFORDSHIRE CC,"CHILDRENS, YOUNG PEOPLE AND FAMILIES",MANAGEMENT,PAYMENTS TO VOLUNTARY BODIES,26/11/2020,9293072863,204.32,WWW.CORAM.ORG.UK
OXFORDSHIRE CC,"CHILDRENS, YOUNG PEOPLE AND FAMILIES",WITNEY,CATERING PROVISIONS,26/11/2020,9293072869,33.58,SAINSBURYS SACAT 0632
OXFORDSHIRE CC,"CHILDRENS, YOUNG PEOPLE AND FAMILIES",WITNEY,CATERING PROVISIONS,26/11/2020,9293072875,3.50,SAINSBURYS SACAT 0632
OXFORDSHIRE CC,"CHILDRENS, YOUNG PEOPLE AND FAMILIES",WITNEY,CATERING PROVISIONS,26/11/2020,9293072879,27.64,CO-OP GROUP 070582
OXFORDSHIRE CC,"CHILDRENS, YOUNG PEOPLE AND FAMILIES",FAMILY SOLUTIONS PLUS NON-STAFF � SOUTH,MATERIALS,26/11/2020,9293072885,119.99,AMZNMKTPLACE
OXFORDSHIRE CC,SOCIAL AND COMMUNITY SERVICES,CSS - ABINGDON,CATERING PROVISIONS,26/11/2020,9293072893,10.00,TESCO STORES 6519
OXFORDSHIRE CC,SOCIAL AND COMMUNITY SERVICES,RESIDENTIAL STRATEGY,CATERING PROVISIONS,26/11/2020,9293073285,12.49,SAINSBURYS SACAT 0631
OXFORDSHIRE CC,SOCIAL AND COMMUNITY SERVICES,RESIDENTIAL STRATEGY,CATERING PROVISIONS,26/11/2020,9293073289,3.50,SAINSBURYS SACAT 0631
OXFORDSHIRE CC,SHARED SERVICES,COVID-19 COD,MATERIALS,26/11/2020,9293073317,7.90,EXTRA ELECTRICAL HARD
OXFORDSHIRE CC,ENTERPRISEVC,,CAR LEASING - PRIVATE RENTALS,26/11/2020,9293074117,992.62,ENTERPRISE RENT-A-CAR
OXFORDSHIRE CC,ENTERPRISEVC,,CAR LEASING - PRIVATE RENTALS,26/11/2020,9293074121,776.57,ENTERPRISE RENT-A-CAR
OXFORDSHIRE CC,ENTERPRISEVC,,CAR LEASING - PRIVATE RENTALS,26/11/2020,9293074125,159.66,ENTERPRISE RENT-A-CAR
OXFORDSHIRE CC,ENTERPRISEVC,,CAR LEASING - PRIVATE RENTALS,26/11/2020,9293074129,251.33,ENTERPRISE RENT-A-CAR
OXFORDSHIRE CC,ENTERPRISEVC,,CAR LEASING - PRIVATE RENTALS,26/11/2020,9293074149,"1,504.80",ENTERPRISE RENT-A-CAR
OXFORDSHIRE CC,ENTERPRISEVC,,CAR LEASING - PRIVATE RENTALS,26/11/2020,9293074131,962.28,ENTERPRISE RENT-A-CAR
OXFORDSHIRE CC,ENTERPRISEVC,,CAR LEASING - PRIVATE RENTALS,26/11/2020,9293074155,962.28,ENTERPRISE RENT-A-CAR
OXFORDSHIRE CC,ENTERPRISEVC,,CAR LEASING - PRIVATE RENTALS,26/11/2020,9293074135,273.60,ENTERPRISE RENT-A-CAR
OXFORDSHIRE CC,ENTERPRISEVC,,CAR LEASING - PRIVATE RENTALS,26/11/2020,9293074139,962.28,ENTERPRISE RENT-A-CAR
OXFORDSHIRE CC,ENTERPRISEVC,,CAR LEASING - PRIVATE RENTALS,26/11/2020,9293074145,962.28,ENTERPRISE RENT-A-CAR
OXFORDSHIRE CC,CORPORATE CORE,"MARKETING, COMMUNICATIONS & ENGAGEMENT",IT SOFTWARE,26/11/2020,9293073333,78.97,ADOBE STOCK
OXFORDSHIRE CC,CORPORATE CORE,"MARKETING, COMMUNICATIONS & ENGAGEMENT","PUBLICITY, PROMOTIONS AND ADVERTISEMENT",26/11/2020,9293073339,18.44,SNAP  ADS
OXFORDSHIRE CC,"CHILDRENS, YOUNG PEOPLE AND FAMILIES","	OCCG GRANT",CATERING,26/11/2020,9293073349,7.13,COSTA COFFEE 43039930
OXFORDSHIRE CC,"CHILDRENS, YOUNG PEOPLE AND FAMILIES","	OCCG GRANT",CATERING PROVISIONS,26/11/2020,9293073351,7.91,LIDL GB WITNEY
OXFORDSHIRE CC,"CHILDRENS, YOUNG PEOPLE AND FAMILIES","	LEADING THE EYFS Q&I",EDUCATIONAL AND VOCATIONAL TRAINING ,26/11/2020,9293073367,456.00,WESTMINSTER FORUM PROJ
OXFORDSHIRE CC,ENVIRONMENT AND ECONOMY,"	ROW MAINT",MATERIALS,26/11/2020,9293073375,100.25,BARLOWS OF HERMITAGE-T
OXFORDSHIRE CC,ENTERPRISEVC,,CAR LEASING - PRIVATE RENTALS,26/11/2020,9293074159,314.34,ENTERPRISE RENT-A-CAR
OXFORDSHIRE CC,ENTERPRISEVC,,CAR LEASING - PRIVATE RENTALS,26/11/2020,9293074165,802.45,ENTERPRISE RENT-A-CAR
OXFORDSHIRE CC,ENVIRONMENT AND ECONOMY,"	ROW MAINT",VEHICLE FUEL,26/11/2020,9293073379,78.01,TESCO PAY AT PUMP 2488
OXFORDSHIRE CC,CORPORATE CORE,"	LEGAL SERVICES",LEGAL COSTS,26/11/2020,9293073397,11.00,OXFORDSHIRE CC MOTO1
OXFORDSHIRE CC,"CHILDRENS, YOUNG PEOPLE AND FAMILIES","	LOOKED AFTER CITY 2",MATERIALS,26/11/2020,9293073463,39.46,AMZNMKTPLACE AMAZON.CO
OXFORDSHIRE CC,CORPORATE CORE,HISTORY SERVICE,EQUIPMENT,26/11/2020,9293073515,26.99,AMZNMKTPLACE
OXFORDSHIRE CC,SOCIAL AND COMMUNITY SERVICES,CSS WITNEY,MATERIALS,26/11/2020,9293073597,116.98,AMAZON.CO.UK MY8678TX4
OXFORDSHIRE CC,SOCIAL AND COMMUNITY SERVICES,CSS WITNEY,MATERIALS,26/11/2020,9293073601,4.99,AMZNMKTPLACE
OXFORDSHIRE CC,SOCIAL AND COMMUNITY SERVICES,CSS WITNEY,MATERIALS,26/11/2020,9293073609,43.94,AMZNMKTPLACE AMAZON.CO
OXFORDSHIRE CC,"CHILDRENS, YOUNG PEOPLE AND FAMILIES",CNTL EARLY HELP-RHIL,MATERIALS,26/11/2020,9293073115,13.32,AMZNMKTPLACE
OXFORDSHIRE CC,SOCIAL AND COMMUNITY SERVICES,CICC,MATERIALS,26/11/2020,9293073143,200.00,AMAZON.CO.UK MY7YR5T94
OXFORDSHIRE CC,"CHILDRENS, YOUNG PEOPLE AND FAMILIES","	LEAVING CARE NORTH",MATERIALS,26/11/2020,9293073147,12.99,AMZNMKTPLACE AMAZON.CO
OXFORDSHIRE CC,SOCIAL AND COMMUNITY SERVICES,CICC,MATERIALS,26/11/2020,9293073139,500.00,AMAZON.CO.UK MY1PS0TR4
OXFORDSHIRE CC,ENTERPRISEVC,,CAR LEASING - PRIVATE RENTALS,26/11/2020,9293073985,402.50,ENTERPRISE RENT-A-CAR
OXFORDSHIRE CC,ENTERPRISEVC,,CAR LEASING - PRIVATE RENTALS,26/11/2020,9293073989,290.90,ENTERPRISE RENT-A-CAR
OXFORDSHIRE CC,ENTERPRISEVC,,CAR LEASING - PRIVATE RENTALS,26/11/2020,9293073993,"1,025.70",ENTERPRISE RENT-A-CAR
OXFORDSHIRE CC,ENTERPRISEVC,,CAR LEASING - PRIVATE RENTALS,26/11/2020,9293073997,402.50,ENTERPRISE RENT-A-CAR
OXFORDSHIRE CC,ENTERPRISEVC,,CAR LEASING - PRIVATE RENTALS,26/11/2020,9293074001,770.56,ENTERPRISE RENT-A-CAR
OXFORDSHIRE CC,ENTERPRISEVC,,CAR LEASING - PRIVATE RENTALS,26/11/2020,9293074005,329.96,ENTERPRISE RENT-A-CAR
OXFORDSHIRE CC,ENTERPRISEVC,,CAR LEASING - PRIVATE RENTALS,26/11/2020,9293074011,290.90,ENTERPRISE RENT-A-CAR
OXFORDSHIRE CC,ENTERPRISEVC,,CAR LEASING - PRIVATE RENTALS,26/11/2020,9293074015,402.50,ENTERPRISE RENT-A-CAR
OXFORDSHIRE CC,ENTERPRISEVC,,CAR LEASING - PRIVATE RENTALS,26/11/2020,9293074021,390.60,ENTERPRISE RENT-A-CAR
OXFORDSHIRE CC,ENTERPRISEVC,,CAR LEASING - PRIVATE RENTALS,26/11/2020,9293074025,569.90,ENTERPRISE RENT-A-CAR
OXFORDSHIRE CC,"CHILDRENS, YOUNG PEOPLE AND FAMILIES","	LEAVING CARE NORTH",MATERIALS,26/11/2020,9293073151,254.99,CURRYS ONLINE
OXFORDSHIRE CC,"CHILDRENS, YOUNG PEOPLE AND FAMILIES","	LEAVING CARE NORTH",MATERIALS,26/11/2020,9293073159,254.99,CURRYS ONLINE
OXFORDSHIRE CC,SOCIAL AND COMMUNITY SERVICES,CSS - BANBURY,MATERIALS,26/11/2020,9293073173,12.99,AMAZON.CO.UK MY7YF9AI4
OXFORDSHIRE CC,SOCIAL AND COMMUNITY SERVICES,CSS - BANBURY,MATERIALS,26/11/2020,9293073179,9.95,AMZNMKTPLACE
OXFORDSHIRE CC,SOCIAL AND COMMUNITY SERVICES,CSS WALLINGFORD,CATERING PROVISIONS,26/11/2020,9293073181,7.20,WAITROSE 675
OXFORDSHIRE CC,ENTERPRISEVC,,CAR LEASING - PRIVATE RENTALS,26/11/2020,9293074031,290.90,ENTERPRISE RENT-A-CAR
OXFORDSHIRE CC,ENTERPRISEVC,,CAR LEASING - PRIVATE RENTALS,26/11/2020,9293074035,462.21,ENTERPRISE RENT-A-CAR
OXFORDSHIRE CC,ENTERPRISEVC,,CAR LEASING - PRIVATE RENTALS,26/11/2020,9293074039,462.21,ENTERPRISE RENT-A-CAR
OXFORDSHIRE CC,ENTERPRISEVC,,CAR LEASING - PRIVATE RENTALS,26/11/2020,9293074047,462.21,ENTERPRISE RENT-A-CAR
OXFORDSHIRE CC,ENTERPRISEVC,,CAR LEASING - PRIVATE RENTALS,26/11/2020,9293074049,462.21,ENTERPRISE RENT-A-CAR
OXFORDSHIRE CC,ENTERPRISEVC,,CAR LEASING - PRIVATE RENTALS,26/11/2020,9293074053,462.21,ENTERPRISE RENT-A-CAR
OXFORDSHIRE CC,ENTERPRISEVC,,CAR LEASING - PRIVATE RENTALS,26/11/2020,9293074057,462.21,ENTERPRISE RENT-A-CAR
OXFORDSHIRE CC,ENTERPRISEVC,,CAR LEASING - PRIVATE RENTALS,26/11/2020,9293074063,462.21,ENTERPRISE RENT-A-CAR
OXFORDSHIRE CC,ENTERPRISEVC,,CAR LEASING - PRIVATE RENTALS,26/11/2020,9293074069,88.45,ENTERPRISE RENT-A-CAR
OXFORDSHIRE CC,ENTERPRISEVC,,CAR LEASING - PRIVATE RENTALS,26/11/2020,9293074071,124.80,ENTERPRISE RENT-A-CAR
OXFORDSHIRE CC,"CHILDRENS, YOUNG PEOPLE AND FAMILIES",DIDCOT MOVE-ON HOME,CATERING PROVISIONS,26/11/2020,9293073223,29.44,SAINSBURYS 2067
OXFORDSHIRE CC,"CHILDRENS, YOUNG PEOPLE AND FAMILIES","	LEAVING CARE CITY 2",PAYMENT TO GOVERNMENT DEPARTMENTS,26/11/2020,9293073247,11.00,GEN REGISTER OFFICE
OXFORDSHIRE CC,ENTERPRISEVC,,CAR LEASING - PRIVATE RENTALS,26/11/2020,9293074075,75.43,ENTERPRISE RENT-A-CAR
OXFORDSHIRE CC,ENTERPRISEVC,,CAR LEASING - PRIVATE RENTALS,26/11/2020,9293074081,46.12,ENTERPRISE RENT-A-CAR
OXFORDSHIRE CC,ENTERPRISEVC,,CAR LEASING - PRIVATE RENTALS,26/11/2020,9293074085,78.11,ENTERPRISE RENT-A-CAR
OXFORDSHIRE CC,ENTERPRISEVC,,CAR LEASING - PRIVATE RENTALS,26/11/2020,9293074091,45.79,ENTERPRISE RENT-A-CAR
OXFORDSHIRE CC,ENTERPRISEVC,,CAR LEASING - PRIVATE RENTALS,26/11/2020,9293074093,75.43,ENTERPRISE RENT-A-CAR
OXFORDSHIRE CC,ENTERPRISEVC,,CAR LEASING - PRIVATE RENTALS,26/11/2020,9293074095,95.80,ENTERPRISE RENT-A-CAR
OXFORDSHIRE CC,ENTERPRISEVC,,CAR LEASING - PRIVATE RENTALS,26/11/2020,9293074109,281.52,ENTERPRISE RENT-A-CAR
OXFORDSHIRE CC,ENTERPRISEVC,,CAR LEASING - PRIVATE RENTALS,26/11/2020,9293074101,524.52,ENTERPRISE RENT-A-CAR
OXFORDSHIRE CC,ENTERPRISEVC,,CAR LEASING - PRIVATE RENTALS,26/11/2020,9293074111,745.70,ENTERPRISE RENT-A-CAR
OXFORDSHIRE CC,ENTERPRISEVC,,CAR LEASING - PRIVATE RENTALS,26/11/2020,9293074103,447.31,ENTERPRISE RENT-A-CAR
OXFORDSHIRE CC,ENVIRONMENT AND ECONOMY,"	COMMERCIAL MANAGEMEN",MANAGEMENT CONSULTANT FEES,26/11/2020,9293073267,228.00,WESTMINSTER FORUM PROJ
OXFORDSHIRE CC,"CHILDRENS, YOUNG PEOPLE AND FAMILIES","	HOME SUPPORT",MATERIALS,26/11/2020,9293073273,18.96,AMZNMKTPLACE
OXFORDSHIRE CC,"CHILDRENS, YOUNG PEOPLE AND FAMILIES",UASC POST 18,OTHER EXPENSES,26/11/2020,9293073309,41.99,AMAZON.CO.UK MY91H9TH4
OXFORDSHIRE CC,"CHILDRENS, YOUNG PEOPLE AND FAMILIES",FAMILY SOLUTIONS PLUS NON-STAFF � SOUTH,PURCHASE OF IT EQUIPMENT,25/11/2020,9290533509,262.00,AMZNMKTPLACE
OXFORDSHIRE CC,CORPORATE CORE,,"SUPPLIES, STATIONERY AND MATERIALS",25/11/2020,9290534559,3.56,LYRECO UK LTD
OXFORDSHIRE CC,ENTERPRISEVC,,CAR LEASING - PRIVATE RENTALS,25/11/2020,9290534567,49.16,ENTERPRISE RENT-A-CAR
OXFORDSHIRE CC,CORPORATE CORE,CATERING MANAGEMENT SOFT FM,CATERING,25/11/2020,9290534571,196.02,BRAKE BROS LTD
OXFORDSHIRE CC,"CHILDRENS, YOUNG PEOPLE AND FAMILIES",STH EARLY HELP-ABNDN,CLOTHING AND UNIFORMS,25/11/2020,9290533529,84.42,WWW.PMGSCHOOLWEAR.CO.U
OXFORDSHIRE CC,"CHILDRENS, YOUNG PEOPLE AND FAMILIES",FAMILY SOLUTIONS PLUS NON-STAFF � SOUTH,PURCHASE OF IT EQUIPMENT,25/11/2020,9290533519,262.00,AMZNMKTPLACE
OXFORDSHIRE CC,"CHILDRENS, YOUNG PEOPLE AND FAMILIES",STH EARLY HELP-ABNDN,CLOTHING AND UNIFORMS,25/11/2020,9290533535,20.45,SAINSBURY'S
OXFORDSHIRE CC,"CHILDRENS, YOUNG PEOPLE AND FAMILIES",CSC COVID-19,TELEPHONE - EQUIPMENT,25/11/2020,9290533567,10.00,VESTA   VODAFONE TOPUP
OXFORDSHIRE CC,CORPORATE CORE,LOOKED AFTER NORTH,"SUPPLIES, STATIONERY AND MATERIALS",25/11/2020,9290533627,269.99,AMZNMKTPLACE
OXFORDSHIRE CC,CORPORATE CORE,LOOKED AFTER NORTH,MATERIALS,25/11/2020,9290533635,54.33,AMZNMKTPLACE
OXFORDSHIRE CC,SOCIAL AND COMMUNITY SERVICES,"	HISTORY SERVICE","BOOKS, DVDS AND CDS",25/11/2020,9290533645,30.80,AMAZON.CO.UK MY9DL3374
OXFORDSHIRE CC,SOCIAL AND COMMUNITY SERVICES,LOOKED AFTER SOUTH,POSTAGE AND DELIVERY,25/11/2020,9290533685,6.70,POST OFFICE COUNTER
OXFORDSHIRE CC,"CHILDRENS, YOUNG PEOPLE AND FAMILIES","	RIVERSIDE CENTRE",CATERING PROVISIONS,25/11/2020,9290533715,3.45,TESCO STORES 4377
OXFORDSHIRE CC,ENVIRONMENT AND ECONOMY,HOLTON SITE,MATERIALS,25/11/2020,9290533725,42.95,AMZNMKTPLACE
OXFORDSHIRE CC,SOCIAL AND COMMUNITY SERVICES,COMMENTS&INFORMATION,POSTAGE AND DELIVERY,25/11/2020,9290533765,23.62,POST OFFICE COUNTER
OXFORDSHIRE CC,"CHILDRENS, YOUNG PEOPLE AND FAMILIES",FSP NON-STAFFING - CENTRAL,OTHER TRANSPORT ARRANGEMENTS,25/11/2020,9290533775,61.00,OXFORD BUS COMPANY
OXFORDSHIRE CC,"CHILDRENS, YOUNG PEOPLE AND FAMILIES",UASC POST 18,OTHER EXPENSES,25/11/2020,9290533791,19.98,AMZNMKTPLACE
OXFORDSHIRE CC,"CHILDRENS, YOUNG PEOPLE AND FAMILIES",UASC POST 18,OTHER EXPENSES,25/11/2020,9290533799,24.99,AMAZON.CO.UK MY5OZ43W4
OXFORDSHIRE CC,"CHILDRENS, YOUNG PEOPLE AND FAMILIES",UASC POST 18,OTHER TRANSPORT ARRANGEMENTS,25/11/2020,9290533803,6.10,OXFORD BUS COMPANY
OXFORDSHIRE CC,SOCIAL AND COMMUNITY SERVICES,LEAVING CARE NORTH,DOMESTIC SUPPLIES,25/11/2020,9290533843,55.85,WILKO RETAIL LIMITED
OXFORDSHIRE CC,CORPORATE CORE,"MARKETING, COMMUNICATIONS & ENGAGEMENT","PUBLICITY, PROMOTIONS AND ADVERTISEMENT",25/11/2020,9290533897,18.67,SNAP  ADS
OXFORDSHIRE CC,"CHILDRENS, YOUNG PEOPLE AND FAMILIES",0-5 STDS & PROGRESS,PAYMENTS TO VOLUNTARY BODIES,25/11/2020,9290533923,60.00,WP-THE BRITISH ASS
OXFORDSHIRE CC,"CHILDRENS, YOUNG PEOPLE AND FAMILIES",CNTL EARLY HELP-RHIL,MATERIALS,25/11/2020,9290533193,3.79,AMZNMKTPLACE
OXFORDSHIRE CC,CORPORATE CORE,ICT OPERATIONS & MAI,IT SERVICES,25/11/2020,9290534437,79.57,KINGSFIELD COMPUTER
OXFORDSHIRE CC,"CHILDRENS, YOUNG PEOPLE AND FAMILIES","	LOOKED AFTER CITY 2",OTHER TRANSPORT ARRANGEMENTS,25/11/2020,9290534415,135.00,IZ  ROYAL CARS OXF
OXFORDSHIRE CC,"CHILDRENS, YOUNG PEOPLE AND FAMILIES","	LOOKED AFTER CITY 2",OTHER EXPENSES,25/11/2020,9290534419,34.00,OXFORD CWLY (V4P) LTD
OXFORDSHIRE CC,"CHILDRENS, YOUNG PEOPLE AND FAMILIES","	LOOKED AFTER CITY 2",OTHER EXPENSES,25/11/2020,9290534423,139.49,OXFORD CWLY (V4P) LTD
OXFORDSHIRE CC,"CHILDRENS, YOUNG PEOPLE AND FAMILIES","	LOOKED AFTER CITY 2",OTHER EXPENSES,25/11/2020,9290534425,114.92,PETS AT HOME LTD
OXFORDSHIRE CC,"CHILDRENS, YOUNG PEOPLE AND FAMILIES","	LEAVING CARE CITY 2",OTHER EXPENSES,25/11/2020,9290534431,6.30,SAINSBURYS SACAT 0631
OXFORDSHIRE CC,SOCIAL AND COMMUNITY SERVICES,SCHOOLS FM CATERING AREA 1,MATERIALS,25/11/2020,9290533283,109.96,AMZNMKTPLACE
OXFORDSHIRE CC,"CHILDRENS, YOUNG PEOPLE AND FAMILIES",NTH EARLY HELP-BNRBY,MATERIALS,25/11/2020,9290533303,-24.96,AMZ LOCKABOXTM
OXFORDSHIRE CC,"CHILDRENS, YOUNG PEOPLE AND FAMILIES","	LEAVING CARE CITY 1",MATERIALS,25/11/2020,9290533311,110.41,THE RANGE
OXFORDSHIRE CC,"CHILDRENS, YOUNG PEOPLE AND FAMILIES",EYNSHAM,CATERING PROVISIONS,25/11/2020,9290534443,125.41,TESCO STORES 2008
OXFORDSHIRE CC,SOCIAL AND COMMUNITY SERVICES,DIDCOT MOVE-ON HOME,CATERING PROVISIONS,25/11/2020,9290533349,14.67,SAINSBURYS SACAT 2067
OXFORDSHIRE CC,"CHILDRENS, YOUNG PEOPLE AND FAMILIES","	DISABILITIES TEAM-N",PAYMENT TO GOVERNMENT DEPARTMENTS,25/11/2020,9290533359,14.00,GEN REGISTER OFFICE
OXFORDSHIRE CC,"CHILDRENS, YOUNG PEOPLE AND FAMILIES","	DISABILITIES TEAM-N",MATERIALS,25/11/2020,9290533367,249.00,AMAZON.CO.UK MY1FO5JD4
OXFORDSHIRE CC,CORPORATE CORE,LIBRARY COLLECTIONS,"BOOKS, DVDS AND CDS",25/11/2020,9290533387,267.00,BOLINDA PUBLISHING
OXFORDSHIRE CC,"CHILDRENS, YOUNG PEOPLE AND FAMILIES",THAME E&A HOME,CATERING,25/11/2020,9290534491,4.95,COSTA TEMPLAR SQUARE O
OXFORDSHIRE CC,"CHILDRENS, YOUNG PEOPLE AND FAMILIES","	LOOKED AFTER SOUTH",MATERIALS,25/11/2020,9290534493,499.95,EBAY O 07-06121-99071
OXFORDSHIRE CC,"CHILDRENS, YOUNG PEOPLE AND FAMILIES",FSP NON-STAFFING - CENTRAL,CATERING PROVISIONS,25/11/2020,9290534503,1.50,TESCO STORE 2990
OXFORDSHIRE CC,SOCIAL AND COMMUNITY SERVICES,CSS WITNEY,MATERIALS,25/11/2020,9290534249,14.99,AMAZON.CO.UK MY02W2JX4
OXFORDSHIRE CC,SOCIAL AND COMMUNITY SERVICES,CSS WANTAGE,CATERING PROVISIONS,25/11/2020,9290534253,75.22,SAINSBURYS SACAT 2244
OXFORDSHIRE CC,"CHILDRENS, YOUNG PEOPLE AND FAMILIES",ATV ADOPTION WOODLEY,MATERIALS,25/11/2020,9290532887,41.94,AMAZON.CO.UK MY93713T4
OXFORDSHIRE CC,"CHILDRENS, YOUNG PEOPLE AND FAMILIES",WITNEY,CATERING PROVISIONS,25/11/2020,9290532897,3.00,CO-OP GROUP 070582
OXFORDSHIRE CC,"CHILDRENS, YOUNG PEOPLE AND FAMILIES",FAMILY SOLUTIONS PLUS NON-STAFF � SOUTH,MATERIALS,25/11/2020,9290532905,49.99,AMZNMKTPLACE AMAZON.CO
OXFORDSHIRE CC,SOCIAL AND COMMUNITY SERVICES,CSS - ABINGDON,PRINTING,25/11/2020,9290532913,152.40,THE BRANDED COMPANY
OXFORDSHIRE CC,ENVIRONMENT AND ECONOMY,"	ROW MAINT",MATERIALS,25/11/2020,9290532937,36.00,BUXTONS LTD
OXFORDSHIRE CC,"CHILDRENS, YOUNG PEOPLE AND FAMILIES",UASC 16&17,NON-STAFF SUBSISTENCE AND EXPENSES,25/11/2020,9290532945,15.00,SMARTY CO UK
OXFORDSHIRE CC,ENVIRONMENT AND ECONOMY,"	ROW MAINT",EQUIPMENT,25/11/2020,9290534297,419.31,BUXTONS WEBORDER
OXFORDSHIRE CC,"CHILDRENS, YOUNG PEOPLE AND FAMILIES",UASC 16&17,OTHER TRANSPORT ARRANGEMENTS,25/11/2020,9290532983,45.75,WWW.THEKEY.CO.UK
OXFORDSHIRE CC,SOCIAL AND COMMUNITY SERVICES,CSS - ABINGDON,MATERIALS,25/11/2020,9290532997,12.99,AMZNMKTPLACE
OXFORDSHIRE CC,SOCIAL AND COMMUNITY SERVICES,CSS - ABINGDON,MATERIALS,25/11/2020,9290533003,16.64,AMZNMKTPLACE
OXFORDSHIRE CC,ENVIRONMENT AND ECONOMY,HARD FM,GENERAL MAINTENANCE,25/11/2020,9290533009,193.56,WOLSELEY UK
OXFORDSHIRE CC,ENVIRONMENT AND ECONOMY,HARD FM,GENERAL MAINTENANCE,25/11/2020,9290533019,34.66,WOLSELEY UK
OXFORDSHIRE CC,ENVIRONMENT AND ECONOMY,HARD FM,HARDWARE AND CROCKERY,25/11/2020,9290533029,35.22,WWW.IRONMONGERYDIRECT.
OXFORDSHIRE CC,ENVIRONMENT AND ECONOMY,HARD FM,HARDWARE AND CROCKERY,25/11/2020,9290533035,10.44,B & Q 1176
OXFORDSHIRE CC,ENVIRONMENT AND ECONOMY,HARD FM,HARDWARE AND CROCKERY,25/11/2020,9290533043,64.78,B AND Q
OXFORDSHIRE CC,ENVIRONMENT AND ECONOMY,HARD FM,HARDWARE AND CROCKERY,25/11/2020,9290533047,36.18,DULUX DECORATOR CENTRE
OXFORDSHIRE CC,SOCIAL AND COMMUNITY SERVICES,"	ASSESSMENT TEAM NORT",OTHER EXPENSES,25/11/2020,9290534351,20.00,NABUH ENERGY
OXFORDSHIRE CC,SOCIAL AND COMMUNITY SERVICES,"	ASSESSMENT TEAM NORT",OTHER EXPENSES,25/11/2020,9290534353,20.00,NABUH ENERGY
OXFORDSHIRE CC,ENVIRONMENT AND ECONOMY,HARD FM,HARDWARE AND CROCKERY,25/11/2020,9290533055,10.98,SCREWFIX DIR LTD
OXFORDSHIRE CC,ENVIRONMENT AND ECONOMY,HARD FM,MATERIALS,25/11/2020,9290533065,63.64,AMZNMKTPLACE AMAZON.CO
OXFORDSHIRE CC,ENVIRONMENT AND ECONOMY,HARD FM,MATERIALS,25/11/2020,9290533075,74.85,AMZNMKTPLACE AMAZON.CO
OXFORDSHIRE CC,ENVIRONMENT AND ECONOMY,HARD FM,MATERIALS,25/11/2020,9290533081,48.97,AMZNMKTPLACE AMAZON.CO
OXFORDSHIRE CC,ENVIRONMENT AND ECONOMY,HARD FM,GENERAL MAINTENANCE,25/11/2020,9290533091,85.22,WOLSELEY UK
OXFORDSHIRE CC,"CHILDRENS, YOUNG PEOPLE AND FAMILIES",THAME E&A HOME,CATERING,25/11/2020,9290533101,43.49,SMARTS FISH & CHIP SHO
OXFORDSHIRE CC,"CHILDRENS, YOUNG PEOPLE AND FAMILIES","	DISABILITIES TEAM-C",PURCHASE OF IT EQUIPMENT,25/11/2020,9290533113,329.00,WWW.JOHNLEWIS.COM
OXFORDSHIRE CC,SOCIAL AND COMMUNITY SERVICES,CSS BICESTER,CATERING PROVISIONS,25/11/2020,9290533129,38.44,TESCO STORES 4480
OXFORDSHIRE CC,"CHILDRENS, YOUNG PEOPLE AND FAMILIES","	40 THE MOORS",MATERIALS,25/11/2020,9290534365,29.99,AMZNMKTPLACE
OXFORDSHIRE CC,"CHILDRENS, YOUNG PEOPLE AND FAMILIES","	40 THE MOORS",CATERING PROVISIONS,25/11/2020,9290534367,17.50,SAINSBURYS SACAT 0600
OXFORDSHIRE CC,"CHILDRENS, YOUNG PEOPLE AND FAMILIES","	40 THE MOORS",CATERING PROVISIONS,25/11/2020,9290534373,40.90,TESCO STORE 2994
OXFORDSHIRE CC,"CHILDRENS, YOUNG PEOPLE AND FAMILIES","	40 THE MOORS",CATERING,25/11/2020,9290534377,69.80,WWW.JUST-EAT.CO.UK
OXFORDSHIRE CC,SOCIAL AND COMMUNITY SERVICES,UASC 16&17,VEHICLE FUEL,25/11/2020,9290533147,40.10,TESCO PAYAT PUMP 3700
OXFORDSHIRE CC,"CHILDRENS, YOUNG PEOPLE AND FAMILIES",UASC POST 18,"SUPPLIES, STATIONERY AND MATERIALS",25/11/2020,9290534037,40.33,AMZNMKTPLACE
OXFORDSHIRE CC,SOCIAL AND COMMUNITY SERVICES,CSS WITNEY,CATERING PROVISIONS,25/11/2020,9290532631,44.02,POUNDSTRETCHER 700
OXFORDSHIRE CC,SOCIAL AND COMMUNITY SERVICES,CSS WITNEY,HARDWARE AND CROCKERY,25/11/2020,9290532639,26.95,CHARLBURY GARDEN CENTR
OXFORDSHIRE CC,"CHILDRENS, YOUNG PEOPLE AND FAMILIES",CSS WALLINGFORD,MATERIALS,25/11/2020,9290532677,8.62,AMAZON.CO.UK MY0QC0NZ4
OXFORDSHIRE CC,"CHILDRENS, YOUNG PEOPLE AND FAMILIES",STH EARLY HELP-ABNDN,MATERIALS,25/11/2020,9290532687,33.00,ARGOS LTD
OXFORDSHIRE CC,"CHILDRENS, YOUNG PEOPLE AND FAMILIES",THAME E&A HOME,MATERIALS,25/11/2020,9290532699,27.98,AMZNMKTPLACE
OXFORDSHIRE CC,"CHILDRENS, YOUNG PEOPLE AND FAMILIES",WITNEY,CATERING,25/11/2020,9290534067,4.02,TESCO STORE 2994
OXFORDSHIRE CC,"CHILDRENS, YOUNG PEOPLE AND FAMILIES","	LOOKED AFTER SOUTH",PAYMENT TO GOVERNMENT DEPARTMENTS,25/11/2020,9290532787,72.00,GEN REGISTER OFFICE
OXFORDSHIRE CC,"CHILDRENS, YOUNG PEOPLE AND FAMILIES",THAME E&A HOME,MATERIALS,25/11/2020,9290532713,2.89,AMZNMKTPLACE
OXFORDSHIRE CC,"CHILDRENS, YOUNG PEOPLE AND FAMILIES",THAME E&A HOME,MATERIALS,25/11/2020,9290532723,18.98,AMZNMKTPLACE
OXFORDSHIRE CC,"CHILDRENS, YOUNG PEOPLE AND FAMILIES",THAME E&A HOME,MATERIALS,25/11/2020,9290532731,11.99,AMZNMKTPLACE
OXFORDSHIRE CC,"CHILDRENS, YOUNG PEOPLE AND FAMILIES",THAME E&A HOME,MATERIALS,25/11/2020,9290532739,13.99,AMZNMKTPLACE
OXFORDSHIRE CC,"CHILDRENS, YOUNG PEOPLE AND FAMILIES","	LOOKED AFTER SOUTH",OTHER EXPENSES,25/11/2020,9290532797,16.95,AMZNMKTPLACE
OXFORDSHIRE CC,"CHILDRENS, YOUNG PEOPLE AND FAMILIES","	LOOKED AFTER CITY 2",ENTERTAINMENT EXPENSES,25/11/2020,9290534161,39.50,WWW.MILLETSFARMCENTRE.
OXFORDSHIRE CC,"CHILDRENS, YOUNG PEOPLE AND FAMILIES","	RESIDENTIAL STRATEGY",MANAGEMENT CONSULTANT FEES,25/11/2020,9290534171,157.50,TVLICENSING.CO.UK
OXFORDSHIRE CC,SOCIAL AND COMMUNITY SERVICES,LEAVING CARE NORTH,OTHER TRANSPORT ARRANGEMENTS,25/11/2020,9290534181,2.00,3C_ EURO CARPARKS - IS
OXFORDSHIRE CC,"CHILDRENS, YOUNG PEOPLE AND FAMILIES","	LEAVING CARE NORTH",MATERIALS,25/11/2020,9290534229,140.00,JD SPORTS INTERNET
OXFORDSHIRE CC,SOCIAL AND COMMUNITY SERVICES,CSS WITNEY,MATERIALS,25/11/2020,9290534241,21.98,AMZNMKTPLACE
OXFORDSHIRE CC,SOCIAL AND COMMUNITY SERVICES,CSS WITNEY,MATERIALS,25/11/2020,9290534245,11.99,AMZNMKTPLACE
OXFORDSHIRE CC,CORPORATE CORE,SOFT FM,CATERING,24/11/2020,9288124023,20.13,AMAZON.CO.UK MY6HP9Z14
OXFORDSHIRE CC,CORPORATE CORE,OPERATIONS,STATIONERY,24/11/2020,9288124027,7.08,AMAZON.CO.UK MY8YW3N94
OXFORDSHIRE CC,ENVIRONMENT AND ECONOMY,"	COUNTY HALL",MATERIALS,24/11/2020,9288124031,15.48,AMZNMKTPLACE
OXFORDSHIRE CC,"CHILDRENS, YOUNG PEOPLE AND FAMILIES","	LEAVING CARE CITY 2",CATERING PROVISIONS,24/11/2020,9288124061,24.10,WILKO RETAIL LIMITED
OXFORDSHIRE CC,"CHILDRENS, YOUNG PEOPLE AND FAMILIES",WITNEY,CATERING,24/11/2020,9288124065,9.05,TESCO PFS 3418
OXFORDSHIRE CC,"CHILDRENS, YOUNG PEOPLE AND FAMILIES",WITNEY,CATERING PROVISIONS,24/11/2020,9288124069,29.88,STEVENAGE PACKAGING
OXFORDSHIRE CC,"CHILDRENS, YOUNG PEOPLE AND FAMILIES",MEMBERS SERVICES,CATERING PROVISIONS,24/11/2020,9288124071,6.48,POUNDSTRETCHER 700
OXFORDSHIRE CC,"CHILDRENS, YOUNG PEOPLE AND FAMILIES",WITNEY,OTHER EXPENSES,24/11/2020,9288124075,28.00,SAINSBURYS SACAT 0632
OXFORDSHIRE CC,"CHILDRENS, YOUNG PEOPLE AND FAMILIES",CSS WALLINGFORD,MATERIALS,24/11/2020,9288123497,17.44,AMAZON.CO.UK MY4R37Z64
OXFORDSHIRE CC,SOCIAL AND COMMUNITY SERVICES,CSS - BANBURY,HARDWARE AND CROCKERY,24/11/2020,9288123483,119.10,B & Q 1062
OXFORDSHIRE CC,CORPORATE CORE,"	ORGANISATIONAL DEV'T",TRAINING RELATED EXPENDITURE,24/11/2020,9288124111,252.00,HAYMARKET MEDIA GROUP
OXFORDSHIRE CC,CORPORATE CORE,"	LEGAL SERVICES",LEGAL COSTS,24/11/2020,9288124123,22.00,OXFORDSHIRE CC MOTO1
OXFORDSHIRE CC,"CHILDRENS, YOUNG PEOPLE AND FAMILIES",CSS WALLINGFORD,CATERING PROVISIONS,24/11/2020,9288123501,20.95,WAITROSE 675
OXFORDSHIRE CC,"CHILDRENS, YOUNG PEOPLE AND FAMILIES","	LOOKED AFTER SOUTH",OTHER EXPENSES,24/11/2020,9288123521,18.95,ARGOS LTD
OXFORDSHIRE CC,"CHILDRENS, YOUNG PEOPLE AND FAMILIES","	RIVERSIDE CENTRE",CATERING PROVISIONS,24/11/2020,9288124129,3.60,TESCO-STORES 2305
OXFORDSHIRE CC,"CHILDRENS, YOUNG PEOPLE AND FAMILIES","	LOOKED AFTER CITY 2",ENTERTAINMENT EXPENSES,24/11/2020,9288124141,32.00,WWW.MILLETSFARMCENTRE.
OXFORDSHIRE CC,"CHILDRENS, YOUNG PEOPLE AND FAMILIES",EYNSHAM,MATERIALS,24/11/2020,9288124451,6.99,TESCO SUBSCRIPTION
OXFORDSHIRE CC,"CHILDRENS, YOUNG PEOPLE AND FAMILIES",THAME E&A HOME,CATERING PROVISIONS,24/11/2020,9288123805,148.99,TESCO STORES 2038
OXFORDSHIRE CC,SOCIAL AND COMMUNITY SERVICES,CSS - OXFORD,CATERING PROVISIONS,24/11/2020,9288123809,15.98,ALDI STORES 775-142
OXFORDSHIRE CC,"CHILDRENS, YOUNG PEOPLE AND FAMILIES","	LEAVING CARE CITY 2",PAYMENT TO GOVERNMENT DEPARTMENTS,24/11/2020,9288123823,11.00,GEN REGISTER OFFICE
OXFORDSHIRE CC,"CHILDRENS, YOUNG PEOPLE AND FAMILIES","	40 THE MOORS",CATERING PROVISIONS,24/11/2020,9288123843,198.12,SAINSBURYS (2243)
OXFORDSHIRE CC,"CHILDRENS, YOUNG PEOPLE AND FAMILIES","	C&I BASE LORD WILL'M","SUPPLIES, STATIONERY AND MATERIALS",24/11/2020,9288123873,28.99,BLACKWELL UK LTD
OXFORDSHIRE CC,"CHILDRENS, YOUNG PEOPLE AND FAMILIES","	C&I BASE LORD WILL'M","SUPPLIES, STATIONERY AND MATERIALS",24/11/2020,9288123877,38.38,BLACKWELL UK LTD
OXFORDSHIRE CC,"CHILDRENS, YOUNG PEOPLE AND FAMILIES","	FPT CITY","BOOKS, DVDS AND CDS",24/11/2020,9288123883,13.95,WWW.CORAM.ORG.UK
OXFORDSHIRE CC,"CHILDRENS, YOUNG PEOPLE AND FAMILIES","	FPT CITY","BOOKS, DVDS AND CDS",24/11/2020,9288123885,13.95,WWW.CORAM.ORG.UK
OXFORDSHIRE CC,CORPORATE CORE,"MARKETING, COMMUNICATIONS & ENGAGEMENT","PUBLICITY, PROMOTIONS AND ADVERTISEMENT",24/11/2020,9288123905,19.34,SNAP  ADS
OXFORDSHIRE CC,"CHILDRENS, YOUNG PEOPLE AND FAMILIES","	OCCG GRANT",CATERING PROVISIONS,24/11/2020,9288123917,9.50,SAINSBURYS (2305)
OXFORDSHIRE CC,"CHILDRENS, YOUNG PEOPLE AND FAMILIES",UASC 16&17,OTHER TRANSPORT ARRANGEMENTS,24/11/2020,9288123929,3.80,STGCOACH/CTYLINK
OXFORDSHIRE CC,CORPORATE CORE,"	MEMBERS SERVICES",MATERIALS,24/11/2020,9288124003,49.90,AMZNMKTPLACE AMAZON.CO
OXFORDSHIRE CC,SOCIAL AND COMMUNITY SERVICES,WANTAGE LIBRARY,MATERIALS,24/11/2020,9288124301,25.98,HOME BARGAINS
OXFORDSHIRE CC,"CHILDRENS, YOUNG PEOPLE AND FAMILIES","	LOOKED AFTER CITY 2",OTHER TRANSPORT ARRANGEMENTS,24/11/2020,9288124307,7.00,GWR OXFORD SST
OXFORDSHIRE CC,"CHILDRENS, YOUNG PEOPLE AND FAMILIES","	LOOKED AFTER CITY 2",MATERIALS,24/11/2020,9288124311,399.99,ARGOS LTD
OXFORDSHIRE CC,"CHILDRENS, YOUNG PEOPLE AND FAMILIES","	LEAVING CARE SOUTH",CATERING PROVISIONS,24/11/2020,9288124315,244.13,B&M 236 - COWLEY
OXFORDSHIRE CC,"CHILDRENS, YOUNG PEOPLE AND FAMILIES","	LEAVING CARE SOUTH",CATERING PROVISIONS,24/11/2020,9288124319,80.50,WILKO RETAIL LIMITED
OXFORDSHIRE CC,"CHILDRENS, YOUNG PEOPLE AND FAMILIES","	LEAVING CARE SOUTH",MATERIALS,24/11/2020,9288124321,5.10,POUNDLAND LTD
OXFORDSHIRE CC,CORPORATE CORE,ICT OPERATIONS & MAI,IT SERVICES,24/11/2020,9288124325,219.11,KINGSFIELD COMPUTER
OXFORDSHIRE CC,"CHILDRENS, YOUNG PEOPLE AND FAMILIES",FAMILY SOLUTIONS PLUS NON-STAFF - NORTH,PAYMENTS TO TRANSPORT OPERATORS,24/11/2020,9288123715,66.80,WWW.GWR.COM
OXFORDSHIRE CC,"CHILDRENS, YOUNG PEOPLE AND FAMILIES",DIDCOT MOVE-ON HOME,CATERING PROVISIONS,24/11/2020,9288123719,11.50,SAINSBURYS SACAT 2067
OXFORDSHIRE CC,"CHILDRENS, YOUNG PEOPLE AND FAMILIES",EYNSHAM,CATERING PROVISIONS,24/11/2020,9288124333,13.00,MAYFIELDEGGS
OXFORDSHIRE CC,CORPORATE CORE,MOTOR FLEET,MOTOR IF OWN DAMAGE,24/11/2020,9288124361,319.20,WHOLESALE AUTOPARTS
OXFORDSHIRE CC,CORPORATE CORE,MOTOR FLEET,MOTOR IF OWN DAMAGE,24/11/2020,9288124365,553.40,WHOLESALE AUTOPARTS
OXFORDSHIRE CC,CORPORATE CORE,MOTOR FLEET,MOTOR IF OWN DAMAGE,24/11/2020,9288124369,"1,397.30",WHOLESALE AUTOPARTS
OXFORDSHIRE CC,"CHILDRENS, YOUNG PEOPLE AND FAMILIES",DIDCOT MOVE-ON HOME,CATERING PROVISIONS,24/11/2020,9288123723,4.85,SAINSBURYS SACAT 2067
OXFORDSHIRE CC,"CHILDRENS, YOUNG PEOPLE AND FAMILIES",DIDCOT MOVE-ON HOME,CATERING PROVISIONS,24/11/2020,9288123725,49.00,SAINSBURYS SACAT 2067
OXFORDSHIRE CC,"CHILDRENS, YOUNG PEOPLE AND FAMILIES",WITNEY,CATERING PROVISIONS,24/11/2020,9288123729,7.45,SAINSBURYS SACAT 0632
OXFORDSHIRE CC,"CHILDRENS, YOUNG PEOPLE AND FAMILIES",EYNSHAM,MATERIALS,24/11/2020,9288124373,42.95,AMZNMKTPLACE AMAZON.CO
OXFORDSHIRE CC,"CHILDRENS, YOUNG PEOPLE AND FAMILIES",SWINDON,POSTAGE AND DELIVERY,24/11/2020,9288123763,13.12,POST OFFICE COUNTER
OXFORDSHIRE CC,"CHILDRENS, YOUNG PEOPLE AND FAMILIES",FAMILY SOLUTIONS PLUS NON-STAFF - NORTH,FURNITURE,24/11/2020,9288123767,190.00,ARGOS LTD
OXFORDSHIRE CC,"CHILDRENS, YOUNG PEOPLE AND FAMILIES","	LOOKED AFTER CITY 1",OTHER COMMUNICATIONS,24/11/2020,9288123771,5.00,WWW.SECURE-PAYMENT-SER
OXFORDSHIRE CC,SOCIAL AND COMMUNITY SERVICES,"	HISTORY SERVICE","BOOKS, DVDS AND CDS",24/11/2020,9288123779,25.00,AMAZON.CO.UK MY30H5LQ4
OXFORDSHIRE CC,SOCIAL AND COMMUNITY SERVICES,"	HISTORY SERVICE","BOOKS, DVDS AND CDS",24/11/2020,9288123783,14.77,AMAZON.CO.UK MY4GA7ZI4
OXFORDSHIRE CC,"CHILDRENS, YOUNG PEOPLE AND FAMILIES",EYNSHAM,OTHER EXPENSES,24/11/2020,9288123543,9.99,AMZNMKTPLACE
OXFORDSHIRE CC,"CHILDRENS, YOUNG PEOPLE AND FAMILIES",EYNSHAM,OTHER EXPENSES,24/11/2020,9288123545,8.49,AMZNMKTPLACE
OXFORDSHIRE CC,"CHILDRENS, YOUNG PEOPLE AND FAMILIES",EYNSHAM,FURNITURE,24/11/2020,9288123549,18.27,AMZNMKTPLACE
OXFORDSHIRE CC,"CHILDRENS, YOUNG PEOPLE AND FAMILIES",MEMBERS ALLOWANCES,VEHICLE FUEL,24/11/2020,9288123557,46.36,BP FAMILY FARM CONNECT
OXFORDSHIRE CC,"CHILDRENS, YOUNG PEOPLE AND FAMILIES",MEMBERS ALLOWANCES,OTHER TRANSPORT ARRANGEMENTS,24/11/2020,9288123561,4.80,M6 TOLL
OXFORDSHIRE CC,"CHILDRENS, YOUNG PEOPLE AND FAMILIES",MEMBERS ALLOWANCES,OTHER TRANSPORT ARRANGEMENTS,24/11/2020,9288123565,6.70,M6 TOLL
OXFORDSHIRE CC,"CHILDRENS, YOUNG PEOPLE AND FAMILIES",MEMBERS ALLOWANCES,VEHICLE FUEL,24/11/2020,9288123569,42.96,SHELL DURHAM A1(M)
OXFORDSHIRE CC,"CHILDRENS, YOUNG PEOPLE AND FAMILIES",UASC 16&17,OTHER TRANSPORT ARRANGEMENTS,24/11/2020,9288123573,45.75,WWW.THEKEY.CO.UK
OXFORDSHIRE CC,SOCIAL AND COMMUNITY SERVICES,CSS WITNEY,CATERING PROVISIONS,24/11/2020,9288124171,69.27,SAINSBURYS 0632
OXFORDSHIRE CC,ENVIRONMENT AND ECONOMY,HARD FM,HARDWARE AND CROCKERY,24/11/2020,9288123577,62.91,SCREWFIX DIRECT
OXFORDSHIRE CC,ENVIRONMENT AND ECONOMY,HARD FM,CATERING PROVISIONS,24/11/2020,9288123583,20.00,TESCO STORES 4480
OXFORDSHIRE CC,ENVIRONMENT AND ECONOMY,HARD FM,HARDWARE AND CROCKERY,24/11/2020,9288123585,60.25,JEWSON 3645
OXFORDSHIRE CC,ENVIRONMENT AND ECONOMY,HARD FM,HIRE OF EQUIPMENT,24/11/2020,9288123587,-16.20,DIDCOT PLANT LTD
OXFORDSHIRE CC,ENVIRONMENT AND ECONOMY,HARD FM,EQUIPMENT,24/11/2020,9288123591,39.91,BSS OXFORD
OXFORDSHIRE CC,ENVIRONMENT AND ECONOMY,HARD FM,HARDWARE AND CROCKERY,24/11/2020,9288123595,50.96,CITY PLUMBING
OXFORDSHIRE CC,"CHILDRENS, YOUNG PEOPLE AND FAMILIES",THAME E&A HOME,CATERING PROVISIONS,24/11/2020,9288123597,3.30,SAINSBURYS SACAT 2096
OXFORDSHIRE CC,"CHILDRENS, YOUNG PEOPLE AND FAMILIES",THAME E&A HOME,MATERIALS,24/11/2020,9288123601,5.79,WH SMITH TRAVEL
OXFORDSHIRE CC,ENVIRONMENT AND ECONOMY,COUNTY LIBRARY,GENERAL MAINTENANCE,24/11/2020,9288123605,28.21,WOLSELEY UK
OXFORDSHIRE CC,"CHILDRENS, YOUNG PEOPLE AND FAMILIES","	40 THE MOORS",CATERING,24/11/2020,9288124225,37.90,EASTERN KITCHEN
OXFORDSHIRE CC,SOCIAL AND COMMUNITY SERVICES,CSS - BANBURY,CATERING PROVISIONS,24/11/2020,9288124229,13.74,TESCO STORE 2064
OXFORDSHIRE CC,SOCIAL AND COMMUNITY SERVICES,CSS - OXFORD,HARDWARE AND CROCKERY,24/11/2020,9288123625,9.50,HOMEBASE LTD 091
OXFORDSHIRE CC,SOCIAL AND COMMUNITY SERVICES,CSS - OXFORD,CATERING PROVISIONS,24/11/2020,9288123629,16.79,ALDI STORES 775-142
OXFORDSHIRE CC,SOCIAL AND COMMUNITY SERVICES,DIDCOT MOVE-ON HOME,CATERING PROVISIONS,24/11/2020,9288123631,8.19,TESCO STORE 2413
OXFORDSHIRE CC,"CHILDRENS, YOUNG PEOPLE AND FAMILIES",NORTH FSS- BANBURY,POSTAGE AND DELIVERY,24/11/2020,9288123635,-75.80,ROYAL MAIL ONLINE SHOP
OXFORDSHIRE CC,"CHILDRENS, YOUNG PEOPLE AND FAMILIES","	40 THE MOORS",OTHER TRANSPORT ARRANGEMENTS,24/11/2020,9288124263,87.00,STAGECOACH SERVICE
OXFORDSHIRE CC,SOCIAL AND COMMUNITY SERVICES,FLEET OPERATIONS,TECHNICAL AND PROFESSIONAL CONSULTANT F,23/11/2020,9284168029,-12.48,WWW.EYELETS.CO.UK
OXFORDSHIRE CC,"CHILDRENS, YOUNG PEOPLE AND FAMILIES",EYNSHAM,FURNITURE,23/11/2020,9284168039,39.95,DUNELM
OXFORDSHIRE CC,"CHILDRENS, YOUNG PEOPLE AND FAMILIES","	RESIDENTIAL STRATEGY",CATERING PROVISIONS,23/11/2020,9284166109,5.19,MY FOOD 365
OXFORDSHIRE CC,"CHILDRENS, YOUNG PEOPLE AND FAMILIES","	LOOKED AFTER CITY 1",CATERING,23/11/2020,9284166149,3.60,CAFFE NERO BANBURY
OXFORDSHIRE CC,"CHILDRENS, YOUNG PEOPLE AND FAMILIES",CSC COVID-19,"SUPPLIES, STATIONERY AND MATERIALS",23/11/2020,9284166163,20.00,GIFFGAFF
OXFORDSHIRE CC,"CHILDRENS, YOUNG PEOPLE AND FAMILIES","	RESIDENTIAL STRATEGY",VEHICLE FUEL,23/11/2020,9284166113,2.09,ESSO ACORN SSTN
OXFORDSHIRE CC,SOCIAL AND COMMUNITY SERVICES,CSS BICESTER,CATERING PROVISIONS,23/11/2020,9284166121,25.40,ALDI 49 775
OXFORDSHIRE CC,SOCIAL AND COMMUNITY SERVICES,CSS - ABINGDON,MATERIALS,23/11/2020,9284166129,33.65,BAKER ROSS
OXFORDSHIRE CC,SOCIAL AND COMMUNITY SERVICES,CSS - ABINGDON,MATERIALS,23/11/2020,9284166133,29.68,AMZNMKTPLACE
OXFORDSHIRE CC,ENVIRONMENT AND ECONOMY,HARD FM,HARDWARE AND CROCKERY,23/11/2020,9284166169,17.44,WICKES BANBURY
OXFORDSHIRE CC,ENVIRONMENT AND ECONOMY,HARD FM,HARDWARE AND CROCKERY,23/11/2020,9284166177,24.00,B AND Q
OXFORDSHIRE CC,CORPORATE CORE,"	MEMBERS SERVICES",MATERIALS,23/11/2020,9284167061,49.95,AMZNMKTPLACE
OXFORDSHIRE CC,"CHILDRENS, YOUNG PEOPLE AND FAMILIES","	40 THE MOORS",MATERIALS,23/11/2020,9284167597,15.03,AMZNMKTPLACE AMAZON.CO
OXFORDSHIRE CC,"CHILDRENS, YOUNG PEOPLE AND FAMILIES","	40 THE MOORS",TELEPHONE - EQUIPMENT,23/11/2020,9284167657,8.00,THREE
OXFORDSHIRE CC,"CHILDRENS, YOUNG PEOPLE AND FAMILIES","	40 THE MOORS",MATERIALS,23/11/2020,9284167603,41.89,ARGOS LTD
OXFORDSHIRE CC,SOCIAL AND COMMUNITY SERVICES,CSS - BANBURY,EDUCATIONAL AND VOCATIONAL TRAINING ,23/11/2020,9284167609,45.00,PAYPAL  SI NETWORK SI
OXFORDSHIRE CC,ENVIRONMENT AND ECONOMY,"	BRIDGES GENERAL",OTHER COMMUNICATIONS,23/11/2020,9284167127,199.30,SPOT EURO
OXFORDSHIRE CC,"CHILDRENS, YOUNG PEOPLE AND FAMILIES","	LOOKED AFTER CITY 2",HIRE OF ACCOMMODATION AND FACILITIES,23/11/2020,9284167139,35.00,PREMIER INN
OXFORDSHIRE CC,"CHILDRENS, YOUNG PEOPLE AND FAMILIES",DIDCOT MOVE-ON HOME,CATERING PROVISIONS,23/11/2020,9284167707,15.45,SAINSBURYS SACAT 2067
OXFORDSHIRE CC,"CHILDRENS, YOUNG PEOPLE AND FAMILIES",EYNSHAM,OTHER EXPENSES,23/11/2020,9284166045,71.99,AMZNMKTPLACE
OXFORDSHIRE CC,"CHILDRENS, YOUNG PEOPLE AND FAMILIES","	RESIDENTIAL STRATEGY",CATERING,23/11/2020,9284166101,4.70,GREGGS ACORN
OXFORDSHIRE CC,"CHILDRENS, YOUNG PEOPLE AND FAMILIES",EYNSHAM,OTHER EXPENSES,23/11/2020,9284166049,7.54,AMZNMKTPLACE
OXFORDSHIRE CC,"CHILDRENS, YOUNG PEOPLE AND FAMILIES",EYNSHAM,OTHER EXPENSES,23/11/2020,9284166053,10.99,AMZNMKTPLACE
OXFORDSHIRE CC,"CHILDRENS, YOUNG PEOPLE AND FAMILIES",EYNSHAM,OTHER EXPENSES,23/11/2020,9284166059,2.75,AMAZON.CO.UK MY9GS2LV4
OXFORDSHIRE CC,"CHILDRENS, YOUNG PEOPLE AND FAMILIES",WITNEY,MATERIALS,23/11/2020,9284166067,13.99,AMZNMKTPLACE
OXFORDSHIRE CC,"CHILDRENS, YOUNG PEOPLE AND FAMILIES",FAMILY SOLUTIONS PLUS NON-STAFF � SOUTH,FURNITURE,23/11/2020,9284166073,-98.00,WF  WAYFAIR 3456069494
OXFORDSHIRE CC,"CHILDRENS, YOUNG PEOPLE AND FAMILIES","	40 THE MOORS",MATERIALS,23/11/2020,9284167587,9.98,AMZNMKTPLACE AMAZON.CO
OXFORDSHIRE CC,SOCIAL AND COMMUNITY SERVICES,"	ASSESSMENT TEAM NORT",NON-STAFF SUBSISTENCE AND EXPENSES,23/11/2020,9284167545,3.00,SAINSBURYS SACAT (2243
OXFORDSHIRE CC,"CHILDRENS, YOUNG PEOPLE AND FAMILIES","	40 THE MOORS",MATERIALS,23/11/2020,9284167593,15.99,AMZNMKTPLACE AMAZON.CO
OXFORDSHIRE CC,"CHILDRENS, YOUNG PEOPLE AND FAMILIES","	40 THE MOORS",MATERIALS,23/11/2020,9284167579,16.95,AMZNMKTPLACE AMAZON.CO
OXFORDSHIRE CC,"CHILDRENS, YOUNG PEOPLE AND FAMILIES","	40 THE MOORS",MATERIALS,23/11/2020,9284167583,77.33,AMZNMKTPLACE
OXFORDSHIRE CC,SOCIAL AND COMMUNITY SERVICES,"	CENTRAL LIBRARY",MATERIALS,23/11/2020,9284167787,12.00,TIMPSON LTD
OXFORDSHIRE CC,"CHILDRENS, YOUNG PEOPLE AND FAMILIES",BULLINGDON PRISON,"BOOKS, DVDS AND CDS",23/11/2020,9284167807,20.18,AMAZON.CO.UK M70S92Y94
OXFORDSHIRE CC,"CHILDRENS, YOUNG PEOPLE AND FAMILIES",EYNSHAM,CATERING PROVISIONS,23/11/2020,9284167835,135.57,TESCO STORES 2008
OXFORDSHIRE CC,"CHILDRENS, YOUNG PEOPLE AND FAMILIES",EYNSHAM,MATERIALS,23/11/2020,9284167859,340.00,AMZNMKTPLACE
OXFORDSHIRE CC,"CHILDRENS, YOUNG PEOPLE AND FAMILIES","	40 THE MOORS",MATERIALS,23/11/2020,9284166739,39.99,PAYPAL  CLASSICAINT ON
OXFORDSHIRE CC,"CHILDRENS, YOUNG PEOPLE AND FAMILIES","	40 THE MOORS",DRUGS AND MEDICAL SUPPLIES,23/11/2020,9284166745,35.00,SUPERDRUG STORES PLC
OXFORDSHIRE CC,"CHILDRENS, YOUNG PEOPLE AND FAMILIES",FIELDWORK UASC,PAYMENTS TO TRANSPORT OPERATORS,23/11/2020,9284166757,7.00,GWR OXFORD SST
OXFORDSHIRE CC,"CHILDRENS, YOUNG PEOPLE AND FAMILIES","	LEAVING CARE NORTH",MATERIALS,23/11/2020,9284166815,52.38,AMAZON.CO.UK MY8SO3OO4
OXFORDSHIRE CC,"CHILDRENS, YOUNG PEOPLE AND FAMILIES",THAME E&A HOME,MATERIALS,23/11/2020,9284165965,20.82,AMZNMKTPLACE
OXFORDSHIRE CC,"CHILDRENS, YOUNG PEOPLE AND FAMILIES",THAME E&A HOME,MATERIALS,23/11/2020,9284165969,9.99,AMZNMKTPLACE
OXFORDSHIRE CC,"CHILDRENS, YOUNG PEOPLE AND FAMILIES",THAME E&A HOME,MATERIALS,23/11/2020,9284165975,51.80,AMZNMKTPLACE
OXFORDSHIRE CC,"CHILDRENS, YOUNG PEOPLE AND FAMILIES","	SEN/ICT EQUIPMENT",IT SOFTWARE,23/11/2020,9284166859,33.00,MIRADORE
OXFORDSHIRE CC,CORPORATE CORE,"MARKETING, COMMUNICATIONS & ENGAGEMENT","PUBLICITY, PROMOTIONS AND ADVERTISEMENT",23/11/2020,9284166865,19.60,SNAP  ADS
OXFORDSHIRE CC,CORPORATE CORE,"MARKETING, COMMUNICATIONS & ENGAGEMENT","BOOKS, DVDS AND CDS",23/11/2020,9284166871,260.03,SPOTIFY
OXFORDSHIRE CC,CORPORATE CORE,"MARKETING, COMMUNICATIONS & ENGAGEMENT","PUBLICITY, PROMOTIONS AND ADVERTISEMENT",23/11/2020,9284166873,23.39,SNAP  ADS
OXFORDSHIRE CC,"CHILDRENS, YOUNG PEOPLE AND FAMILIES","	LOOKED AFTER SOUTH",CATERING PROVISIONS,23/11/2020,9284166885,40.95,ASDA GEORGE COM LEEDS
OXFORDSHIRE CC,"CHILDRENS, YOUNG PEOPLE AND FAMILIES",THAME E&A HOME,CATERING PROVISIONS,23/11/2020,9284166893,31.79,ASDA SUPERSTORE
OXFORDSHIRE CC,CORPORATE CORE,"MARKETING, COMMUNICATIONS & ENGAGEMENT","PUBLICITY, PROMOTIONS AND ADVERTISEMENT",23/11/2020,9284166877,27.16,SNAP  ADS
OXFORDSHIRE CC,"CHILDRENS, YOUNG PEOPLE AND FAMILIES",EYNSHAM,CATERING,23/11/2020,9284166033,81.43,DOMINO S PIZZA
OXFORDSHIRE CC,"CHILDRENS, YOUNG PEOPLE AND FAMILIES",EYNSHAM,CATERING,23/11/2020,9284166041,11.78,CO-OPERATIVE FOOD
OXFORDSHIRE CC,"CHILDRENS, YOUNG PEOPLE AND FAMILIES",THAME E&A HOME,MATERIALS,23/11/2020,9284166897,63.97,ARGOS LTD
OXFORDSHIRE CC,"CHILDRENS, YOUNG PEOPLE AND FAMILIES","	OCCG GRANT",CATERING PROVISIONS,23/11/2020,9284166939,5.00,CO-OPERATIVE FOOD
OXFORDSHIRE CC,"CHILDRENS, YOUNG PEOPLE AND FAMILIES",THAME E&A HOME,CATERING PROVISIONS,23/11/2020,9284166901,1.59,TESCO STORE 2994
OXFORDSHIRE CC,"CHILDRENS, YOUNG PEOPLE AND FAMILIES","	OCCG GRANT",CATERING PROVISIONS,23/11/2020,9284166923,15.00,ASDA SUPERSTORE
OXFORDSHIRE CC,"CHILDRENS, YOUNG PEOPLE AND FAMILIES","	OCCG GRANT",CATERING,23/11/2020,9284166943,8.50,MCDONALDS
OXFORDSHIRE CC,"CHILDRENS, YOUNG PEOPLE AND FAMILIES","	OCCG GRANT",DAY ACTIVITIES,23/11/2020,9284166931,7.00,TESCO STORES 2008
OXFORDSHIRE CC,"CHILDRENS, YOUNG PEOPLE AND FAMILIES","	OCCG GRANT",BIRTHDAY ALLOWANCE,23/11/2020,9284166935,15.70,TESCO STORES 2008
OXFORDSHIRE CC,"CHILDRENS, YOUNG PEOPLE AND FAMILIES","	OCCG GRANT",CATERING PROVISIONS,23/11/2020,9284166949,3.00,MORRISON PETROL
OXFORDSHIRE CC,"CHILDRENS, YOUNG PEOPLE AND FAMILIES",DIDCOT MOVE-ON HOME,CLOTHING AND UNIFORMS,23/11/2020,9284166311,30.73,NEW LOOK MCOMM
OXFORDSHIRE CC,"CHILDRENS, YOUNG PEOPLE AND FAMILIES",DIDCOT MOVE-ON HOME,CATERING PROVISIONS,23/11/2020,9284166315,26.80,SAINSBURYS SACAT 2067
OXFORDSHIRE CC,"CHILDRENS, YOUNG PEOPLE AND FAMILIES",DIDCOT MOVE-ON HOME,CLOTHING AND UNIFORMS,23/11/2020,9284166319,29.01,ETSY.COM FUNFOBSG
OXFORDSHIRE CC,"CHILDRENS, YOUNG PEOPLE AND FAMILIES",WITNEY,CATERING PROVISIONS,23/11/2020,9284166323,45.42,ASDA STORES 4920
OXFORDSHIRE CC,SOCIAL AND COMMUNITY SERVICES,CSS BICESTER,MATERIALS,23/11/2020,9284166415,27.88,AMZNMKTPLACE AMAZON.CO
OXFORDSHIRE CC,"CHILDRENS, YOUNG PEOPLE AND FAMILIES",FAMILY SOLUTIONS PLUS NON-STAFF - NORTH,MATERIALS,23/11/2020,9284166423,229.99,AMZNMKTPLACE AMAZON.CO
OXFORDSHIRE CC,SOCIAL AND COMMUNITY SERVICES,CSS WALLINGFORD,CATERING PROVISIONS,23/11/2020,9284166497,10.40,WAITROSE 675
OXFORDSHIRE CC,"CHILDRENS, YOUNG PEOPLE AND FAMILIES",FAMILY SOLUTIONS PLUS NON-STAFF - NORTH,MATERIALS,23/11/2020,9284166427,9.00,AMAZON.CO.UK MY4MX3CI4
OXFORDSHIRE CC,SOCIAL AND COMMUNITY SERVICES,SCHOOLS FM CATERING AREA 2,MATERIALS,23/11/2020,9284166449,36.64,AMZNMKTPLACE AMAZON.CO
OXFORDSHIRE CC,CORPORATE CORE,SCHOOLS FM CATERING AREA 3,MATERIALS,23/11/2020,9284166489,26.52,AMAZON.CO.UK MY9TE74O4
OXFORDSHIRE CC,"CHILDRENS, YOUNG PEOPLE AND FAMILIES",CNTL EARLY HELP-RHIL,CATERING PROVISIONS,23/11/2020,9284166529,13.00,TESCO STORES 3293
OXFORDSHIRE CC,SOCIAL AND COMMUNITY SERVICES,LOOKED AFTER SOUTH,VEHICLE FUEL,23/11/2020,9284166535,17.80,TESCO PFS 3932
OXFORDSHIRE CC,"CHILDRENS, YOUNG PEOPLE AND FAMILIES","	MUSIC UNALLOCABLE",IT SOFTWARE,23/11/2020,9284166621,35.39,ADOBE CREATIVE CLOUD
OXFORDSHIRE CC,"CHILDRENS, YOUNG PEOPLE AND FAMILIES","	LEAVING CARE CITY 2",MATERIALS,23/11/2020,9284166631,7.99,AMAZON PRIME MY1H66OQ4
OXFORDSHIRE CC,"CHILDRENS, YOUNG PEOPLE AND FAMILIES",THAME E&A HOME,CATERING PROVISIONS,23/11/2020,9284166591,126.34,TESCO STORES 2038
OXFORDSHIRE CC,"CHILDRENS, YOUNG PEOPLE AND FAMILIES",THAME E&A HOME,HIRE OF ACCOMMODATION AND FACILITIES,23/11/2020,9284166653,10.00,PAYPAL  UPPER FARM
OXFORDSHIRE CC,SOCIAL AND COMMUNITY SERVICES,RESIDENTIAL STRATEGY,MATERIALS,23/11/2020,9284166673,12.50,TIMPSON LTD
OXFORDSHIRE CC,"CHILDRENS, YOUNG PEOPLE AND FAMILIES","	40 THE MOORS",CATERING PROVISIONS,23/11/2020,9284166741,169.51,SAINSBURYS (2243)
OXFORDSHIRE CC,ENVIRONMENT AND ECONOMY,HARD FM,MATERIALS,23/11/2020,9284166183,259.02,TLC SOUTHERN LTD
OXFORDSHIRE CC,ENVIRONMENT AND ECONOMY,HARD FM,MATERIALS,23/11/2020,9284166189,43.00,CLOVERS OF BERINSFIELD
OXFORDSHIRE CC,ENVIRONMENT AND ECONOMY,HARD FM,HARDWARE AND CROCKERY,23/11/2020,9284166193,551.76,JEWSONS
OXFORDSHIRE CC,ENVIRONMENT AND ECONOMY,HARD FM,HARDWARE AND CROCKERY,23/11/2020,9284166199,569.04,JEWSONS
OXFORDSHIRE CC,ENVIRONMENT AND ECONOMY,HARD FM,HARDWARE AND CROCKERY,23/11/2020,9284166203,51.14,SCREWFIX DIRECT
OXFORDSHIRE CC,ENVIRONMENT AND ECONOMY,HARD FM,MATERIALS,23/11/2020,9284166207,50.00,ARGOS LTD
OXFORDSHIRE CC,ENVIRONMENT AND ECONOMY,HARD FM,MATERIALS,23/11/2020,9284166215,3.34,AMAZON.CO.UK MY55C0CR4
OXFORDSHIRE CC,ENVIRONMENT AND ECONOMY,HARD FM,MATERIALS,23/11/2020,9284166219,35.70,AMAZON.CO.UK MY2U47LH4
OXFORDSHIRE CC,"CHILDRENS, YOUNG PEOPLE AND FAMILIES",THAME E&A HOME,DRUGS AND MEDICAL SUPPLIES,23/11/2020,9284166225,41.77,SUPERDRUG STORES PLC
OXFORDSHIRE CC,"CHILDRENS, YOUNG PEOPLE AND FAMILIES","	40 THE MOORS",CATERING PROVISIONS,23/11/2020,9284166231,13.00,TESCO STORE 2788
OXFORDSHIRE CC,"CHILDRENS, YOUNG PEOPLE AND FAMILIES","	40 THE MOORS",CATERING PROVISIONS,23/11/2020,9284167283,6.65,CO-OPERATIVE FOOD
OXFORDSHIRE CC,"CHILDRENS, YOUNG PEOPLE AND FAMILIES","	RESIDENTIAL STRATEGY",CATERING PROVISIONS,23/11/2020,9284167301,3.90,SAINSBURYS SACAT 0631
OXFORDSHIRE CC,SOCIAL AND COMMUNITY SERVICES,LEAVING CARE NORTH,CATERING PROVISIONS,23/11/2020,9284167313,.99,ALDI 10 775
OXFORDSHIRE CC,SOCIAL AND COMMUNITY SERVICES,LEAVING CARE NORTH,CATERING,23/11/2020,9284167319,21.45,WWW.JUST EAT.CO.UK
OXFORDSHIRE CC,"CHILDRENS, YOUNG PEOPLE AND FAMILIES","	AAC EQUIPMENT",PURCHASE OF IT EQUIPMENT,23/11/2020,9284167419,89.98,AMZNMKTPLACE AMAZON.CO
OXFORDSHIRE CC,"CHILDRENS, YOUNG PEOPLE AND FAMILIES","	AAC EQUIPMENT",PURCHASE OF IT EQUIPMENT,23/11/2020,9284167419,22.99,AMZNMKTPLACE AMAZON.CO
OXFORDSHIRE CC,"CHILDRENS, YOUNG PEOPLE AND FAMILIES",EYNSHAM,CATERING PROVISIONS,23/11/2020,9284166237,4.00,ASDA SUPERSTORE
OXFORDSHIRE CC,"CHILDRENS, YOUNG PEOPLE AND FAMILIES",THAME E&A HOME,CATERING PROVISIONS,23/11/2020,9284166243,1.00,SAINSBURYS SACAT 2096
OXFORDSHIRE CC,"CHILDRENS, YOUNG PEOPLE AND FAMILIES",DIDCOT MOVE-ON HOME,CATERING PROVISIONS,23/11/2020,9284166293,2.99,B&M 514 - DICOT
OXFORDSHIRE CC,"CHILDRENS, YOUNG PEOPLE AND FAMILIES",CNTL EARLY HELP-RHIL,MATERIALS,23/11/2020,9284166253,9.98,AMZNMKTPLACE AMAZON.CO
OXFORDSHIRE CC,"CHILDRENS, YOUNG PEOPLE AND FAMILIES",DIDCOT MOVE-ON HOME,CATERING PROVISIONS,23/11/2020,9284166299,5.25,B&M 514 - DICOT
OXFORDSHIRE CC,"CHILDRENS, YOUNG PEOPLE AND FAMILIES",DIDCOT MOVE-ON HOME,CATERING PROVISIONS,23/11/2020,9284166305,19.82,TESCO STORE 2413
OXFORDSHIRE CC,"CHILDRENS, YOUNG PEOPLE AND FAMILIES",WITNEY,CATERING PROVISIONS,23/11/2020,9284166329,8.05,SAINSBURYS SACAT 0632
OXFORDSHIRE CC,"CHILDRENS, YOUNG PEOPLE AND FAMILIES",DIDCOT MOVE-ON HOME,CATERING PROVISIONS,23/11/2020,9284166307,4.44,TESCO STORE 2413
OXFORDSHIRE CC,ENVIRONMENT AND ECONOMY,HARD FM,HARDWARE AND CROCKERY,20/11/2020,9279903055,13.98,SCREWFIX DIRECT
OXFORDSHIRE CC,ENVIRONMENT AND ECONOMY,HARD FM,HARDWARE AND CROCKERY,20/11/2020,9279903057,22.99,SCREWFIX DIRECT
OXFORDSHIRE CC,ENVIRONMENT AND ECONOMY,HARD FM,HARDWARE AND CROCKERY,20/11/2020,9279903059,13.98,SCREWFIX DIRECT
OXFORDSHIRE CC,ENVIRONMENT AND ECONOMY,COUNTY LIBRARY,GENERAL MAINTENANCE,20/11/2020,9279903061,148.50,WOLSELEY UK
OXFORDSHIRE CC,SOCIAL AND COMMUNITY SERVICES,DIDCOT MOVE-ON HOME,CATERING PROVISIONS,20/11/2020,9279903067,8.54,TESCO STORE 2413
OXFORDSHIRE CC,"CHILDRENS, YOUNG PEOPLE AND FAMILIES",CNTL EARLY HELP-RHIL,MATERIALS,20/11/2020,9279903071,26.79,AMZNMKTPLACE AMAZON.CO
OXFORDSHIRE CC,"CHILDRENS, YOUNG PEOPLE AND FAMILIES",CNTL EARLY HELP-RHIL,MATERIALS,20/11/2020,9279903073,154.35,BATH STAMP AND COIN SH
OXFORDSHIRE CC,ENVIRONMENT AND ECONOMY,"	FLEET OPERATIONS",CATERING,20/11/2020,9279903381,40.80,MILK AND MORE
OXFORDSHIRE CC,"CHILDRENS, YOUNG PEOPLE AND FAMILIES","	40 THE MOORS",MATERIALS,20/11/2020,9279903387,25.12,AMAZON.CO.UK M745F3W14
OXFORDSHIRE CC,"CHILDRENS, YOUNG PEOPLE AND FAMILIES","	40 THE MOORS",MATERIALS,20/11/2020,9279903389,39.99,AMZNMKTPLACE AMAZON.CO
OXFORDSHIRE CC,"CHILDRENS, YOUNG PEOPLE AND FAMILIES","	40 THE MOORS",MATERIALS,20/11/2020,9279903391,15.99,AMAZON.CO.UK M74NZ8WU4
OXFORDSHIRE CC,"CHILDRENS, YOUNG PEOPLE AND FAMILIES","	40 THE MOORS",MATERIALS,20/11/2020,9279903393,33.98,AMZNMKTPLACE
OXFORDSHIRE CC,SOCIAL AND COMMUNITY SERVICES,CSS - OXFORD,CATERING PROVISIONS,20/11/2020,9279903299,220.48,TESCO STORE 2994
OXFORDSHIRE CC,"CHILDRENS, YOUNG PEOPLE AND FAMILIES","	LEAVING CARE CITY 2",MATERIALS,20/11/2020,9279903305,12.44,AMAZON.CO.UK M732R6WP4
OXFORDSHIRE CC,"CHILDRENS, YOUNG PEOPLE AND FAMILIES",EYNSHAM,DRUGS AND MEDICAL SUPPLIES,20/11/2020,9279903309,11.49,LLOYDS PHARMACY
OXFORDSHIRE CC,SOCIAL AND COMMUNITY SERVICES,CSS BICESTER,MATERIALS,20/11/2020,9279903001,27.99,AMAZON.CO.UK M79B61YB4
OXFORDSHIRE CC,"CHILDRENS, YOUNG PEOPLE AND FAMILIES",THAME E&A HOME,MATERIALS,20/11/2020,9279903003,24.99,AMZNMKTPLACE AMAZON.CO
OXFORDSHIRE CC,"CHILDRENS, YOUNG PEOPLE AND FAMILIES","	LOOKED AFTER SOUTH",OTHER EXPENSES,20/11/2020,9279903023,23.49,CO-OPERATIVE FOOD
OXFORDSHIRE CC,SOCIAL AND COMMUNITY SERVICES,CSS WITNEY,"SUPPLIES, STATIONERY AND MATERIALS",20/11/2020,9279903019,34.66,EUROFFICE.CO.UK
OXFORDSHIRE CC,SOCIAL AND COMMUNITY SERVICES,CSS - ABINGDON,MATERIALS,20/11/2020,9279903031,329.00,AMAZON.CO.UK M75WS5Y34
OXFORDSHIRE CC,"CHILDRENS, YOUNG PEOPLE AND FAMILIES",THAME E&A HOME,VEHICLE FUEL,20/11/2020,9279903033,6.10,THAME BP SF CONNECT
OXFORDSHIRE CC,"CHILDRENS, YOUNG PEOPLE AND FAMILIES","	40 THE MOORS",EQUIPMENT,20/11/2020,9279903331,10.99,SAINSBURYS SACAT 0600
OXFORDSHIRE CC,"CHILDRENS, YOUNG PEOPLE AND FAMILIES","	LEAVING CARE CITY 2",PAYMENTS TO TRANSPORT OPERATORS,20/11/2020,9279903343,45.40,WWW.GWR.COM
OXFORDSHIRE CC,"CHILDRENS, YOUNG PEOPLE AND FAMILIES",UASC 16&17,MATERIALS,20/11/2020,9279903037,6.95,AMZNMKTPLACE
OXFORDSHIRE CC,"CHILDRENS, YOUNG PEOPLE AND FAMILIES",UASC 16&17,OTHER EXPENSES,20/11/2020,9279903039,2.00,SAINSBURYS SACAT 0631
OXFORDSHIRE CC,ENVIRONMENT AND ECONOMY,HARD FM,HARDWARE AND CROCKERY,20/11/2020,9279903041,5.44,JOHN NICHOLLS KIDLINGT
OXFORDSHIRE CC,ENVIRONMENT AND ECONOMY,HARD FM,HIRE OF EQUIPMENT,20/11/2020,9279903043,87.78,DIDCOT PLANT LTD
OXFORDSHIRE CC,ENVIRONMENT AND ECONOMY,HARD FM,HARDWARE AND CROCKERY,20/11/2020,9279903045,28.80,WICKES BANBURY
OXFORDSHIRE CC,ENVIRONMENT AND ECONOMY,HARD FM,HARDWARE AND CROCKERY,20/11/2020,9279903047,79.97,C BREWER & SONS LT
OXFORDSHIRE CC,ENVIRONMENT AND ECONOMY,HARD FM,MATERIALS,20/11/2020,9279903049,27.96,AMAZON.CO.UK M76OF6YB4
OXFORDSHIRE CC,"CHILDRENS, YOUNG PEOPLE AND FAMILIES",THAME E&A HOME,CATERING PROVISIONS,20/11/2020,9279903051,3.70,TESCO STORE 2994
OXFORDSHIRE CC,ENVIRONMENT AND ECONOMY,HARD FM,HARDWARE AND CROCKERY,20/11/2020,9279903053,40.76,WICKES OXFORD
OXFORDSHIRE CC,SOCIAL AND COMMUNITY SERVICES,CSS WITNEY,MATERIALS,20/11/2020,9279903361,6.99,AMZNMKTPLACE
OXFORDSHIRE CC,SOCIAL AND COMMUNITY SERVICES,CSS WANTAGE,CATERING PROVISIONS,20/11/2020,9279903363,19.50,SAINSBURYS SACAT 2244
OXFORDSHIRE CC,"CHILDRENS, YOUNG PEOPLE AND FAMILIES","	AAC EQUIPMENT",PURCHASE OF IT EQUIPMENT,20/11/2020,9279903365,13.96,AMZNMKTPLACE AMAZON.CO
OXFORDSHIRE CC,"CHILDRENS, YOUNG PEOPLE AND FAMILIES","	AAC EQUIPMENT",PURCHASE OF IT EQUIPMENT,20/11/2020,9279903367,5.79,AMZNMKTPLACE
OXFORDSHIRE CC,"CHILDRENS, YOUNG PEOPLE AND FAMILIES",HOUSE PROJECT,"SUPPLIES, STATIONERY AND MATERIALS",20/11/2020,9279903209,24.00,LEOPARDPRESS CHOICE
OXFORDSHIRE CC,"CHILDRENS, YOUNG PEOPLE AND FAMILIES","	FPT NORTH",CATERING PROVISIONS,20/11/2020,9279903207,15.00,MARKS&SPENCER PLC
OXFORDSHIRE CC,"CHILDRENS, YOUNG PEOPLE AND FAMILIES","	LEAVING CARE NORTH",CATERING PROVISIONS,20/11/2020,9279903211,3.50,HAILEY EXPRESS
OXFORDSHIRE CC,CORPORATE CORE,"MARKETING, COMMUNICATIONS & ENGAGEMENT",MATERIALS,20/11/2020,9279903223,24.98,LINKEDIN-587 3972653
OXFORDSHIRE CC,CORPORATE CORE,"MARKETING, COMMUNICATIONS & ENGAGEMENT",IT SOFTWARE,20/11/2020,9279903225,500.00,GOOGLE  ADS4896546035
OXFORDSHIRE CC,CORPORATE CORE,"MARKETING, COMMUNICATIONS & ENGAGEMENT","PUBLICITY, PROMOTIONS AND ADVERTISEMENT",20/11/2020,9279903227,19.50,SNAP  ADS
OXFORDSHIRE CC,"CHILDRENS, YOUNG PEOPLE AND FAMILIES",HOUSE PROJECT,CATERING,20/11/2020,9279903235,29.98,DOMINO S PIZZA
OXFORDSHIRE CC,"CHILDRENS, YOUNG PEOPLE AND FAMILIES","	OCCG GRANT",CATERING PROVISIONS,20/11/2020,9279903237,12.15,TESCO STORES 4377
OXFORDSHIRE CC,"CHILDRENS, YOUNG PEOPLE AND FAMILIES",THAME E&A HOME,CATERING PROVISIONS,20/11/2020,9279903233,2.99,SAINSBURYS SACAT 2096
OXFORDSHIRE CC,"CHILDRENS, YOUNG PEOPLE AND FAMILIES","	OCCG GRANT",CATERING,20/11/2020,9279903239,4.79,MCDONALDS
OXFORDSHIRE CC,"CHILDRENS, YOUNG PEOPLE AND FAMILIES","	OCCG GRANT",CATERING,20/11/2020,9279903241,3.55,COSTA COWLEY ROAD OXFO
OXFORDSHIRE CC,"CHILDRENS, YOUNG PEOPLE AND FAMILIES","	OCCG GRANT",CATERING PROVISIONS,20/11/2020,9279903243,5.50,TESCO STORE 2990
OXFORDSHIRE CC,"CHILDRENS, YOUNG PEOPLE AND FAMILIES","	LEAVING CARE CITY 1",OTHER EXPENSES,20/11/2020,9279903245,30.48,TESCO STORE 2994
OXFORDSHIRE CC,"CHILDRENS, YOUNG PEOPLE AND FAMILIES","	LEAVING CARE CITY 1",OTHER EXPENSES,20/11/2020,9279903247,39.00,TESCO STORE 2994
OXFORDSHIRE CC,"CHILDRENS, YOUNG PEOPLE AND FAMILIES",0-5 STDS & PROGRESS,"SUPPLIES, STATIONERY AND MATERIALS",20/11/2020,9279903257,19.90,AMZNMKTPLACE
OXFORDSHIRE CC,"CHILDRENS, YOUNG PEOPLE AND FAMILIES","	LEAVING CARE NORTH",PAYMENTS TO TRANSPORT OPERATORS,20/11/2020,9279903103,7.00,BANBURY STATION T/O
OXFORDSHIRE CC,SOCIAL AND COMMUNITY SERVICES,CSS - BANBURY,MATERIALS,20/11/2020,9279903105,13.98,AMZNMKTPLACE AMAZON.CO
OXFORDSHIRE CC,CORPORATE CORE,SCHOOLS FM CATERING AREA 3,MATERIALS,20/11/2020,9279903107,23.97,AMZNMKTPLACE
OXFORDSHIRE CC,SOCIAL AND COMMUNITY SERVICES,WANTAGE LIBRARY,CATERING PROVISIONS,20/11/2020,9279903413,17.50,WILKO RETAIL LIMITED
OXFORDSHIRE CC,"CHILDRENS, YOUNG PEOPLE AND FAMILIES","	LOOKED AFTER CITY 2",OTHER EXPENSES,20/11/2020,9279903415,5.70,JERICHO STORE
OXFORDSHIRE CC,"CHILDRENS, YOUNG PEOPLE AND FAMILIES","	LEAVING CARE SOUTH",MATERIALS,20/11/2020,9279903419,22.90,AMZNMKTPLACE AMAZON.CO
OXFORDSHIRE CC,"CHILDRENS, YOUNG PEOPLE AND FAMILIES","	LEAVING CARE SOUTH",MATERIALS,20/11/2020,9279903421,37.78,AMZNMKTPLACE AMAZON.CO
OXFORDSHIRE CC,ENVIRONMENT AND ECONOMY,SIP MANAGEMENT,MANAGEMENT CONSULTANT FEES,20/11/2020,9279903425,228.00,WESTMINSTER FORUM PROJ
OXFORDSHIRE CC,"CHILDRENS, YOUNG PEOPLE AND FAMILIES",EYNSHAM,MATERIALS,20/11/2020,9279903427,20.40,AMZNMKTPLACE
OXFORDSHIRE CC,"CHILDRENS, YOUNG PEOPLE AND FAMILIES",EYNSHAM,CATERING PROVISIONS,20/11/2020,9279903429,47.25,TESCO STORE 2994
OXFORDSHIRE CC,SOCIAL AND COMMUNITY SERVICES,LOOKED AFTER SOUTH,CLOTHING AND UNIFORMS,20/11/2020,9279903119,59.99,FOOT LOCKER EUROPE.COM
OXFORDSHIRE CC,SOCIAL AND COMMUNITY SERVICES,LOOKED AFTER SOUTH,VEHICLE FUEL,20/11/2020,9279903121,41.76,TESCO PFS 3932
OXFORDSHIRE CC,"CHILDRENS, YOUNG PEOPLE AND FAMILIES",FSP NON-STAFFING - CENTRAL,CATERING PROVISIONS,20/11/2020,9279903433,1.50,TESCO STORE 2990
OXFORDSHIRE CC,"CHILDRENS, YOUNG PEOPLE AND FAMILIES",THAME E&A HOME,CATERING PROVISIONS,20/11/2020,9279903135,18.45,MILK AND MORE
OXFORDSHIRE CC,ENVIRONMENT AND ECONOMY,WASTE REDUCTION GEN,OTHER TRAINING COURSES AND QUALIFICATION,20/11/2020,9279903137,123.00,COMMSCONF.COM
OXFORDSHIRE CC,"CHILDRENS, YOUNG PEOPLE AND FAMILIES",FAMILY SOLUTIONS PLUS NON-STAFF � SOUTH,HIRE OF ACCOMMODATION AND FACILITIES,20/11/2020,9279903139,340.00,SOUTHERNWOOD B&B
OXFORDSHIRE CC,"CHILDRENS, YOUNG PEOPLE AND FAMILIES","	RIVERSIDE CENTRE",MATERIALS,20/11/2020,9279903147,28.96,CHAIN REACTION CYCLES
OXFORDSHIRE CC,"CHILDRENS, YOUNG PEOPLE AND FAMILIES","	MUSIC UNALLOCABLE",HARDWARE AND CROCKERY,20/11/2020,9279903149,17.72,SCREWFIX DIRECT
OXFORDSHIRE CC,CORPORATE CORE,INCOME TEAM,PAYMENT TO GOVERNMENT DEPARTMENTS,20/11/2020,9279903453,1.50,WWW.GOV.UK
OXFORDSHIRE CC,"CHILDRENS, YOUNG PEOPLE AND FAMILIES",EYNSHAM,CATERING EQUIPMENT,20/11/2020,9279903459,46.75,SERVAST LTD SMEG PARTS
OXFORDSHIRE CC,CORPORATE CORE,,"SUPPLIES, STATIONERY AND MATERIALS",20/11/2020,9279903461,14.04,LYRECO UK LTD
OXFORDSHIRE CC,CORPORATE CORE,CATERING MANAGEMENT SOFT FM,CATERING,20/11/2020,9279903463,69.01,BRAKE BROS LTD
OXFORDSHIRE CC,"CHILDRENS, YOUNG PEOPLE AND FAMILIES","	HOME SUPPORT",STATIONERY,20/11/2020,9279903157,25.39,VIKING UK
OXFORDSHIRE CC,ENTERPRISEVC,,CAR LEASING - PRIVATE RENTALS,19/11/2020,9276874245,194.76,ENTERPRISE RENT-A-CAR
OXFORDSHIRE CC,ENTERPRISEVC,,CAR LEASING - PRIVATE RENTALS,19/11/2020,9276874251,281.52,ENTERPRISE RENT-A-CAR
OXFORDSHIRE CC,ENTERPRISEVC,,CAR LEASING - PRIVATE RENTALS,19/11/2020,9276874135,462.22,ENTERPRISE RENT-A-CAR
OXFORDSHIRE CC,ENTERPRISEVC,,CAR LEASING - PRIVATE RENTALS,19/11/2020,9276874139,569.90,ENTERPRISE RENT-A-CAR
OXFORDSHIRE CC,ENTERPRISEVC,,CAR LEASING - PRIVATE RENTALS,19/11/2020,9276874141,290.90,ENTERPRISE RENT-A-CAR
OXFORDSHIRE CC,ENTERPRISEVC,,CAR LEASING - PRIVATE RENTALS,19/11/2020,9276874145,390.60,ENTERPRISE RENT-A-CAR
OXFORDSHIRE CC,ENTERPRISEVC,,CAR LEASING - PRIVATE RENTALS,19/11/2020,9276874149,802.45,ENTERPRISE RENT-A-CAR
OXFORDSHIRE CC,ENTERPRISEVC,,CAR LEASING - PRIVATE RENTALS,19/11/2020,9276874151,314.34,ENTERPRISE RENT-A-CAR
OXFORDSHIRE CC,ENTERPRISEVC,,CAR LEASING - PRIVATE RENTALS,19/11/2020,9276874155,402.50,ENTERPRISE RENT-A-CAR
OXFORDSHIRE CC,ENTERPRISEVC,,CAR LEASING - PRIVATE RENTALS,19/11/2020,9276874187,447.31,ENTERPRISE RENT-A-CAR
OXFORDSHIRE CC,ENTERPRISEVC,,CAR LEASING - PRIVATE RENTALS,19/11/2020,9276874159,290.90,ENTERPRISE RENT-A-CAR
OXFORDSHIRE CC,ENTERPRISEVC,,CAR LEASING - PRIVATE RENTALS,19/11/2020,9276874163,290.90,ENTERPRISE RENT-A-CAR
OXFORDSHIRE CC,ENTERPRISEVC,,CAR LEASING - PRIVATE RENTALS,19/11/2020,9276874165,402.50,ENTERPRISE RENT-A-CAR
OXFORDSHIRE CC,ENTERPRISEVC,,CAR LEASING - PRIVATE RENTALS,19/11/2020,9276874169,462.22,ENTERPRISE RENT-A-CAR
OXFORDSHIRE CC,ENTERPRISEVC,,CAR LEASING - PRIVATE RENTALS,19/11/2020,9276874173,462.22,ENTERPRISE RENT-A-CAR
OXFORDSHIRE CC,ENTERPRISEVC,,CAR LEASING - PRIVATE RENTALS,19/11/2020,9276874177,462.22,ENTERPRISE RENT-A-CAR
OXFORDSHIRE CC,ENTERPRISEVC,,CAR LEASING - PRIVATE RENTALS,19/11/2020,9276874179,329.96,ENTERPRISE RENT-A-CAR
OXFORDSHIRE CC,ENTERPRISEVC,,CAR LEASING - PRIVATE RENTALS,19/11/2020,9276874185,568.56,ENTERPRISE RENT-A-CAR
OXFORDSHIRE CC,SOCIAL AND COMMUNITY SERVICES,LOOKED AFTER SOUTH,CATERING,19/11/2020,9276873617,15.42,MCDONALDS 624
OXFORDSHIRE CC,"CHILDRENS, YOUNG PEOPLE AND FAMILIES",FAMILY SOLUTIONS PLUS NON-STAFF � SOUTH,HIRE OF ACCOMMODATION AND FACILITIES,19/11/2020,9276873633,500.00,SOUTHERNWOOD B&B
OXFORDSHIRE CC,ENTERPRISEVC,,CAR LEASING - PRIVATE RENTALS,19/11/2020,9276874191,447.31,ENTERPRISE RENT-A-CAR
OXFORDSHIRE CC,ENTERPRISEVC,,CAR LEASING - PRIVATE RENTALS,19/11/2020,9276874193,389.52,ENTERPRISE RENT-A-CAR
OXFORDSHIRE CC,ENTERPRISEVC,,CAR LEASING - PRIVATE RENTALS,19/11/2020,9276874213,304.20,ENTERPRISE RENT-A-CAR
OXFORDSHIRE CC,ENTERPRISEVC,,CAR LEASING - PRIVATE RENTALS,19/11/2020,9276874217,389.52,ENTERPRISE RENT-A-CAR
OXFORDSHIRE CC,ENTERPRISEVC,,CAR LEASING - PRIVATE RENTALS,19/11/2020,9276874197,281.52,ENTERPRISE RENT-A-CAR
OXFORDSHIRE CC,ENTERPRISEVC,,CAR LEASING - PRIVATE RENTALS,19/11/2020,9276874201,281.52,ENTERPRISE RENT-A-CAR
OXFORDSHIRE CC,ENTERPRISEVC,,CAR LEASING - PRIVATE RENTALS,19/11/2020,9276874219,304.20,ENTERPRISE RENT-A-CAR
OXFORDSHIRE CC,ENTERPRISEVC,,CAR LEASING - PRIVATE RENTALS,19/11/2020,9276874205,447.31,ENTERPRISE RENT-A-CAR
OXFORDSHIRE CC,ENTERPRISEVC,,CAR LEASING - PRIVATE RENTALS,19/11/2020,9276874207,447.31,ENTERPRISE RENT-A-CAR
OXFORDSHIRE CC,ENTERPRISEVC,,CAR LEASING - PRIVATE RENTALS,19/11/2020,9276874211,304.20,ENTERPRISE RENT-A-CAR
OXFORDSHIRE CC,"CHILDRENS, YOUNG PEOPLE AND FAMILIES",FSP NON-STAFFING - CENTRAL,OTHER TRANSPORT ARRANGEMENTS,19/11/2020,9276873667,39.00,OXFORD BUS COMPANY
OXFORDSHIRE CC,"CHILDRENS, YOUNG PEOPLE AND FAMILIES","	RIVERSIDE CENTRE",MATERIALS,19/11/2020,9276873649,8.89,AMZNMKTPLACE
OXFORDSHIRE CC,CORPORATE CORE,"MARKETING, COMMUNICATIONS & ENGAGEMENT","PUBLICITY, PROMOTIONS AND ADVERTISEMENT",19/11/2020,9276873687,500.00,FACEBK J2SWHXW8Z2
OXFORDSHIRE CC,ENTERPRISEVC,,CAR LEASING - PRIVATE RENTALS,19/11/2020,9276874223,21.29,ENTERPRISE RENT-A-CAR
OXFORDSHIRE CC,ENTERPRISEVC,,CAR LEASING - PRIVATE RENTALS,19/11/2020,9276874225,378.00,ENTERPRISE RENT-A-CAR
OXFORDSHIRE CC,ENTERPRISEVC,,CAR LEASING - PRIVATE RENTALS,19/11/2020,9276874249,281.52,ENTERPRISE RENT-A-CAR
OXFORDSHIRE CC,ENTERPRISEVC,,CAR LEASING - PRIVATE RENTALS,19/11/2020,9276874229,551.52,ENTERPRISE RENT-A-CAR
OXFORDSHIRE CC,ENTERPRISEVC,,CAR LEASING - PRIVATE RENTALS,19/11/2020,9276874233,207.76,ENTERPRISE RENT-A-CAR
OXFORDSHIRE CC,ENTERPRISEVC,,CAR LEASING - PRIVATE RENTALS,19/11/2020,9276874235,447.31,ENTERPRISE RENT-A-CAR
OXFORDSHIRE CC,ENTERPRISEVC,,CAR LEASING - PRIVATE RENTALS,19/11/2020,9276874237,551.52,ENTERPRISE RENT-A-CAR
OXFORDSHIRE CC,ENTERPRISEVC,,CAR LEASING - PRIVATE RENTALS,19/11/2020,9276874243,389.52,ENTERPRISE RENT-A-CAR
OXFORDSHIRE CC,"CHILDRENS, YOUNG PEOPLE AND FAMILIES","	LEAVING CARE SOUTH",FURNITURE,19/11/2020,9276874041,867.00,BED CARE LTD
OXFORDSHIRE CC,"CHILDRENS, YOUNG PEOPLE AND FAMILIES","	LEAVING CARE SOUTH",MATERIALS,19/11/2020,9276874043,17.99,AMZNMKTPLACE AMAZON.CO
OXFORDSHIRE CC,CORPORATE CORE,ICT OPERATIONS & MAI,MATERIALS,19/11/2020,9276874047,7.99,AMZNMKTPLACE
OXFORDSHIRE CC,"CHILDRENS, YOUNG PEOPLE AND FAMILIES",THAME E&A HOME,MATERIALS,19/11/2020,9276874055,-7.99,AMAZON PRIME
OXFORDSHIRE CC,"CHILDRENS, YOUNG PEOPLE AND FAMILIES",THAME E&A HOME,CATERING PROVISIONS,19/11/2020,9276873467,2.80,SAINSBURYS SACAT 2096
OXFORDSHIRE CC,"CHILDRENS, YOUNG PEOPLE AND FAMILIES",CNTL EARLY HELP-RHIL,MATERIALS,19/11/2020,9276873471,179.99,ARGOS LTD
OXFORDSHIRE CC,"CHILDRENS, YOUNG PEOPLE AND FAMILIES","	RIVERSIDE CENTRE",HARDWARE AND CROCKERY,19/11/2020,9276874083,10.43,B & Q 1156
OXFORDSHIRE CC,SOCIAL AND COMMUNITY SERVICES,FLEET OPERATIONS,TECHNICAL AND PROFESSIONAL CONSULTANT F,19/11/2020,9276874093,61.13,WWW.EYELETS.CO.UK
OXFORDSHIRE CC,CORPORATE CORE,,"SUPPLIES, STATIONERY AND MATERIALS",19/11/2020,9276874095,59.72,LYRECO UK LTD
OXFORDSHIRE CC,"CHILDRENS, YOUNG PEOPLE AND FAMILIES",FAMILY SOLUTIONS PLUS NON-STAFF - NORTH,TELEPHONE - EQUIPMENT,19/11/2020,9276873505,10.00,VESTA VODAFONE
OXFORDSHIRE CC,SOCIAL AND COMMUNITY SERVICES,DIDCOT MOVE-ON HOME,CATERING PROVISIONS,19/11/2020,9276873507,19.89,SAINSBURYS 2067
OXFORDSHIRE CC,"CHILDRENS, YOUNG PEOPLE AND FAMILIES",FAMILY SOLUTIONS PLUS NON-STAFF - NORTH,POSTAGE AND DELIVERY,19/11/2020,9276873541,2.18,ROYAL MAIL GROUP LTD
OXFORDSHIRE CC,"CHILDRENS, YOUNG PEOPLE AND FAMILIES","	LOOKED AFTER CITY 1",OTHER EXPENSES,19/11/2020,9276873517,249.97,WF  WAYFAIR 3461206174
OXFORDSHIRE CC,"CHILDRENS, YOUNG PEOPLE AND FAMILIES",STH EARLY HELP-ABNDN,"BOOKS, DVDS AND CDS",19/11/2020,9276873535,159.80,AMAZON.CO.UK M75GB6RJ4
OXFORDSHIRE CC,ENTERPRISEVC,,CAR LEASING - PRIVATE RENTALS,19/11/2020,9276874105,"1,025.70",ENTERPRISE RENT-A-CAR
OXFORDSHIRE CC,ENTERPRISEVC,,CAR LEASING - PRIVATE RENTALS,19/11/2020,9276874109,290.90,ENTERPRISE RENT-A-CAR
OXFORDSHIRE CC,CORPORATE CORE,,"SUPPLIES, STATIONERY AND MATERIALS",19/11/2020,9276874097,16.80,LYRECO UK LTD
OXFORDSHIRE CC,ENTERPRISEVC,,CAR LEASING - PRIVATE RENTALS,19/11/2020,9276874099,918.54,ENTERPRISE RENT-A-CAR
OXFORDSHIRE CC,ENTERPRISEVC,,CAR LEASING - PRIVATE RENTALS,19/11/2020,9276874101,918.54,ENTERPRISE RENT-A-CAR
OXFORDSHIRE CC,ENTERPRISEVC,,CAR LEASING - PRIVATE RENTALS,19/11/2020,9276874111,462.22,ENTERPRISE RENT-A-CAR
OXFORDSHIRE CC,ENTERPRISEVC,,CAR LEASING - PRIVATE RENTALS,19/11/2020,9276874113,290.90,ENTERPRISE RENT-A-CAR
OXFORDSHIRE CC,ENTERPRISEVC,,CAR LEASING - PRIVATE RENTALS,19/11/2020,9276874103,462.22,ENTERPRISE RENT-A-CAR
OXFORDSHIRE CC,ENTERPRISEVC,,CAR LEASING - PRIVATE RENTALS,19/11/2020,9276874117,314.34,ENTERPRISE RENT-A-CAR
OXFORDSHIRE CC,ENTERPRISEVC,,CAR LEASING - PRIVATE RENTALS,19/11/2020,9276874119,402.50,ENTERPRISE RENT-A-CAR
OXFORDSHIRE CC,"CHILDRENS, YOUNG PEOPLE AND FAMILIES",CSC COVID-19,TELEPHONE - EQUIPMENT,19/11/2020,9276873545,10.00,VESTA   VODAFONE TOPUP
OXFORDSHIRE CC,"CHILDRENS, YOUNG PEOPLE AND FAMILIES",CSC COVID-19,TELEPHONE - EQUIPMENT,19/11/2020,9276873547,10.00,VESTA VODAFONE
OXFORDSHIRE CC,"CHILDRENS, YOUNG PEOPLE AND FAMILIES",FAMILY SOLUTIONS PLUS NON-STAFF - NORTH,MATERIALS,19/11/2020,9276873551,10.00,TESCO ONLINE
OXFORDSHIRE CC,ENVIRONMENT AND ECONOMY,"	MOUNT HOUSE",MATERIALS,19/11/2020,9276873555,10.31,AMAZON.CO.UK M75O16RT4
OXFORDSHIRE CC,"CHILDRENS, YOUNG PEOPLE AND FAMILIES","	LEAVING CARE NORTH",CLOTHING AND UNIFORMS,19/11/2020,9276873561,11.99,NEXT DIRECTORY
OXFORDSHIRE CC,SOCIAL AND COMMUNITY SERVICES,CSS WALLINGFORD,MATERIALS,19/11/2020,9276873567,13.59,AMZNMKTPLACE AMAZON.CO
OXFORDSHIRE CC,SOCIAL AND COMMUNITY SERVICES,CSS WALLINGFORD,MATERIALS,19/11/2020,9276873569,67.95,AMZNMKTPLACE AMAZON.CO
OXFORDSHIRE CC,SOCIAL AND COMMUNITY SERVICES,CSS WALLINGFORD,MATERIALS,19/11/2020,9276873571,3.68,AMZNMKTPLACE AMAZON.CO
OXFORDSHIRE CC,SOCIAL AND COMMUNITY SERVICES,CSS WALLINGFORD,MATERIALS,19/11/2020,9276873575,54.99,AMZNMKTPLACE AMAZON.CO
OXFORDSHIRE CC,SOCIAL AND COMMUNITY SERVICES,CSS WALLINGFORD,MATERIALS,19/11/2020,9276873577,35.99,AMZNMKTPLACE AMAZON.CO
OXFORDSHIRE CC,ENTERPRISEVC,,CAR LEASING - PRIVATE RENTALS,19/11/2020,9276874123,314.34,ENTERPRISE RENT-A-CAR
OXFORDSHIRE CC,ENTERPRISEVC,,CAR LEASING - PRIVATE RENTALS,19/11/2020,9276874125,569.90,ENTERPRISE RENT-A-CAR
OXFORDSHIRE CC,ENTERPRISEVC,,CAR LEASING - PRIVATE RENTALS,19/11/2020,9276874129,462.22,ENTERPRISE RENT-A-CAR
OXFORDSHIRE CC,ENTERPRISEVC,,CAR LEASING - PRIVATE RENTALS,19/11/2020,9276874131,770.56,ENTERPRISE RENT-A-CAR
OXFORDSHIRE CC,"CHILDRENS, YOUNG PEOPLE AND FAMILIES",THAME E&A HOME,MATERIALS,19/11/2020,9276873319,49.98,AMZNMKTPLACE
OXFORDSHIRE CC,"CHILDRENS, YOUNG PEOPLE AND FAMILIES","	LEAVING CARE SOUTH",OTHER EXPENSES,19/11/2020,9276873345,100.00,JCB BODYSHOPS
OXFORDSHIRE CC,CORPORATE CORE,CATERING MANAGEMENT SOFT FM,MATERIALS,19/11/2020,9276873353,10.94,AMZNMKTPLACE
OXFORDSHIRE CC,CORPORATE CORE,CATERING MANAGEMENT SOFT FM,"SUPPLIES, STATIONERY AND MATERIALS",19/11/2020,9276873357,73.43,WHSMITH.CO.UK
OXFORDSHIRE CC,"CHILDRENS, YOUNG PEOPLE AND FAMILIES",UASC 16&17,TRANSPORT TO SCHOOL,19/11/2020,9276873383,13.80,BANBURY STATION T/O
OXFORDSHIRE CC,CORPORATE CORE,CATERING MANAGEMENT SOFT FM,MATERIALS,19/11/2020,9276873361,3.97,AMAZON.CO.UK M78215RP4
OXFORDSHIRE CC,SOCIAL AND COMMUNITY SERVICES,CSS - ABINGDON,MATERIALS,19/11/2020,9276873369,12.99,AMZNMKTPLACE
OXFORDSHIRE CC,"CHILDRENS, YOUNG PEOPLE AND FAMILIES","	40 THE MOORS",MATERIALS,19/11/2020,9276873987,25.12,AMAZON.CO.UK M79479R74
OXFORDSHIRE CC,"CHILDRENS, YOUNG PEOPLE AND FAMILIES",UASC 16&17,TRANSPORT TO SCHOOL,19/11/2020,9276873387,30.00,1617SAVER RAILCARD
OXFORDSHIRE CC,"CHILDRENS, YOUNG PEOPLE AND FAMILIES",UASC 16&17,TRANSPORT TO SCHOOL,19/11/2020,9276873389,30.00,1617SAVER RAILCARD
OXFORDSHIRE CC,ENVIRONMENT AND ECONOMY,HARD FM,HARDWARE AND CROCKERY,19/11/2020,9276873393,8.97,B AND Q
OXFORDSHIRE CC,ENVIRONMENT AND ECONOMY,HARD FM,EQUIPMENT,19/11/2020,9276873397,35.42,WILTS ELECTRICAL
OXFORDSHIRE CC,ENVIRONMENT AND ECONOMY,HARD FM,GENERAL MAINTENANCE,19/11/2020,9276873401,81.25,WOLSELEY UK
OXFORDSHIRE CC,ENVIRONMENT AND ECONOMY,COUNTY LIBRARY,GENERAL MAINTENANCE,19/11/2020,9276873405,62.64,WOLSELEY UK
OXFORDSHIRE CC,SOCIAL AND COMMUNITY SERVICES,CSS BICESTER,CATERING PROVISIONS,19/11/2020,9276873413,16.70,ALDI 49 775
OXFORDSHIRE CC,"CHILDRENS, YOUNG PEOPLE AND FAMILIES",FSP NON-STAFFING - CENTRAL,CATERING PROVISIONS,19/11/2020,9276874031,5.00,WWW.SECURE-PAYMENT-SER
OXFORDSHIRE CC,"CHILDRENS, YOUNG PEOPLE AND FAMILIES","	LEAVING CARE SOUTH",MATERIALS,19/11/2020,9276874039,39.99,AMZNMKTPLACE AMAZON.CO
OXFORDSHIRE CC,"CHILDRENS, YOUNG PEOPLE AND FAMILIES","	40 THE MOORS",TELEPHONE - EQUIPMENT,19/11/2020,9276873449,30.00,EE TOPUP  VESTA
OXFORDSHIRE CC,SOCIAL AND COMMUNITY SERVICES,UASC 16&17,VEHICLE FUEL,19/11/2020,9276873453,20.20,TESCO PAY AT PUMP 4267
OXFORDSHIRE CC,SOCIAL AND COMMUNITY SERVICES,DIDCOT MOVE-ON HOME,CATERING PROVISIONS,19/11/2020,9276873457,.80,SAINSBURYS SACAT 2067
OXFORDSHIRE CC,"CHILDRENS, YOUNG PEOPLE AND FAMILIES",KINGFISHER,CATERING PROVISIONS,19/11/2020,9276873697,17.12,LIDL GB  HIGH WYCOMBE
OXFORDSHIRE CC,CORPORATE CORE,"MARKETING, COMMUNICATIONS & ENGAGEMENT","PUBLICITY, PROMOTIONS AND ADVERTISEMENT",19/11/2020,9276873691,18.80,SNAP  ADS
OXFORDSHIRE CC,"CHILDRENS, YOUNG PEOPLE AND FAMILIES","	OCCG GRANT",CATERING PROVISIONS,19/11/2020,9276873699,7.65,SAINSBURYS SAC2305SAC
OXFORDSHIRE CC,"CHILDRENS, YOUNG PEOPLE AND FAMILIES","	OCCG GRANT",CATERING PROVISIONS,19/11/2020,9276873703,11.13,TESCO STORE 2994
OXFORDSHIRE CC,"CHILDRENS, YOUNG PEOPLE AND FAMILIES","	OCCG GRANT",CATERING PROVISIONS,19/11/2020,9276873707,10.98,ALDI STORES 775-142
OXFORDSHIRE CC,"CHILDRENS, YOUNG PEOPLE AND FAMILIES","	OCCG GRANT",CATERING PROVISIONS,19/11/2020,9276873713,3.47,LIDL GB WITNEY
OXFORDSHIRE CC,"CHILDRENS, YOUNG PEOPLE AND FAMILIES","	OCCG GRANT",CATERING,19/11/2020,9276873725,6.21,MCDONALDS
OXFORDSHIRE CC,ENTERPRISEVC,,CAR LEASING - PRIVATE RENTALS,19/11/2020,9276874255,447.31,ENTERPRISE RENT-A-CAR
OXFORDSHIRE CC,"CHILDRENS, YOUNG PEOPLE AND FAMILIES",WITNEY,CATERING,19/11/2020,9276873815,22.65,SAINSBURYS SACAT 0632
OXFORDSHIRE CC,CORPORATE CORE,"	PERSONNEL",TRAINING RELATED EXPENDITURE,19/11/2020,9276873829,438.00,SIRCULALTD D&I LEADERS
OXFORDSHIRE CC,"CHILDRENS, YOUNG PEOPLE AND FAMILIES","	RIVERSIDE CENTRE",CATERING PROVISIONS,19/11/2020,9276873845,8.12,CO-OPERATIVE FOOD
OXFORDSHIRE CC,"CHILDRENS, YOUNG PEOPLE AND FAMILIES","	OCCG GRANT",FURNITURE,19/11/2020,9276873857,34.00,ARGOS LTD
OXFORDSHIRE CC,CORPORATE CORE,"	F&P TRAINING",PROFESSIONAL SUBSCRIPTIONS,19/11/2020,9276873867,390.00,WWW.CIPFA.ORG.UK/PFMCO
OXFORDSHIRE CC,SOCIAL AND COMMUNITY SERVICES,"	MUSEUMS COLLECTIONS",OTHER SERVICES,19/11/2020,9276873873,55.18,TRANSPACK LIMITED
OXFORDSHIRE CC,SOCIAL AND COMMUNITY SERVICES,"	MUSEUMS COLLECTIONS",OTHER SERVICES,19/11/2020,9276873877,233.70,WWW.PRESERVATIONEQUIPM
OXFORDSHIRE CC,"CHILDRENS, YOUNG PEOPLE AND FAMILIES","	LEAVING CARE NORTH",CATERING,19/11/2020,9276873891,2.60,COSTA COFFEE
OXFORDSHIRE CC,"CHILDRENS, YOUNG PEOPLE AND FAMILIES","	LEAVING CARE NORTH",PAYMENT TO GOVERNMENT DEPARTMENTS,19/11/2020,9276873895,118.85,PARADIGM HOUSING GROUP
OXFORDSHIRE CC,SOCIAL AND COMMUNITY SERVICES,CSS WITNEY,MATERIALS,19/11/2020,9276873911,3.18,AMZNMKTPLACE
OXFORDSHIRE CC,SOCIAL AND COMMUNITY SERVICES,CSS WITNEY,MANAGEMENT CONSULTANT FEES,19/11/2020,9276873915,157.50,TVLICENSING.CO.UK
OXFORDSHIRE CC,SOCIAL AND COMMUNITY SERVICES,CSS WITNEY,MATERIALS,19/11/2020,9276873919,14.67,AMZNMKTPLACE
OXFORDSHIRE CC,ENVIRONMENT AND ECONOMY,ELEC NPR ST LTG,MATERIALS,19/11/2020,9276873317,19.38,AMZNMKTPLACE AMAZON.CO
OXFORDSHIRE CC,SOCIAL AND COMMUNITY SERVICES,CSS WANTAGE,MATERIALS,18/11/2020,9273826401,15.00,AMZNMKTPLACE AMAZON.CO
OXFORDSHIRE CC,"CHILDRENS, YOUNG PEOPLE AND FAMILIES",PD EQUIPMENT,DISABILITY AIDS AND EQUIPMENT,18/11/2020,9273826405,325.20,MOORINGS MEDIQUIP UK L
OXFORDSHIRE CC,ENVIRONMENT AND ECONOMY,"	ROW MAINT",MATERIALS,18/11/2020,9273826447,408.00,M & M SKIP HIRE
OXFORDSHIRE CC,SOCIAL AND COMMUNITY SERVICES,CSS BICESTER,MATERIALS,18/11/2020,9273825783,13.59,AMZNMKTPLACE
OXFORDSHIRE CC,SOCIAL AND COMMUNITY SERVICES,CSS - ABINGDON,MATERIALS,18/11/2020,9273825787,34.99,AMZNMKTPLACE
OXFORDSHIRE CC,ENVIRONMENT AND ECONOMY,HARD FM,CLOTHING AND UNIFORMS,18/11/2020,9273825839,147.80,SP   SEWORKWEAR
OXFORDSHIRE CC,SOCIAL AND COMMUNITY SERVICES,CSS - ABINGDON,MATERIALS,18/11/2020,9273825835,11.49,B&M 515 - ABINGDON
OXFORDSHIRE CC,CORPORATE CORE,OPERATIONS,STATIONERY,18/11/2020,9273826257,5.75,AMAZON.CO.UK M753D9984
OXFORDSHIRE CC,SOCIAL AND COMMUNITY SERVICES,CSS - OXFORD,VEHICLES REPAIRS AND MAINTENANCE,18/11/2020,9273826277,82.06,LSW
OXFORDSHIRE CC,SOCIAL AND COMMUNITY SERVICES,CSS - OXFORD,MANAGEMENT CONSULTANT FEES,18/11/2020,9273826279,157.50,TVLICENSING.CO.UK
OXFORDSHIRE CC,"CHILDRENS, YOUNG PEOPLE AND FAMILIES",UASC POST 18,"SUPPLIES, STATIONERY AND MATERIALS",18/11/2020,9273826285,34.65,AMZNMKTPLACE
OXFORDSHIRE CC,"CHILDRENS, YOUNG PEOPLE AND FAMILIES",UASC POST 18,"SUPPLIES, STATIONERY AND MATERIALS",18/11/2020,9273826289,19.99,AMZNMKTPLACE
OXFORDSHIRE CC,"CHILDRENS, YOUNG PEOPLE AND FAMILIES","	RIVERSIDE CENTRE",VEHICLE FUEL,18/11/2020,9273826335,90.03,ESSO BICESTER SERVICES
OXFORDSHIRE CC,"CHILDRENS, YOUNG PEOPLE AND FAMILIES",NTH EARLY HELP-WITNY,MATERIALS,18/11/2020,9273825723,8.45,AMAZON.CO.UK M733P0IJ4
OXFORDSHIRE CC,"CHILDRENS, YOUNG PEOPLE AND FAMILIES",FAMILY SOLUTIONS PLUS NON-STAFF - NORTH,MATERIALS,18/11/2020,9273825725,34.99,ARGOS LTD
OXFORDSHIRE CC,SOCIAL AND COMMUNITY SERVICES,CSS WITNEY,MATERIALS,18/11/2020,9273826381,29.95,AMZNMKTPLACE AMAZON.CO
OXFORDSHIRE CC,SOCIAL AND COMMUNITY SERVICES,CSS WITNEY,MATERIALS,18/11/2020,9273826385,7.80,AMAZON.CO.UK M71TE79P4
OXFORDSHIRE CC,SOCIAL AND COMMUNITY SERVICES,CSS WITNEY,MATERIALS,18/11/2020,9273826389,4.13,AMAZON.CO.UK M77HH69J4
OXFORDSHIRE CC,SOCIAL AND COMMUNITY SERVICES,CSS WITNEY,MATERIALS,18/11/2020,9273826393,24.45,AMZNMKTPLACE
OXFORDSHIRE CC,SOCIAL AND COMMUNITY SERVICES,CSS WITNEY,MATERIALS,18/11/2020,9273826397,4.89,AMZNMKTPLACE
OXFORDSHIRE CC,ENVIRONMENT AND ECONOMY,"	NAT TRAILS GENERAL",POSTAGE AND DELIVERY,18/11/2020,9273825779,1.52,POST OFFICE COUNTER
OXFORDSHIRE CC,ENTERPRISEVC,,CAR LEASING - PRIVATE RENTALS,18/11/2020,9273826637,88.12,ENTERPRISE RENT-A-CAR
OXFORDSHIRE CC,CORPORATE CORE,,"SUPPLIES, STATIONERY AND MATERIALS",18/11/2020,9273826631,55.16,LYRECO UK LTD
OXFORDSHIRE CC,CORPORATE CORE,,"SUPPLIES, STATIONERY AND MATERIALS",18/11/2020,9273826635,76.45,LYRECO UK LTD
OXFORDSHIRE CC,CORPORATE CORE,SCHOOLS FM CATERING AREA 3,MATERIALS,18/11/2020,9273826001,35.97,AMZNMKTPLACE
OXFORDSHIRE CC,CORPORATE CORE,SCHOOLS FM CATERING AREA 3,MATERIALS,18/11/2020,9273826005,33.72,AMZNMKTPLACE
OXFORDSHIRE CC,CORPORATE CORE,SCHOOLS FM CATERING AREA 3,MATERIALS,18/11/2020,9273826009,33.72,AMZNMKTPLACE
OXFORDSHIRE CC,CORPORATE CORE,SCHOOLS FM CATERING AREA 3,MATERIALS,18/11/2020,9273826013,40.18,AMZNMKTPLACE
OXFORDSHIRE CC,ENTERPRISEVC,,CAR LEASING - PRIVATE RENTALS,18/11/2020,9273826641,61.49,ENTERPRISE RENT-A-CAR
OXFORDSHIRE CC,ENTERPRISEVC,,CAR LEASING - PRIVATE RENTALS,18/11/2020,9273826645,31.66,ENTERPRISE RENT-A-CAR
OXFORDSHIRE CC,ENTERPRISEVC,,CAR LEASING - PRIVATE RENTALS,18/11/2020,9273826647,78.11,ENTERPRISE RENT-A-CAR
OXFORDSHIRE CC,CORPORATE CORE,CATERING MANAGEMENT SOFT FM,CATERING,18/11/2020,9273826651,162.41,BRAKE BROS LTD
OXFORDSHIRE CC,"CHILDRENS, YOUNG PEOPLE AND FAMILIES","	RIVERSIDE CENTRE",MATERIALS,18/11/2020,9273826059,7.96,AMAZON.CO.UK M75K319E4
OXFORDSHIRE CC,"CHILDRENS, YOUNG PEOPLE AND FAMILIES","	MUSIC UNALLOCABLE",HARDWARE AND CROCKERY,18/11/2020,9273826069,23.00,B & Q 1176
OXFORDSHIRE CC,SOCIAL AND COMMUNITY SERVICES,RESIDENTIAL STRATEGY,CATERING,18/11/2020,9273826095,5.74,GREGGS ACORN
OXFORDSHIRE CC,"CHILDRENS, YOUNG PEOPLE AND FAMILIES",FSP NON-STAFFING - CENTRAL,FURNITURE,18/11/2020,9273826099,192.49,WF  WAYFAIR 3460723124
OXFORDSHIRE CC,SHARED SERVICES,CSC SUPP & SERVICES,MATERIALS,18/11/2020,9273826115,158.00,AMZNMKTPLACE
OXFORDSHIRE CC,CORPORATE CORE,"MARKETING, COMMUNICATIONS & ENGAGEMENT","PUBLICITY, PROMOTIONS AND ADVERTISEMENT",18/11/2020,9273826137,2.89,SNAP  ADS
OXFORDSHIRE CC,"CHILDRENS, YOUNG PEOPLE AND FAMILIES","	OCCG GRANT",CATERING,18/11/2020,9273826149,17.99,DOMINO S PIZZA
OXFORDSHIRE CC,"CHILDRENS, YOUNG PEOPLE AND FAMILIES",0-5 STDS & PROGRESS,"SUPPLIES, STATIONERY AND MATERIALS",18/11/2020,9273826165,3.54,AMAZON.CO.UK M722A9734
OXFORDSHIRE CC,"CHILDRENS, YOUNG PEOPLE AND FAMILIES",0-5 STDS & PROGRESS,"SUPPLIES, STATIONERY AND MATERIALS",18/11/2020,9273826169,3.11,AMAZON.CO.UK M79B02934
OXFORDSHIRE CC,ENVIRONMENT AND ECONOMY,HARD FM,HARDWARE AND CROCKERY,18/11/2020,9273825843,61.15,TOOLSTATION LTD
OXFORDSHIRE CC,ENVIRONMENT AND ECONOMY,HARD FM,HARDWARE AND CROCKERY,18/11/2020,9273825847,65.28,B & Q 1062
OXFORDSHIRE CC,"CHILDRENS, YOUNG PEOPLE AND FAMILIES",ICT INFORMATION,IT SERVICES,18/11/2020,9273825851,371.38,GOOGLE  CLOUD_01D722-8
OXFORDSHIRE CC,ENVIRONMENT AND ECONOMY,HARD FM,HARDWARE AND CROCKERY,18/11/2020,9273825855,59.98,SCREWFIX DIRECT
OXFORDSHIRE CC,"CHILDRENS, YOUNG PEOPLE AND FAMILIES","	DISABILITIES TEAM-C",PURCHASE OF IT EQUIPMENT,18/11/2020,9273825859,329.00,WWW.JOHNLEWIS.COM
OXFORDSHIRE CC,"CHILDRENS, YOUNG PEOPLE AND FAMILIES","	40 THE MOORS",MATERIALS,18/11/2020,9273825879,19.99,ARGOS LTD
OXFORDSHIRE CC,"CHILDRENS, YOUNG PEOPLE AND FAMILIES",THAME E&A HOME,MATERIALS,18/11/2020,9273825881,2.50,WH SMITH TRAVEL
OXFORDSHIRE CC,"CHILDRENS, YOUNG PEOPLE AND FAMILIES","	LOOKED AFTER SOUTH",CATERING PROVISIONS,18/11/2020,9273826503,10.55,TESCO STORES
OXFORDSHIRE CC,"CHILDRENS, YOUNG PEOPLE AND FAMILIES","	LOOKED AFTER CITY 1",OTHER TRANSPORT ARRANGEMENTS,18/11/2020,9273825915,78.75,WWW.THEKEY.CO.UK
OXFORDSHIRE CC,SOCIAL AND COMMUNITY SERVICES,DIDCOT MOVE-ON HOME,CATERING PROVISIONS,18/11/2020,9273825931,4.98,SAINSBURYS SACAT 2067
OXFORDSHIRE CC,"CHILDRENS, YOUNG PEOPLE AND FAMILIES","	LOOKED AFTER CITY 2",PAYMENT TO GOVERNMENT DEPARTMENTS,18/11/2020,9273826543,75.00,HMCTS-TV031
OXFORDSHIRE CC,"CHILDRENS, YOUNG PEOPLE AND FAMILIES","	LEAVING CARE SOUTH",MATERIALS,18/11/2020,9273826565,1.89,AMZNMKTPLACE
OXFORDSHIRE CC,"CHILDRENS, YOUNG PEOPLE AND FAMILIES","	LEAVING CARE SOUTH",MATERIALS,18/11/2020,9273826569,31.95,AMZNMKTPLACE
OXFORDSHIRE CC,"CHILDRENS, YOUNG PEOPLE AND FAMILIES","	LOOKED AFTER SOUTH",CATERING,18/11/2020,9273826591,46.67,DOMINO S PIZZA
OXFORDSHIRE CC,"CHILDRENS, YOUNG PEOPLE AND FAMILIES",EYNSHAM,CATERING PROVISIONS,18/11/2020,9273826573,140.31,TESCO STORES 2008
OXFORDSHIRE CC,"CHILDRENS, YOUNG PEOPLE AND FAMILIES","	LOOKED AFTER SOUTH",DISABILITY AIDS AND EQUIPMENT,18/11/2020,9273826587,89.00,SPECSAVERSECOMGB-
OXFORDSHIRE CC,"CHILDRENS, YOUNG PEOPLE AND FAMILIES",DEPUTY DIRECTOR &MAN,TRAINING RELATED EXPENDITURE,18/11/2020,9273825967,346.79,GOVERNMENT EVENTS
OXFORDSHIRE CC,"CHILDRENS, YOUNG PEOPLE AND FAMILIES",FAMILY SOLUTIONS PLUS NON-STAFF - NORTH,POSTAGE AND DELIVERY,18/11/2020,9273825973,2.18,ROYAL MAIL GROUP LTD
OXFORDSHIRE CC,"CHILDRENS, YOUNG PEOPLE AND FAMILIES",FAMILY SOLUTIONS PLUS NON-STAFF - NORTH,MATERIALS,18/11/2020,9273825977,16.48,AMAZON.CO.UK M71KT97L4
OXFORDSHIRE CC,"CHILDRENS, YOUNG PEOPLE AND FAMILIES",FAMILY SOLUTIONS PLUS NON-STAFF - NORTH,MATERIALS,18/11/2020,9273825983,8.45,AMAZON.CO.UK M78AL0IZ4
OXFORDSHIRE CC,ENVIRONMENT AND ECONOMY,OMNICAV,PURCHASE OF IT EQUIPMENT,18/11/2020,9273825987,12.57,AMAZON.CO.UK M71XV79M4
OXFORDSHIRE CC,"CHILDRENS, YOUNG PEOPLE AND FAMILIES",CSS WALLINGFORD,CATERING PROVISIONS,17/11/2020,9271358195,6.70,WAITROSE 675
OXFORDSHIRE CC,"CHILDRENS, YOUNG PEOPLE AND FAMILIES","	RIVERSIDE CENTRE",CATERING PROVISIONS,17/11/2020,9271358749,9.85,TESCO STORES 4377
OXFORDSHIRE CC,"CHILDRENS, YOUNG PEOPLE AND FAMILIES",THAME E&A HOME,CATERING PROVISIONS,17/11/2020,9271358755,40.40,SAINSBURYS 2096
OXFORDSHIRE CC,"CHILDRENS, YOUNG PEOPLE AND FAMILIES",THAME E&A HOME,DRUGS AND MEDICAL SUPPLIES,17/11/2020,9271358759,7.86,"BOOTS,THAME"
OXFORDSHIRE CC,"CHILDRENS, YOUNG PEOPLE AND FAMILIES",THAME E&A HOME,MATERIALS,17/11/2020,9271358197,43.94,ARGOS LTD
OXFORDSHIRE CC,SOCIAL AND COMMUNITY SERVICES,CSS WITNEY,MATERIALS,17/11/2020,9271358825,38.94,AMZNMKTPLACE
OXFORDSHIRE CC,ENVIRONMENT AND ECONOMY,HARD FM,VEHICLE FUEL,17/11/2020,9271358257,6.99,MFG BLOXHAM
OXFORDSHIRE CC,ENVIRONMENT AND ECONOMY,HARD FM,HIRE OF EQUIPMENT,17/11/2020,9271358259,153.60,DIDCOT PLANT LTD
OXFORDSHIRE CC,"CHILDRENS, YOUNG PEOPLE AND FAMILIES",THAME E&A HOME,VEHICLE FUEL,17/11/2020,9271358279,5.10,THAME BP SF CONNECT
OXFORDSHIRE CC,ENVIRONMENT AND ECONOMY,HARD FM,HARDWARE AND CROCKERY,17/11/2020,9271358265,40.04,SCREWFIX DIRECT
OXFORDSHIRE CC,ENVIRONMENT AND ECONOMY,HARD FM,HARDWARE AND CROCKERY,17/11/2020,9271358269,35.98,SCREWFIX DIRECT
OXFORDSHIRE CC,ENVIRONMENT AND ECONOMY,HARD FM,HARDWARE AND CROCKERY,17/11/2020,9271358275,38.85,SCREWFIX DIRECT
OXFORDSHIRE CC,SOCIAL AND COMMUNITY SERVICES,CSS WITNEY,CATERING PROVISIONS,17/11/2020,9271358829,25.47,SAINSBURYS 0632
OXFORDSHIRE CC,"CHILDRENS, YOUNG PEOPLE AND FAMILIES",CONTRACTED SERVICES,PROFESSIONAL SUBSCRIPTIONS,17/11/2020,9271358515,45.00,CVAA UK LTD
OXFORDSHIRE CC,"CHILDRENS, YOUNG PEOPLE AND FAMILIES","	40 THE MOORS",CATERING PROVISIONS,17/11/2020,9271358519,274.63,SAINSBURYS (2243)
OXFORDSHIRE CC,"CHILDRENS, YOUNG PEOPLE AND FAMILIES","	40 THE MOORS",CLOTHING AND UNIFORMS,17/11/2020,9271358523,85.45,WWW.NIKESTORE.COM
OXFORDSHIRE CC,"CHILDRENS, YOUNG PEOPLE AND FAMILIES",FIELDWORK UASC,POSTAGE AND DELIVERY,17/11/2020,9271358527,7.35,POST OFFICE COUNTER
OXFORDSHIRE CC,"CHILDRENS, YOUNG PEOPLE AND FAMILIES","	OCCG GRANT",MATERIALS,17/11/2020,9271358605,3.99,HOME BARGAINS
OXFORDSHIRE CC,"CHILDRENS, YOUNG PEOPLE AND FAMILIES","	OCCG GRANT",BIRTHDAY ALLOWANCE,17/11/2020,9271358607,12.50,BOOTS THE CHEMISTS
OXFORDSHIRE CC,"CHILDRENS, YOUNG PEOPLE AND FAMILIES","	LEADING THE EYFS Q&I",SUBSCRIPTIONS,17/11/2020,9271358637,134.00,MAGSUBCRIPTIONS COM
OXFORDSHIRE CC,ENVIRONMENT AND ECONOMY,"	BRIDGES GENERAL",EDUCATIONAL AND VOCATIONAL TRAINING ,17/11/2020,9271358689,570.00,WWW.EBIS-HSE.COM
OXFORDSHIRE CC,CORPORATE CORE,LIBRARY COLLECTIONS,"BOOKS, DVDS AND CDS",17/11/2020,9271358391,134.35,BOLINDA PUBLISHING
OXFORDSHIRE CC,"CHILDRENS, YOUNG PEOPLE AND FAMILIES","	LEAVING CARE SOUTH",MATERIALS,17/11/2020,9271359017,13.99,AMZNMKTPLACE
OXFORDSHIRE CC,"CHILDRENS, YOUNG PEOPLE AND FAMILIES","	LEAVING CARE SOUTH",CLOTHING AND UNIFORMS,17/11/2020,9271359027,33.99,PRETTYLITTLETHING.COM
OXFORDSHIRE CC,"CHILDRENS, YOUNG PEOPLE AND FAMILIES","	LEAVING CARE SOUTH",MATERIALS,17/11/2020,9271359021,24.95,AMZNMKTPLACE
OXFORDSHIRE CC,"CHILDRENS, YOUNG PEOPLE AND FAMILIES","	LEAVING CARE SOUTH",MATERIALS,17/11/2020,9271359023,12.99,AMZNMKTPLACE
OXFORDSHIRE CC,"CHILDRENS, YOUNG PEOPLE AND FAMILIES",EYNSHAM,CATERING PROVISIONS,17/11/2020,9271359029,13.00,MAYFIELDEGGS
OXFORDSHIRE CC,"CHILDRENS, YOUNG PEOPLE AND FAMILIES","	LEAVING CARE SOUTH",CLOTHING AND UNIFORMS,17/11/2020,9271359025,34.24,BOOHOO.COM
OXFORDSHIRE CC,"CHILDRENS, YOUNG PEOPLE AND FAMILIES",MANAGEMENT RECHARGES,HIRED AND CONTRACTED SERVICES,17/11/2020,9271358403,4.99,AMAZON.CO.UK M72TM0294
OXFORDSHIRE CC,"CHILDRENS, YOUNG PEOPLE AND FAMILIES",SWINDON,MATERIALS,17/11/2020,9271358405,4.86,AMZNMKTPLACE
OXFORDSHIRE CC,SOCIAL AND COMMUNITY SERVICES,CSS - BANBURY,CATERING PROVISIONS,17/11/2020,9271358437,74.40,SAINSBURYS.CO.UK
OXFORDSHIRE CC,"CHILDRENS, YOUNG PEOPLE AND FAMILIES",SWINDON,HIRED AND CONTRACTED SERVICES,17/11/2020,9271358409,4.86,AMZNMKTPLACE
OXFORDSHIRE CC,SOCIAL AND COMMUNITY SERVICES,CSS - OXFORD,MATERIALS,17/11/2020,9271358421,13.58,AMZNMKTPLACE
OXFORDSHIRE CC,SOCIAL AND COMMUNITY SERVICES,SCHOOLS FM,MATERIALS,17/11/2020,9271358427,31.00,AMZNMKTPLACE
OXFORDSHIRE CC,CORPORATE CORE,INCOME TEAM,PAYMENT TO GOVERNMENT DEPARTMENTS,17/11/2020,9271359071,11.00,OXFORDSHIRE CC MOTO1
OXFORDSHIRE CC,"CHILDRENS, YOUNG PEOPLE AND FAMILIES","	ASSESS TEAM CITY",FURNITURE,17/11/2020,9271359039,228.92,WWW.CARPETRIGHT.CO.UK
OXFORDSHIRE CC,CORPORATE CORE,MOTOR FLEET,MOTOR IF OWN DAMAGE,17/11/2020,9271359045,995.30,ENTERPRISE RENT A CAR
OXFORDSHIRE CC,"CHILDRENS, YOUNG PEOPLE AND FAMILIES",THAME E&A HOME,CATERING PROVISIONS,17/11/2020,9271358449,163.11,TESCO STORES 2038
OXFORDSHIRE CC,"CHILDRENS, YOUNG PEOPLE AND FAMILIES",THAME E&A HOME,CATERING PROVISIONS,17/11/2020,9271358453,-3.60,TESCO STORE 3539
OXFORDSHIRE CC,"CHILDRENS, YOUNG PEOPLE AND FAMILIES","	LOOKED AFTER CITY 1",VEHICLE FUEL,17/11/2020,9271358455,61.56,ESSO MOTO CHERWELL VAL
OXFORDSHIRE CC,"CHILDRENS, YOUNG PEOPLE AND FAMILIES","	LOOKED AFTER CITY 1",OTHER TRANSPORT ARRANGEMENTS,17/11/2020,9271358459,6.70,M6 TOLL
OXFORDSHIRE CC,"CHILDRENS, YOUNG PEOPLE AND FAMILIES","	LOOKED AFTER CITY 1",OTHER TRANSPORT ARRANGEMENTS,17/11/2020,9271358461,6.70,M6 TOLL
OXFORDSHIRE CC,ENTERPRISEVC,,CAR LEASING - PRIVATE RENTALS,17/11/2020,9271359117,565.75,ENTERPRISE RENT-A-CAR
OXFORDSHIRE CC,"CHILDRENS, YOUNG PEOPLE AND FAMILIES","	LEAVING CARE CITY 2",CATERING,17/11/2020,9271358481,6.55,COSTA TEMPLAR SQUARE O
OXFORDSHIRE CC,"CHILDRENS, YOUNG PEOPLE AND FAMILIES","	HOME SUPPORT",MATERIALS,17/11/2020,9271358485,194.59,AMZNMKTPLACE
OXFORDSHIRE CC,ENVIRONMENT AND ECONOMY,HARD FM,HARDWARE AND CROCKERY,17/11/2020,9271358283,11.98,SCREWFIX DIRECT
OXFORDSHIRE CC,ENVIRONMENT AND ECONOMY,HARD FM,HARDWARE AND CROCKERY,17/11/2020,9271358287,59.98,SCREWFIX DIRECT
OXFORDSHIRE CC,ENVIRONMENT AND ECONOMY,COUNTY LIBRARY,GENERAL MAINTENANCE,17/11/2020,9271358291,50.99,WOLSELEY UK
OXFORDSHIRE CC,ENVIRONMENT AND ECONOMY,COUNTY LIBRARY,GENERAL MAINTENANCE,17/11/2020,9271358295,51.86,WOLSELEY UK
OXFORDSHIRE CC,ENVIRONMENT AND ECONOMY,COUNTY LIBRARY,GENERAL MAINTENANCE,17/11/2020,9271358297,61.09,WOLSELEY UK
OXFORDSHIRE CC,SOCIAL AND COMMUNITY SERVICES,CSS - BANBURY,CATERING PROVISIONS,17/11/2020,9271358909,99.00,TESCO STORE 2064
OXFORDSHIRE CC,"CHILDRENS, YOUNG PEOPLE AND FAMILIES","	LOOKED AFTER SOUTH",OTHER TRANSPORT ARRANGEMENTS,17/11/2020,9271358915,6.70,M6 TOLL
OXFORDSHIRE CC,"CHILDRENS, YOUNG PEOPLE AND FAMILIES",UASC POST 18,OTHER EXPENSES,17/11/2020,9271358347,418.99,CURRYS ONLINE
OXFORDSHIRE CC,"CHILDRENS, YOUNG PEOPLE AND FAMILIES","	LOOKED AFTER SOUTH",OTHER TRANSPORT ARRANGEMENTS,17/11/2020,9271358919,6.70,M6 TOLL
OXFORDSHIRE CC,"CHILDRENS, YOUNG PEOPLE AND FAMILIES","	40 THE MOORS",CATERING,17/11/2020,9271358943,44.00,JUST EAT
OXFORDSHIRE CC,"CHILDRENS, YOUNG PEOPLE AND FAMILIES","	40 THE MOORS",CATERING,17/11/2020,9271358949,15.90,JUST EAT
OXFORDSHIRE CC,"CHILDRENS, YOUNG PEOPLE AND FAMILIES","	40 THE MOORS",CATERING,17/11/2020,9271358951,47.97,WWW.PAPAJOHNS.CO.UK
OXFORDSHIRE CC,"CHILDRENS, YOUNG PEOPLE AND FAMILIES",DIDCOT MOVE-ON HOME,CATERING PROVISIONS,17/11/2020,9271358371,19.62,SAINSBURYS SACAT 2067
OXFORDSHIRE CC,"CHILDRENS, YOUNG PEOPLE AND FAMILIES",DIDCOT MOVE-ON HOME,CATERING PROVISIONS,17/11/2020,9271358965,29.88,STEVENAGE PACKAGING
OXFORDSHIRE CC,"CHILDRENS, YOUNG PEOPLE AND FAMILIES",CNTL EARLY HELP-BRTN,CATERING PROVISIONS,17/11/2020,9271358977,1.78,CO-OPERATIVE FOOD
OXFORDSHIRE CC,"CHILDRENS, YOUNG PEOPLE AND FAMILIES",BULLINGDON PRISON,"BOOKS, DVDS AND CDS",17/11/2020,9271358993,30.65,AMAZON.CO.UK M71JD47Q4
OXFORDSHIRE CC,"CHILDRENS, YOUNG PEOPLE AND FAMILIES","	LOOKED AFTER CITY 2",CLOTHING AND UNIFORMS,17/11/2020,9271358999,99.99,PAYPAL  JDSPORTS
OXFORDSHIRE CC,"CHILDRENS, YOUNG PEOPLE AND FAMILIES",DIDCOT MOVE-ON HOME,CATERING PROVISIONS,16/11/2020,9267342741,7.80,SAINSBURYS SACAT 2067
OXFORDSHIRE CC,"CHILDRENS, YOUNG PEOPLE AND FAMILIES",EYNSHAM,FURNITURE,16/11/2020,9267340883,8.95,AMZNMKTPLACE
OXFORDSHIRE CC,"CHILDRENS, YOUNG PEOPLE AND FAMILIES",EYNSHAM,CATERING,16/11/2020,9267340891,1.95,CO-OPERATIVE FOOD
OXFORDSHIRE CC,"CHILDRENS, YOUNG PEOPLE AND FAMILIES",EDT,PAYMENTS TO TRANSPORT OPERATORS,16/11/2020,9267341445,30.57,THETRAINLINE.COM
OXFORDSHIRE CC,"CHILDRENS, YOUNG PEOPLE AND FAMILIES",THAME E&A HOME,CATERING PROVISIONS,16/11/2020,9267341475,158.11,TESCO STORES 2038
OXFORDSHIRE CC,"CHILDRENS, YOUNG PEOPLE AND FAMILIES",THAME E&A HOME,CATERING PROVISIONS,16/11/2020,9267341483,10.24,CO-OPERATIVE FOOD
OXFORDSHIRE CC,ENVIRONMENT AND ECONOMY,WASTE REDUCTION GEN,OTHER TRAINING COURSES AND QUALIFICATION,16/11/2020,9267341501,123.75,WWW.LETSRECYCLE.COM
OXFORDSHIRE CC,"CHILDRENS, YOUNG PEOPLE AND FAMILIES","	LEAVING CARE CITY 2",CATERING PROVISIONS,16/11/2020,9267342133,46.44,TESCO STORE 2990
OXFORDSHIRE CC,"CHILDRENS, YOUNG PEOPLE AND FAMILIES","	LEAVING CARE CITY 2","SUPPLIES, STATIONERY AND MATERIALS",16/11/2020,9267342139,86.98,WWW.RUSSUM.CO.UK
OXFORDSHIRE CC,"CHILDRENS, YOUNG PEOPLE AND FAMILIES","	MALTFIELD HOUSE",CLOTHING AND UNIFORMS,16/11/2020,9267340905,35.79,BOOHOO.COM
OXFORDSHIRE CC,"CHILDRENS, YOUNG PEOPLE AND FAMILIES","	MALTFIELD HOUSE",CATERING PROVISIONS,16/11/2020,9267340919,52.89,ASDA SUPERSTORE
OXFORDSHIRE CC,"CHILDRENS, YOUNG PEOPLE AND FAMILIES",EYNSHAM,FURNITURE,16/11/2020,9267340895,29.99,ARGOS LTD
OXFORDSHIRE CC,"CHILDRENS, YOUNG PEOPLE AND FAMILIES","	RESIDENTIAL STRATEGY",CATERING PROVISIONS,16/11/2020,9267340947,1.05,TESCO STORE 2788
OXFORDSHIRE CC,SOCIAL AND COMMUNITY SERVICES,CSS BICESTER,CATERING PROVISIONS,16/11/2020,9267340953,2.18,ICELAND
OXFORDSHIRE CC,"CHILDRENS, YOUNG PEOPLE AND FAMILIES",WITNEY,CATERING,16/11/2020,9267340965,7.40,SUMUP   THE PENGUIN CH
OXFORDSHIRE CC,ENVIRONMENT AND ECONOMY,HARD FM,HARDWARE AND CROCKERY,16/11/2020,9267340973,12.99,SCREWFIX DIRECT
OXFORDSHIRE CC,ENVIRONMENT AND ECONOMY,HARD FM,HARDWARE AND CROCKERY,16/11/2020,9267340981,65.47,CITY ELECTRICAL FA
OXFORDSHIRE CC,"CHILDRENS, YOUNG PEOPLE AND FAMILIES","	RIVERSIDE CENTRE",MATERIALS,16/11/2020,9267342217,4.50,SAINSBURYS PFS0184
OXFORDSHIRE CC,"CHILDRENS, YOUNG PEOPLE AND FAMILIES","	40 THE MOORS",CATERING PROVISIONS,16/11/2020,9267342225,8.76,NOOR HALAL MEAT CENTRE
OXFORDSHIRE CC,"CHILDRENS, YOUNG PEOPLE AND FAMILIES","	40 THE MOORS",CATERING PROVISIONS,16/11/2020,9267342229,2.75,CO-OPERATIVE FOOD
OXFORDSHIRE CC,"CHILDRENS, YOUNG PEOPLE AND FAMILIES","	LOOKED AFTER CITY 2",CLOTHING AND UNIFORMS,16/11/2020,9267342895,18.96,AMZNMKTPLACE AMAZON.CO
OXFORDSHIRE CC,CORPORATE CORE,ICT OPERATIONS & MAI,IT SERVICES,16/11/2020,9267342933,19.61,GITHUB
OXFORDSHIRE CC,"CHILDRENS, YOUNG PEOPLE AND FAMILIES","	LEAVING CARE CITY 2",PAYMENTS TO TRANSPORT OPERATORS,16/11/2020,9267342261,24.10,THETRAINLINE.COM
OXFORDSHIRE CC,SOCIAL AND COMMUNITY SERVICES,LEAVING CARE NORTH,OTHER TRANSPORT ARRANGEMENTS,16/11/2020,9267342277,45.96,STORAGEBASE
OXFORDSHIRE CC,"CHILDRENS, YOUNG PEOPLE AND FAMILIES",THAME E&A HOME,MATERIALS,16/11/2020,9267340987,39.99,ARGOS LTD
OXFORDSHIRE CC,ENVIRONMENT AND ECONOMY,COUNTY LIBRARY,GENERAL MAINTENANCE,16/11/2020,9267340995,57.12,LOCHINVAR LTD
OXFORDSHIRE CC,CORPORATE CORE,ICT OPERATIONS & MAI,EQUIPMENT,16/11/2020,9267342941,105.60,GLOBE PACKAGING - PACK
OXFORDSHIRE CC,"CHILDRENS, YOUNG PEOPLE AND FAMILIES",EYNSHAM,CATERING PROVISIONS,16/11/2020,9267342959,162.51,TESCO STORES 2008
OXFORDSHIRE CC,ENVIRONMENT AND ECONOMY,COUNTY LIBRARY,GENERAL MAINTENANCE,16/11/2020,9267340999,56.46,WOLSELEY UK
OXFORDSHIRE CC,ENVIRONMENT AND ECONOMY,COUNTY LIBRARY,GENERAL MAINTENANCE,16/11/2020,9267341011,22.45,WOLSELEY UK
OXFORDSHIRE CC,ENVIRONMENT AND ECONOMY,COUNTY LIBRARY,GENERAL MAINTENANCE,16/11/2020,9267341015,68.60,WOLSELEY UK
OXFORDSHIRE CC,SOCIAL AND COMMUNITY SERVICES,CSS - OXFORD,CATERING PROVISIONS,16/11/2020,9267341069,11.25,SAINSBURYS SACAT 0600
OXFORDSHIRE CC,"CHILDRENS, YOUNG PEOPLE AND FAMILIES","	40 THE MOORS",MATERIALS,16/11/2020,9267341601,9.43,SP   PDK CHARNWOOD
OXFORDSHIRE CC,"CHILDRENS, YOUNG PEOPLE AND FAMILIES","	40 THE MOORS",CATERING PROVISIONS,16/11/2020,9267341607,109.26,TESCO STORE 2994
OXFORDSHIRE CC,"CHILDRENS, YOUNG PEOPLE AND FAMILIES",FIELDWORK UASC,PAYMENTS TO TRANSPORT OPERATORS,16/11/2020,9267341637,7.00,GWR OXFORD SST
OXFORDSHIRE CC,SOCIAL AND COMMUNITY SERVICES,LEAVING CARE NORTH,CATERING PROVISIONS,16/11/2020,9267342287,14.70,SAINSBURYS 0632
OXFORDSHIRE CC,"CHILDRENS, YOUNG PEOPLE AND FAMILIES","	ASSESS TEAM CITY",MATERIALS,16/11/2020,9267342985,-5.00,CURRYS ONLINE
OXFORDSHIRE CC,"CHILDRENS, YOUNG PEOPLE AND FAMILIES",THAME E&A HOME,CATERING PROVISIONS,16/11/2020,9267343021,2.00,SAINSBURYS SACAT 2096
OXFORDSHIRE CC,"CHILDRENS, YOUNG PEOPLE AND FAMILIES",THAME E&A HOME,CATERING PROVISIONS,16/11/2020,9267343027,17.41,SAINSBURYS 2096
OXFORDSHIRE CC,"CHILDRENS, YOUNG PEOPLE AND FAMILIES",EYNSHAM,CATERING PROVISIONS,16/11/2020,9267343033,1.15,CO-OPERATIVE FOOD
OXFORDSHIRE CC,"CHILDRENS, YOUNG PEOPLE AND FAMILIES",EYNSHAM,CATERING PROVISIONS,16/11/2020,9267343037,17.10,CO-OPERATIVE FOOD
OXFORDSHIRE CC,"CHILDRENS, YOUNG PEOPLE AND FAMILIES",EYNSHAM,CATERING PROVISIONS,16/11/2020,9267343041,.80,CO-OPERATIVE FOOD
OXFORDSHIRE CC,CORPORATE CORE,CENTRAL BUYING TEAM,VEHICLE FUEL,16/11/2020,9267343047,30.01,TESCO PFS 3700
OXFORDSHIRE CC,SOCIAL AND COMMUNITY SERVICES,WITNEY LIBRARY,MATERIALS,16/11/2020,9267343055,13.59,AMZNMKTPLACE
OXFORDSHIRE CC,"CHILDRENS, YOUNG PEOPLE AND FAMILIES",THAME E&A HOME,"SUPPLIES, STATIONERY AND MATERIALS",16/11/2020,9267341109,39.00,WHSMITH.CO.UK
OXFORDSHIRE CC,"CHILDRENS, YOUNG PEOPLE AND FAMILIES","	40 THE MOORS",CATERING PROVISIONS,16/11/2020,9267341125,3.78,BEST ONE OXFORD
OXFORDSHIRE CC,"CHILDRENS, YOUNG PEOPLE AND FAMILIES","	40 THE MOORS",CATERING,16/11/2020,9267341131,7.98,MCDONALDS
OXFORDSHIRE CC,SOCIAL AND COMMUNITY SERVICES,UASC 16&17,VEHICLE FUEL,16/11/2020,9267341135,36.44,TESCO PAY AT PUMP 4267
OXFORDSHIRE CC,CORPORATE CORE,REGISTRAR,MATERIALS,16/11/2020,9267341147,122.49,AMZNMKTPLACE
OXFORDSHIRE CC,"CHILDRENS, YOUNG PEOPLE AND FAMILIES","	LEAVING CARE SOUTH",MATERIALS,16/11/2020,9267341699,249.00,ARGOS LTD
OXFORDSHIRE CC,"CHILDRENS, YOUNG PEOPLE AND FAMILIES","	LEAVING CARE NORTH",CLOTHING AND UNIFORMS,16/11/2020,9267342327,156.50,S2P ARMANI
OXFORDSHIRE CC,"CHILDRENS, YOUNG PEOPLE AND FAMILIES","	LEAVING CARE NORTH",HIRED AND CONTRACTED SERVICES,16/11/2020,9267342333,125.00,MAGENTA STORAGE
OXFORDSHIRE CC,CORPORATE CORE,"MARKETING, COMMUNICATIONS & ENGAGEMENT",IT SOFTWARE,16/11/2020,9267341751,500.00,GOOGLE  ADS4896546035
OXFORDSHIRE CC,CORPORATE CORE,"MARKETING, COMMUNICATIONS & ENGAGEMENT","PUBLICITY, PROMOTIONS AND ADVERTISEMENT",16/11/2020,9267341757,500.00,FACEBK NDL5PXW9Z2
OXFORDSHIRE CC,"CHILDRENS, YOUNG PEOPLE AND FAMILIES",KINGFISHER,CATERING,16/11/2020,9267341781,4.97,BURGER KINGBURGER KING
OXFORDSHIRE CC,"CHILDRENS, YOUNG PEOPLE AND FAMILIES",MEMBERS ALLOWANCES,"SUPPLIES, STATIONERY AND MATERIALS",16/11/2020,9267342453,61.44,AMZNMKTPLACE
OXFORDSHIRE CC,"CHILDRENS, YOUNG PEOPLE AND FAMILIES",DIDCOT MOVE-ON HOME,CATERING PROVISIONS,16/11/2020,9267341193,24.47,B&M 514 - DICOT
OXFORDSHIRE CC,"CHILDRENS, YOUNG PEOPLE AND FAMILIES",DIDCOT MOVE-ON HOME,CATERING PROVISIONS,16/11/2020,9267341203,10.80,ALDI 99 775
OXFORDSHIRE CC,"CHILDRENS, YOUNG PEOPLE AND FAMILIES",DIDCOT MOVE-ON HOME,CATERING PROVISIONS,16/11/2020,9267341209,12.80,B&M 514 - DICOT
OXFORDSHIRE CC,"CHILDRENS, YOUNG PEOPLE AND FAMILIES",DIDCOT MOVE-ON HOME,MATERIALS,16/11/2020,9267341215,59.99,AMZNMKTPLACE
OXFORDSHIRE CC,SOCIAL AND COMMUNITY SERVICES,SCHOOLS FM CATERING AREA 4,MATERIALS,16/11/2020,9267341221,30.00,TIMPSON LTD
OXFORDSHIRE CC,COMMUNITY SAFETY,ON ST PARK OXFD SPA,EQUIPMENT,16/11/2020,9267341229,130.80,NESSLEGROVE
OXFORDSHIRE CC,COMMUNITY SAFETY,ON ST PARK OXFD SPA,STATIONERY,16/11/2020,9267341237,19.78,CARTRIDGEPEOPLE.COM
OXFORDSHIRE CC,"CHILDRENS, YOUNG PEOPLE AND FAMILIES","	OCCG GRANT",DRUGS AND MEDICAL SUPPLIES,16/11/2020,9267341815,7.98,SAVERS HEALTH & BEAUTY
OXFORDSHIRE CC,"CHILDRENS, YOUNG PEOPLE AND FAMILIES","	OCCG GRANT",CATERING,16/11/2020,9267341831,4.78,MORRISON PETROL
OXFORDSHIRE CC,"CHILDRENS, YOUNG PEOPLE AND FAMILIES",EYNSHAM,OTHER COMMUNICATIONS,16/11/2020,9267343185,8.99,NETFLIX.COM
OXFORDSHIRE CC,CORPORATE CORE,,"SUPPLIES, STATIONERY AND MATERIALS",16/11/2020,9267343191,9.22,LYRECO UK LTD
OXFORDSHIRE CC,"CHILDRENS, YOUNG PEOPLE AND FAMILIES",FAMILY SOLUTIONS PLUS NON-STAFF - NORTH,MATERIALS,16/11/2020,9267340671,116.95,ARGOS LTD
OXFORDSHIRE CC,COMMUNITY SAFETY,ON ST PARK OXFD SPA,MATERIALS,16/11/2020,9267341245,44.99,CURRYS ONLINE
OXFORDSHIRE CC,"CHILDRENS, YOUNG PEOPLE AND FAMILIES",WITNEY,CATERING PROVISIONS,16/11/2020,9267341253,12.54,SAINSBURYS SACAT 0632
OXFORDSHIRE CC,"CHILDRENS, YOUNG PEOPLE AND FAMILIES","	LOOKED AFTER NORTH",PAYMENT TO GOVERNMENT DEPARTMENTS,16/11/2020,9267341311,76.00,GEN REGISTER OFFICE
OXFORDSHIRE CC,"CHILDRENS, YOUNG PEOPLE AND FAMILIES","	MALTFIELD HOUSE",CATERING PROVISIONS,16/11/2020,9267342567,13.40,ASDA STORES 4920
OXFORDSHIRE CC,SOCIAL AND COMMUNITY SERVICES,CSS WANTAGE,MATERIALS,16/11/2020,9267340701,5.49,AMAZON.CO.UK M73XS4DY4
OXFORDSHIRE CC,SOCIAL AND COMMUNITY SERVICES,CSS WANTAGE,MATERIALS,16/11/2020,9267340709,23.96,AMZNMKTPLACE
OXFORDSHIRE CC,"CHILDRENS, YOUNG PEOPLE AND FAMILIES",CSS WALLINGFORD,CATERING PROVISIONS,16/11/2020,9267340719,57.15,WAITROSE 675
OXFORDSHIRE CC,"CHILDRENS, YOUNG PEOPLE AND FAMILIES",STH EARLY HELP-ABNDN,"BOOKS, DVDS AND CDS",16/11/2020,9267340735,159.80,AMAZON.CO.UK M78QS5D14
OXFORDSHIRE CC,"CHILDRENS, YOUNG PEOPLE AND FAMILIES",THAME E&A HOME,MATERIALS,16/11/2020,9267340745,8.97,AMZNMKTPLACE
OXFORDSHIRE CC,"CHILDRENS, YOUNG PEOPLE AND FAMILIES",NTH FAM SUPRT-BCSTR,MATERIALS,16/11/2020,9267341365,21.47,AMZNMKTPLACE
OXFORDSHIRE CC,"CHILDRENS, YOUNG PEOPLE AND FAMILIES",NTH EARLY HELP-BCSTR,MATERIALS,16/11/2020,9267341373,8.99,AMZNMKTPLACE
OXFORDSHIRE CC,"CHILDRENS, YOUNG PEOPLE AND FAMILIES",NTH EARLY HELP-BCSTR,MATERIALS,16/11/2020,9267341377,19.60,AMAZON.CO.UK M76J02QA4
OXFORDSHIRE CC,"CHILDRENS, YOUNG PEOPLE AND FAMILIES","	40 THE MOORS",DRUGS AND MEDICAL SUPPLIES,16/11/2020,9267342601,47.83,SUPERDRUG STORES PLC
OXFORDSHIRE CC,"CHILDRENS, YOUNG PEOPLE AND FAMILIES","	MALTFIELD HOUSE",CATERING PROVISIONS,16/11/2020,9267342573,54.69,ASDA STORES 4920
OXFORDSHIRE CC,"CHILDRENS, YOUNG PEOPLE AND FAMILIES",DIDCOT MOVE-ON HOME,CATERING PROVISIONS,16/11/2020,9267342647,11.55,SAINSBURYS SACAT 2067
OXFORDSHIRE CC,CORPORATE CORE,OPERATIONS,STATIONERY,16/11/2020,9267342019,5.75,AMAZON.CO.UK M73HC9DJ4
OXFORDSHIRE CC,CORPORATE CORE,OPERATIONS,STATIONERY,16/11/2020,9267342027,5.75,AMAZON.CO.UK M73HN5DS4
OXFORDSHIRE CC,"CHILDRENS, YOUNG PEOPLE AND FAMILIES",DIDCOT MOVE-ON HOME,CATERING PROVISIONS,16/11/2020,9267342723,13.34,SAINSBURYS SACAT 2067
OXFORDSHIRE CC,"CHILDRENS, YOUNG PEOPLE AND FAMILIES",DIDCOT MOVE-ON HOME,CATERING PROVISIONS,16/11/2020,9267342733,.70,SAINSBURYS 2067
OXFORDSHIRE CC,"CHILDRENS, YOUNG PEOPLE AND FAMILIES",THAME E&A HOME,MATERIALS,16/11/2020,9267340753,5.99,AMZNMKTPLACE
OXFORDSHIRE CC,"CHILDRENS, YOUNG PEOPLE AND FAMILIES",THAME E&A HOME,DRUGS AND MEDICAL SUPPLIES,16/11/2020,9267340759,63.30,WWW.DORSET-NURSING.CO.
OXFORDSHIRE CC,"CHILDRENS, YOUNG PEOPLE AND FAMILIES",THAME E&A HOME,DRUGS AND MEDICAL SUPPLIES,16/11/2020,9267340765,15.90,WWW.DORSET-NURSING.CO.
OXFORDSHIRE CC,"CHILDRENS, YOUNG PEOPLE AND FAMILIES",NTH EARLY HELP-BCSTR,MATERIALS,16/11/2020,9267341383,38.81,AMAZON.CO.UK M764U5QQ4
OXFORDSHIRE CC,CORPORATE CORE,"MARKETING, COMMUNICATIONS & ENGAGEMENT",MATERIALS,16/11/2020,9267341391,969.00,APPLE.COM/UK
OXFORDSHIRE CC,"CHILDRENS, YOUNG PEOPLE AND FAMILIES","	RESIDENTIAL STRATEGY",OTHER COMMUNICATIONS,13/11/2020,7387666004,5.99,NETFLIX.COM
OXFORDSHIRE CC,"CHILDRENS, YOUNG PEOPLE AND FAMILIES","	LEAVING CARE NORTH",CATERING PROVISIONS,13/11/2020,7387666032,8.75,SAINSBURYS SAC2305SAC
OXFORDSHIRE CC,"CHILDRENS, YOUNG PEOPLE AND FAMILIES",NTH EARLY HELP-WITNY,MATERIALS,13/11/2020,7387666114,7.99,AMAZON PRIME M728S6564
OXFORDSHIRE CC,"CHILDRENS, YOUNG PEOPLE AND FAMILIES",EYNSHAM,"BOOKS, DVDS AND CDS",13/11/2020,7387665200,48.99,AMAZON.CO.UK M72874H74
OXFORDSHIRE CC,"CHILDRENS, YOUNG PEOPLE AND FAMILIES",FAMILY SOLUTIONS PLUS NON-STAFF � SOUTH,FURNITURE,13/11/2020,7387665206,102.99,WF  WAYFAIR 3456069494
OXFORDSHIRE CC,"CHILDRENS, YOUNG PEOPLE AND FAMILIES",FAMILY SOLUTIONS PLUS NON-STAFF � SOUTH,MATERIALS,13/11/2020,7387665210,25.00,ARGOS LTD
OXFORDSHIRE CC,SOCIAL AND COMMUNITY SERVICES,CSS - ABINGDON,VEHICLES REPAIRS AND MAINTENANCE,13/11/2020,7387665216,-40.00,KWIK-FIT.COM
OXFORDSHIRE CC,"CHILDRENS, YOUNG PEOPLE AND FAMILIES","	RESIDENTIAL STRATEGY",PAYMENTS TO TRANSPORT OPERATORS,13/11/2020,7387665228,154.50,GWR OXFORD TO
OXFORDSHIRE CC,"CHILDRENS, YOUNG PEOPLE AND FAMILIES",0-5 STDS & PROGRESS,"SUPPLIES, STATIONERY AND MATERIALS",13/11/2020,7387665752,25.99,AMZNMKTPLACE
OXFORDSHIRE CC,SOCIAL AND COMMUNITY SERVICES,CSS - OXFORD,HARDWARE AND CROCKERY,13/11/2020,7387665338,35.98,FROSTS AT MILLETS
OXFORDSHIRE CC,SOCIAL AND COMMUNITY SERVICES,CSS - OXFORD,CATERING PROVISIONS,13/11/2020,7387665340,8.25,TESCO STORE 2994
OXFORDSHIRE CC,SOCIAL AND COMMUNITY SERVICES,CSS - OXFORD,MATERIALS,13/11/2020,7387665344,39.99,ARGOS LTD
OXFORDSHIRE CC,SOCIAL AND COMMUNITY SERVICES,DIDCOT MOVE-ON HOME,CATERING PROVISIONS,13/11/2020,7387665372,2.60,TESCO STORES
OXFORDSHIRE CC,"CHILDRENS, YOUNG PEOPLE AND FAMILIES",UASC 16&17,DRUGS AND MEDICAL SUPPLIES,13/11/2020,7387666280,17.75,TESCO STORE 2413
OXFORDSHIRE CC,"CHILDRENS, YOUNG PEOPLE AND FAMILIES",EYNSHAM,CATERING PROVISIONS,13/11/2020,7387666300,1.75,WAITROSE 871
OXFORDSHIRE CC,"CHILDRENS, YOUNG PEOPLE AND FAMILIES","	LEAVING CARE NORTH",CATERING,13/11/2020,7387666302,8.85,THE CORNISH BAKERY BOU
OXFORDSHIRE CC,"CHILDRENS, YOUNG PEOPLE AND FAMILIES","	LOOKED AFTER SOUTH",POSTAGE AND DELIVERY,13/11/2020,7387666308,2.06,POST OFFICE COUNTER
OXFORDSHIRE CC,"CHILDRENS, YOUNG PEOPLE AND FAMILIES",FAMILY SOLUTIONS PLUS NON-STAFF - NORTH,TELEPHONE - EQUIPMENT,13/11/2020,7387665416,10.00,VESTA   VODAFONE TOPUP
OXFORDSHIRE CC,"CHILDRENS, YOUNG PEOPLE AND FAMILIES",DIDCOT MOVE-ON HOME,CATERING PROVISIONS,13/11/2020,7387665422,9.60,SAINSBURYS SACAT 2067
OXFORDSHIRE CC,"CHILDRENS, YOUNG PEOPLE AND FAMILIES",DIDCOT MOVE-ON HOME,CATERING PROVISIONS,13/11/2020,7387665428,8.95,SAINSBURYS SACAT 2067
OXFORDSHIRE CC,"CHILDRENS, YOUNG PEOPLE AND FAMILIES",DIDCOT MOVE-ON HOME,CATERING PROVISIONS,13/11/2020,7387665438,22.15,SAINSBURYS SACAT 2067
OXFORDSHIRE CC,"CHILDRENS, YOUNG PEOPLE AND FAMILIES","	LOOKED AFTER CITY 1",IT SOFTWARE,13/11/2020,7387665442,271.69,APPLIANCEDIRECT CO
OXFORDSHIRE CC,"CHILDRENS, YOUNG PEOPLE AND FAMILIES",FSP NON-STAFFING - CENTRAL,CATERING PROVISIONS,13/11/2020,7387666328,1.50,TESCO STORE 2990
OXFORDSHIRE CC,"CHILDRENS, YOUNG PEOPLE AND FAMILIES",POST 16 SI TRADED,"BOOKS, DVDS AND CDS",13/11/2020,7387665840,30.43,AMAZON.CO.UK M78809HE4
OXFORDSHIRE CC,CORPORATE CORE,LIBRARY COLLECTIONS,SUBSCRIPTIONS,13/11/2020,7387665858,150.00,HAMPSHIRE COUNTY COUNC
OXFORDSHIRE CC,ENVIRONMENT AND ECONOMY,"	ICT OPERATIONS & MAI",INTERNAL RECH OTHEXP,13/11/2020,7387665882,266.00,ROYAL MAIL GROUP LTD
OXFORDSHIRE CC,CORPORATE CORE,"	LEGAL SERVICES",STAFF ADVERTISING - GENERAL,13/11/2020,7387665956,"1,434.00",LAW SOCIETY FINANC
OXFORDSHIRE CC,"CHILDRENS, YOUNG PEOPLE AND FAMILIES",THAME E&A HOME,CATERING PROVISIONS,13/11/2020,7387665968,9.30,SAINSBURYS SACAT 2096
OXFORDSHIRE CC,"CHILDRENS, YOUNG PEOPLE AND FAMILIES",THAME E&A HOME,DRUGS AND MEDICAL SUPPLIES,13/11/2020,7387665974,11.45,"BOOTS,THAME"
OXFORDSHIRE CC,"CHILDRENS, YOUNG PEOPLE AND FAMILIES",THAME E&A HOME,MATERIALS,13/11/2020,7387665980,12.99,ARGOS LTD
OXFORDSHIRE CC,"CHILDRENS, YOUNG PEOPLE AND FAMILIES","	LOOKED AFTER CITY 1",OTHER EXPENSES,13/11/2020,7387665460,34.00,DVLA DRIVER ONLINE
OXFORDSHIRE CC,SOCIAL AND COMMUNITY SERVICES,CSS WALLINGFORD,CATERING PROVISIONS,13/11/2020,7387665484,4.00,WAITROSE 675
OXFORDSHIRE CC,"CHILDRENS, YOUNG PEOPLE AND FAMILIES","	LOOKED AFTER NORTH",EDUCATIONAL AND VOCATIONAL TRAINING ,13/11/2020,7387666396,301.98,CURRYS ONLINE
OXFORDSHIRE CC,"CHILDRENS, YOUNG PEOPLE AND FAMILIES",THAME E&A HOME,CATERING PROVISIONS,13/11/2020,7387665530,18.45,MILK AND MORE
OXFORDSHIRE CC,"CHILDRENS, YOUNG PEOPLE AND FAMILIES","	RIVERSIDE CENTRE",CATERING PROVISIONS,13/11/2020,7387665580,25.48,SAINSBURYS SACAT 0600
OXFORDSHIRE CC,"CHILDRENS, YOUNG PEOPLE AND FAMILIES","	MUSIC UNALLOCABLE",MATERIALS,13/11/2020,7387665586,"2,600.00",PAXMAN
OXFORDSHIRE CC,"CHILDRENS, YOUNG PEOPLE AND FAMILIES","	OCCG GRANT",TELEPHONE - EQUIPMENT,13/11/2020,7387665690,4.99,BELLINGERS S.STN
OXFORDSHIRE CC,"CHILDRENS, YOUNG PEOPLE AND FAMILIES","	OCCG GRANT",CATERING,13/11/2020,7387665694,5.27,MCDONALDS
OXFORDSHIRE CC,"CHILDRENS, YOUNG PEOPLE AND FAMILIES",UASC 16&17,TRANSPORT TO SCHOOL,13/11/2020,7387665254,45.75,WWW.THEKEY.CO.UK
OXFORDSHIRE CC,SOCIAL AND COMMUNITY SERVICES,CSS - OXFORD,EQUIPMENT,13/11/2020,7387665260,199.96,WWW.TOOLSTATION.COM
OXFORDSHIRE CC,SOCIAL AND COMMUNITY SERVICES,CSS - OXFORD,EQUIPMENT,13/11/2020,7387665266,176.00,WICKES BUILDING
OXFORDSHIRE CC,ENVIRONMENT AND ECONOMY,HARD FM,EQUIPMENT,13/11/2020,7387665276,49.84,W F SENATE
OXFORDSHIRE CC,ENVIRONMENT AND ECONOMY,HARD FM,HARDWARE AND CROCKERY,13/11/2020,7387665282,53.10,CITY ELECTRICAL FA
OXFORDSHIRE CC,ENVIRONMENT AND ECONOMY,HARD FM,HARDWARE AND CROCKERY,13/11/2020,7387665290,115.06,CITY ELECTRICAL FA
OXFORDSHIRE CC,ENVIRONMENT AND ECONOMY,HARD FM,HARDWARE AND CROCKERY,13/11/2020,7387665296,44.00,B & Q 1156
OXFORDSHIRE CC,ENVIRONMENT AND ECONOMY,HARD FM,HARDWARE AND CROCKERY,13/11/2020,7387665304,22.00,WICKES OXFORD
OXFORDSHIRE CC,ENVIRONMENT AND ECONOMY,COUNTY LIBRARY,EDUCATIONAL AND VOCATIONAL TRAINING ,13/11/2020,7387665310,"1,000.00",OXFORD ENERGY ACADEMY
OXFORDSHIRE CC,ENVIRONMENT AND ECONOMY,COUNTY LIBRARY,EDUCATIONAL AND VOCATIONAL TRAINING ,13/11/2020,7387665318,272.00,OXFORD ENERGY ACADEMY
OXFORDSHIRE CC,"CHILDRENS, YOUNG PEOPLE AND FAMILIES","	LOOKED AFTER CITY 2",CLOTHING AND UNIFORMS,13/11/2020,7387666226,11.80,AMAZON.CO.UK M76KT1H54
OXFORDSHIRE CC,"CHILDRENS, YOUNG PEOPLE AND FAMILIES","	LEAVING CARE SOUTH",CATERING PROVISIONS,13/11/2020,7387666234,41.19,ALDI 99 775
OXFORDSHIRE CC,ENVIRONMENT AND ECONOMY,COUNTY LIBRARY,HARDWARE AND CROCKERY,13/11/2020,7387665322,14.99,SCREWFIX DIRECT
OXFORDSHIRE CC,"CHILDRENS, YOUNG PEOPLE AND FAMILIES",FSP NON-STAFFING - CENTRAL,MATERIALS,12/11/2020,7384542402,40.00,ARGOS LTD
OXFORDSHIRE CC,CORPORATE CORE,FINANCIAL ASSESSMENT,LEGAL COSTS,12/11/2020,7384542734,191.31,PAYPAL  CERTIFICADOS P
OXFORDSHIRE CC,CORPORATE CORE,,"SUPPLIES, STATIONERY AND MATERIALS",12/11/2020,7384543068,134.53,LYRECO UK LTD
OXFORDSHIRE CC,CORPORATE CORE,,"SUPPLIES, STATIONERY AND MATERIALS",12/11/2020,7384543074,98.59,LYRECO UK LTD
OXFORDSHIRE CC,"CHILDRENS, YOUNG PEOPLE AND FAMILIES",CSC COVID-19,TELEPHONE - EQUIPMENT,12/11/2020,7384542446,10.00,VESTA VODAFONE
OXFORDSHIRE CC,"CHILDRENS, YOUNG PEOPLE AND FAMILIES","	40 THE MOORS",TELEPHONE - EQUIPMENT,12/11/2020,7384542774,59.00,EE LIMITED
OXFORDSHIRE CC,SOCIAL AND COMMUNITY SERVICES,LEAVING CARE NORTH,CATERING PROVISIONS,12/11/2020,7384542780,5.24,MARTIN MCCOLL
OXFORDSHIRE CC,SOCIAL AND COMMUNITY SERVICES,"	MUSEUMS COLLECTIONS",OTHER SERVICES,12/11/2020,7384542786,67.57,TRANSPACK LIMITED
OXFORDSHIRE CC,SOCIAL AND COMMUNITY SERVICES,"	MUSEUMS COLLECTIONS",OTHER SERVICES,12/11/2020,7384542790,247.60,AZPACK LTD
OXFORDSHIRE CC,SOCIAL AND COMMUNITY SERVICES,SCHOOLS FM,MATERIALS,12/11/2020,7384542454,14.99,AMZNMKTPLACE AMAZON.CO
OXFORDSHIRE CC,CORPORATE CORE,ECH CENTRAL COSTS,MATERIALS,12/11/2020,7384542462,4.25,AMAZON.CO.UK M70YL1M74
OXFORDSHIRE CC,CORPORATE CORE,SCHOOLS FM CATERING AREA 3,MATERIALS,12/11/2020,7384542468,7.50,AMZNMKTPLACE
OXFORDSHIRE CC,CORPORATE CORE,SCHOOLS FM CATERING AREA 3,CATERING PROVISIONS,12/11/2020,7384542474,4.35,TESCO STORE 2653
OXFORDSHIRE CC,SOCIAL AND COMMUNITY SERVICES,CSS WITNEY,MATERIALS,12/11/2020,7384542838,8.62,AMZNMKTPLACE
OXFORDSHIRE CC,SOCIAL AND COMMUNITY SERVICES,CSS WITNEY,MATERIALS,12/11/2020,7384542842,7.49,AMZNMKTPLACE AMAZON.CO
OXFORDSHIRE CC,SOCIAL AND COMMUNITY SERVICES,CSS WITNEY,MATERIALS,12/11/2020,7384542844,3.99,AMZNMKTPLACE
OXFORDSHIRE CC,"CHILDRENS, YOUNG PEOPLE AND FAMILIES",PD EQUIPMENT,DISABILITY AIDS AND EQUIPMENT,12/11/2020,7384542846,105.02,COMPLETE CARE SHOP
OXFORDSHIRE CC,SOCIAL AND COMMUNITY SERVICES,CSS WITNEY,CATERING PROVISIONS,12/11/2020,7384542212,15.39,WM MORRISONS STORE
OXFORDSHIRE CC,SOCIAL AND COMMUNITY SERVICES,CSS BICESTER,CATERING PROVISIONS,12/11/2020,7384542214,15.00,WILKO RETAIL LIMITED
OXFORDSHIRE CC,"CHILDRENS, YOUNG PEOPLE AND FAMILIES","	40 THE MOORS",MATERIALS,12/11/2020,7384542532,20.00,ARGOS LTD
OXFORDSHIRE CC,CORPORATE CORE,,"SUPPLIES, STATIONERY AND MATERIALS",12/11/2020,7384543064,174.55,LYRECO UK LTD
OXFORDSHIRE CC,SOCIAL AND COMMUNITY SERVICES,CSS BICESTER,CATERING PROVISIONS,12/11/2020,7384542218,40.25,WILKO RETAIL LIMITED
OXFORDSHIRE CC,"CHILDRENS, YOUNG PEOPLE AND FAMILIES",CSS WALLINGFORD,MATERIALS,12/11/2020,7384542224,9.00,AMAZON.CO.UK M71OW6VO4
OXFORDSHIRE CC,"CHILDRENS, YOUNG PEOPLE AND FAMILIES",CSS WALLINGFORD,MATERIALS,12/11/2020,7384542226,3.79,AMZNMKTPLACE
OXFORDSHIRE CC,SOCIAL AND COMMUNITY SERVICES,CSS - OXFORD,CATERING PROVISIONS,12/11/2020,7384542552,43.34,ALDI STORES 775-142
OXFORDSHIRE CC,"CHILDRENS, YOUNG PEOPLE AND FAMILIES","	OCCG GRANT",CATERING PROVISIONS,12/11/2020,7384542570,5.00,TESCO STORES 6192
OXFORDSHIRE CC,"CHILDRENS, YOUNG PEOPLE AND FAMILIES","	OCCG GRANT",CLEANING MATERIALS,12/11/2020,7384542586,4.00,SAINSBURYS SACAT 0631
OXFORDSHIRE CC,"CHILDRENS, YOUNG PEOPLE AND FAMILIES","	40 THE MOORS",CATERING PROVISIONS,12/11/2020,7384542916,4.49,TESCO STORE 2788
OXFORDSHIRE CC,"CHILDRENS, YOUNG PEOPLE AND FAMILIES","	40 THE MOORS",OTHER TRANSPORT ARRANGEMENTS,12/11/2020,7384542938,61.00,WWW.THEKEY.CO.UK
OXFORDSHIRE CC,"CHILDRENS, YOUNG PEOPLE AND FAMILIES","	40 THE MOORS",TELEPHONE - EQUIPMENT,12/11/2020,7384542940,15.00,THREE
OXFORDSHIRE CC,"CHILDRENS, YOUNG PEOPLE AND FAMILIES",TRANSPORT COSTS,TRANSPORT TO SCHOOL,12/11/2020,7384542270,78.75,WWW.THEKEY.CO.UK
OXFORDSHIRE CC,"CHILDRENS, YOUNG PEOPLE AND FAMILIES","	LOOKED AFTER SOUTH",OTHER EXPENSES,12/11/2020,7384542272,4.05,FUNKYPIGEON.COM
OXFORDSHIRE CC,"CHILDRENS, YOUNG PEOPLE AND FAMILIES",WITNEY,CATERING PROVISIONS,12/11/2020,7384542280,27.98,LIDL GB WITNEY
OXFORDSHIRE CC,"CHILDRENS, YOUNG PEOPLE AND FAMILIES",DIDCOT MOVE-ON HOME,CATERING PROVISIONS,12/11/2020,7384542946,12.78,SAINSBURYS SACAT 2067
OXFORDSHIRE CC,SOCIAL AND COMMUNITY SERVICES,CSS - ABINGDON,MATERIALS,12/11/2020,7384542296,90.00,ARGOS LTD
OXFORDSHIRE CC,"CHILDRENS, YOUNG PEOPLE AND FAMILIES",THAME E&A HOME,VEHICLE FUEL,12/11/2020,7384542302,11.50,THAME BP SF CONNECT
OXFORDSHIRE CC,"CHILDRENS, YOUNG PEOPLE AND FAMILIES",UASC 16&17,CATERING PROVISIONS,12/11/2020,7384542308,16.99,TESCO STORE 2994
OXFORDSHIRE CC,ENVIRONMENT AND ECONOMY,HARD FM,GENERAL MAINTENANCE,12/11/2020,7384542312,184.64,WOLSELEY UK
OXFORDSHIRE CC,ENVIRONMENT AND ECONOMY,HARD FM,MATERIALS,12/11/2020,7384542318,28.59,HALFORDS 0567
OXFORDSHIRE CC,ENVIRONMENT AND ECONOMY,HARD FM,HARDWARE AND CROCKERY,12/11/2020,7384542322,5.59,SCREWFIX DIRECT
OXFORDSHIRE CC,ENVIRONMENT AND ECONOMY,HARD FM,HARDWARE AND CROCKERY,12/11/2020,7384542326,19.62,SCREWFIX DIRECT
OXFORDSHIRE CC,ENVIRONMENT AND ECONOMY,HARD FM,HIRE OF EQUIPMENT,12/11/2020,7384542330,62.55,DIDCOT PLANT LTD
OXFORDSHIRE CC,CORPORATE CORE,,"SUPPLIES, STATIONERY AND MATERIALS",12/11/2020,7384543078,20.80,LYRECO UK LTD
OXFORDSHIRE CC,"CHILDRENS, YOUNG PEOPLE AND FAMILIES",DIDCOT MOVE-ON HOME,CATERING PROVISIONS,12/11/2020,7384542418,1.09,ICELAND
OXFORDSHIRE CC,"CHILDRENS, YOUNG PEOPLE AND FAMILIES","	LEAVING CARE CITY 1",PAYMENT TO GOVERNMENT DEPARTMENTS,12/11/2020,7384542420,2.95,ST ALBANS DISTRICT COU
OXFORDSHIRE CC,"CHILDRENS, YOUNG PEOPLE AND FAMILIES","	LEAVING CARE CITY 1",CATERING PROVISIONS,12/11/2020,7384542422,50.00,SAINSBURYS SACAT 0629
OXFORDSHIRE CC,"CHILDRENS, YOUNG PEOPLE AND FAMILIES","	LEAVING CARE CITY 1",MATERIALS,12/11/2020,7384542426,86.41,THE RANGE
OXFORDSHIRE CC,CORPORATE CORE,"	MEMBERS SERVICES",MATERIALS,12/11/2020,7384542640,19.99,AMAZON.CO.UK M71E68XN4
OXFORDSHIRE CC,"CHILDRENS, YOUNG PEOPLE AND FAMILIES",BULLINGDON PRISON,"NEWSPAPERS, PERIODICALS AND PUBLICATIONS",12/11/2020,7384542994,38.88,PAYPAL  GVMEDIAGROU
OXFORDSHIRE CC,"CHILDRENS, YOUNG PEOPLE AND FAMILIES","	LEAVING CARE CITY 2",OTHER EXPENSES,12/11/2020,7384543000,49.99,AMZNMKTPLACE
OXFORDSHIRE CC,"CHILDRENS, YOUNG PEOPLE AND FAMILIES","	LOOKED AFTER CITY 2",POSTAGE AND DELIVERY,12/11/2020,7384543006,228.50,POST OFFICE COUNTER
OXFORDSHIRE CC,"CHILDRENS, YOUNG PEOPLE AND FAMILIES",UASC 16&17,OTHER EXPENSES,12/11/2020,7384543012,57.50,AMZNMKTPLACE AMAZON.CO
OXFORDSHIRE CC,ENVIRONMENT AND ECONOMY,HARD FM,HIRE OF EQUIPMENT,12/11/2020,7384542336,45.00,DIDCOT PLANT LTD
OXFORDSHIRE CC,ENVIRONMENT AND ECONOMY,HARD FM,HARDWARE AND CROCKERY,12/11/2020,7384542340,79.20,WWW.IRONMONGERYDIRECT.
OXFORDSHIRE CC,ENVIRONMENT AND ECONOMY,HARD FM,HARDWARE AND CROCKERY,12/11/2020,7384542344,143.53,SCREWFIX DIRECT
OXFORDSHIRE CC,ENVIRONMENT AND ECONOMY,HARD FM,HARDWARE AND CROCKERY,12/11/2020,7384542348,18.18,THE FENCING CENTRE
OXFORDSHIRE CC,ENVIRONMENT AND ECONOMY,HARD FM,EQUIPMENT,12/11/2020,7384542350,219.67,WWW.SIMPLYPLASTICS.COM
OXFORDSHIRE CC,ENVIRONMENT AND ECONOMY,"	WASTE MNGMNT GEN","PUBLICITY, PROMOTIONS AND ADVERTISEMENT",12/11/2020,7384542668,123.75,WWW.LETSRECYCLE.COM
OXFORDSHIRE CC,ENVIRONMENT AND ECONOMY,"	ICT OPERATIONS & MAI",INTERNAL RECH OTHEXP,12/11/2020,7384542678,11.70,ROYAL MAIL GROUP LTD
OXFORDSHIRE CC,ENVIRONMENT AND ECONOMY,"	ICT OPERATIONS & MAI",INTERNAL RECH OTHEXP,12/11/2020,7384542682,21.09,ROYAL MAIL GROUP LTD
OXFORDSHIRE CC,"CHILDRENS, YOUNG PEOPLE AND FAMILIES","	LEAVING CARE CITY 2",MATERIALS,12/11/2020,7384542698,17.49,AMZNMKTPLACE
OXFORDSHIRE CC,"CHILDRENS, YOUNG PEOPLE AND FAMILIES","	LEAVING CARE CITY 2",MATERIALS,12/11/2020,7384542704,79.99,AMZNMKTPLACE
OXFORDSHIRE CC,CORPORATE CORE,ECH CENTRAL COSTS,FURNITURE,12/11/2020,7384543016,5.00,ARGOS LTD
OXFORDSHIRE CC,"CHILDRENS, YOUNG PEOPLE AND FAMILIES","	LOOKED AFTER SOUTH",MATERIALS,12/11/2020,7384543020,57.84,AMZNMKTPLACE
OXFORDSHIRE CC,"CHILDRENS, YOUNG PEOPLE AND FAMILIES","	LOOKED AFTER SOUTH",PAYMENT TO GOVERNMENT DEPARTMENTS,12/11/2020,7384543024,14.00,GEN REGISTER OFFICE
OXFORDSHIRE CC,"CHILDRENS, YOUNG PEOPLE AND FAMILIES","	LOOKED AFTER SOUTH",CATERING PROVISIONS,12/11/2020,7384543026,7.00,ICELAND
OXFORDSHIRE CC,"CHILDRENS, YOUNG PEOPLE AND FAMILIES","	LOOKED AFTER SOUTH",DRUGS AND MEDICAL SUPPLIES,12/11/2020,7384543030,4.99,BOOTS THE CHEMIST
OXFORDSHIRE CC,"CHILDRENS, YOUNG PEOPLE AND FAMILIES","	LOOKED AFTER SOUTH",DRUGS AND MEDICAL SUPPLIES,12/11/2020,7384543032,1.49,BOOTS 0346
OXFORDSHIRE CC,"CHILDRENS, YOUNG PEOPLE AND FAMILIES","	LEAVING CARE CITY 2",OTHER EXPENSES,11/11/2020,7381784384,20.99,AMZNMKTPLACE
OXFORDSHIRE CC,"CHILDRENS, YOUNG PEOPLE AND FAMILIES","	LEAVING CARE CITY 2",OTHER EXPENSES,11/11/2020,7381784390,21.95,AMZNMKTPLACE
OXFORDSHIRE CC,"CHILDRENS, YOUNG PEOPLE AND FAMILIES","	LEAVING CARE CITY 2",OTHER EXPENSES,11/11/2020,7381784392,185.51,AMZNMKTPLACE
OXFORDSHIRE CC,"CHILDRENS, YOUNG PEOPLE AND FAMILIES","	LEAVING CARE CITY 2",OTHER EXPENSES,11/11/2020,7381784396,59.99,AMZNMKTPLACE
OXFORDSHIRE CC,"CHILDRENS, YOUNG PEOPLE AND FAMILIES","	LEAVING CARE CITY 2",OTHER EXPENSES,11/11/2020,7381784400,13.69,AMZNMKTPLACE
OXFORDSHIRE CC,"CHILDRENS, YOUNG PEOPLE AND FAMILIES","	LOOKED AFTER CITY 2",MATERIALS,11/11/2020,7381784404,21.99,AMZNMKTPLACE
OXFORDSHIRE CC,CORPORATE CORE,ICT OPERATIONS & MAI,IT SOFTWARE,11/11/2020,7381784438,783.95,PADDLE.NET  SYNCPENG
OXFORDSHIRE CC,CORPORATE CORE,ICT OPERATIONS & MAI,MATERIALS,11/11/2020,7381784442,9.98,AMZNMKTPLACE AMAZON.CO
OXFORDSHIRE CC,ENVIRONMENT AND ECONOMY,HARD FM,PAYMENT TO GOVERNMENT DEPARTMENTS,11/11/2020,7381783646,736.06,OXFORD DISTRICT SERVIC
OXFORDSHIRE CC,ENVIRONMENT AND ECONOMY,HARD FM,EQUIPMENT,11/11/2020,7381783650,3.24,DENMANS ELECTRICAL
OXFORDSHIRE CC,ENVIRONMENT AND ECONOMY,HARD FM,HARDWARE AND CROCKERY,11/11/2020,7381783654,9.00,WICKES OXFORD
OXFORDSHIRE CC,ENVIRONMENT AND ECONOMY,COUNTY LIBRARY,HARDWARE AND CROCKERY,11/11/2020,7381783656,331.92,SUREHEAT SPARES
OXFORDSHIRE CC,ENVIRONMENT AND ECONOMY,"	COUNTY PRINT FINSHRS",MATERIALS,11/11/2020,7381783672,5.86,WWW.TOOLSTATION.COM
OXFORDSHIRE CC,"CHILDRENS, YOUNG PEOPLE AND FAMILIES","	HOME SUPPORT",PAYMENTS TO HEALTH AUTHORITIES,11/11/2020,7381783944,479.40,AMZ MEDISAVE UK
OXFORDSHIRE CC,"CHILDRENS, YOUNG PEOPLE AND FAMILIES","	HOME SUPPORT",PAYMENTS TO HEALTH AUTHORITIES,11/11/2020,7381783948,479.40,AMZ MEDISAVE UK
OXFORDSHIRE CC,"CHILDRENS, YOUNG PEOPLE AND FAMILIES",FIELDWORK UASC,MATERIALS,11/11/2020,7381783958,19.92,AMZNMKTPLACE
OXFORDSHIRE CC,ENVIRONMENT AND ECONOMY,"	KNIGHTS COURT",CATERING PROVISIONS,11/11/2020,7381783972,2.20,SAINSBURYS SAC2305SAC
OXFORDSHIRE CC,"CHILDRENS, YOUNG PEOPLE AND FAMILIES","	LEAVING CARE NORTH",CATERING PROVISIONS,11/11/2020,7381784476,6.11,POUNDSTRETCHER 322
OXFORDSHIRE CC,"CHILDRENS, YOUNG PEOPLE AND FAMILIES","	LOOKED AFTER SOUTH",MATERIALS,11/11/2020,7381784480,2.85,AMZNMKTPLACE AMAZON.CO
OXFORDSHIRE CC,"CHILDRENS, YOUNG PEOPLE AND FAMILIES",NORTH FSS- WITNEY,TELEPHONE - EQUIPMENT,11/11/2020,7381783516,10.00,VESTA VODAFONE
OXFORDSHIRE CC,"CHILDRENS, YOUNG PEOPLE AND FAMILIES",SOUTH FSS STATUTORY - ABINGDON,PAYMENT TO GOVERNMENT DEPARTMENTS,11/11/2020,7381783526,-14.00,GEN REGISTER OFFICE
OXFORDSHIRE CC,"CHILDRENS, YOUNG PEOPLE AND FAMILIES",SOUTH FSS STATUTORY - ABINGDON,PAYMENT TO GOVERNMENT DEPARTMENTS,11/11/2020,7381783532,-7.50,GEN REGISTER OFFICE
OXFORDSHIRE CC,ENVIRONMENT AND ECONOMY,SURVEY & ENUMERATORS,MATERIALS,11/11/2020,7381783538,498.72,WWW.PITCHCARE.COM
OXFORDSHIRE CC,"CHILDRENS, YOUNG PEOPLE AND FAMILIES",DIDCOT MOVE-ON HOME,CATERING PROVISIONS,11/11/2020,7381783786,7.70,SAINSBURYS SACAT 2067
OXFORDSHIRE CC,"CHILDRENS, YOUNG PEOPLE AND FAMILIES",DIDCOT MOVE-ON HOME,CATERING PROVISIONS,11/11/2020,7381783790,5.57,SAINSBURYS SACAT 2067
OXFORDSHIRE CC,"CHILDRENS, YOUNG PEOPLE AND FAMILIES",UASC POST 18,PAYMENT TO GOVERNMENT DEPARTMENTS,11/11/2020,7381783794,75.00,2MAA024701599 TD E-PMT
OXFORDSHIRE CC,ENVIRONMENT AND ECONOMY,"	ICT OPERATIONS & MAI",INTERNAL RECH OTHEXP,11/11/2020,7381784100,133.00,ROYAL MAIL GROUP LTD
OXFORDSHIRE CC,ENVIRONMENT AND ECONOMY,"	ICT OPERATIONS & MAI",INTERNAL RECH OTHEXP,11/11/2020,7381784102,21.38,ROYAL MAIL GROUP LTD
OXFORDSHIRE CC,ENVIRONMENT AND ECONOMY,"	ICT OPERATIONS & MAI",INTERNAL RECH OTHEXP,11/11/2020,7381784104,4.12,ROYAL MAIL GROUP LTD
OXFORDSHIRE CC,"CHILDRENS, YOUNG PEOPLE AND FAMILIES","	LEAVING CARE CITY 2",MATERIALS,11/11/2020,7381784110,28.99,AMZNMKTPLACE
OXFORDSHIRE CC,"CHILDRENS, YOUNG PEOPLE AND FAMILIES","	LEAVING CARE CITY 2",MATERIALS,11/11/2020,7381784114,4.58,AMZNMKTPLACE
OXFORDSHIRE CC,"CHILDRENS, YOUNG PEOPLE AND FAMILIES","	LOOKED AFTER CITY 2",VEHICLE FUEL,11/11/2020,7381784120,34.61,BP MILTON HEIGHTS S/SE
OXFORDSHIRE CC,"CHILDRENS, YOUNG PEOPLE AND FAMILIES","	FOSTER CARE RECRUIT","SUPPLIES, STATIONERY AND MATERIALS",11/11/2020,7381784142,240.00,FYNE ASSOCIATED
OXFORDSHIRE CC,CORPORATE CORE,,"SUPPLIES, STATIONERY AND MATERIALS",11/11/2020,7381784498,95.65,LYRECO UK LTD
OXFORDSHIRE CC,CORPORATE CORE,,"SUPPLIES, STATIONERY AND MATERIALS",11/11/2020,7381784502,57.60,LYRECO UK LTD
OXFORDSHIRE CC,"CHILDRENS, YOUNG PEOPLE AND FAMILIES",DIDCOT MOVE-ON HOME,CATERING PROVISIONS,11/11/2020,7381784364,1.55,SAINSBURYS SACAT 2067
OXFORDSHIRE CC,SOCIAL AND COMMUNITY SERVICES,DIDCOT MOVE-ON HOME,CATERING,11/11/2020,7381783702,20.40,JUST EAT
OXFORDSHIRE CC,"CHILDRENS, YOUNG PEOPLE AND FAMILIES",CNTL EARLY HELP-RHIL,MATERIALS,11/11/2020,7381783710,43.94,ARGOS LTD
OXFORDSHIRE CC,CORPORATE CORE,"MARKETING, COMMUNICATIONS & ENGAGEMENT",PHOTOCOPYING,11/11/2020,7381783988,29.00,STK SHUTTERSTOCK
OXFORDSHIRE CC,"CHILDRENS, YOUNG PEOPLE AND FAMILIES","	OCCG GRANT",PAYMENTS TO TRANSPORT OPERATORS,11/11/2020,7381784004,13.80,GWR OXFORD SST
OXFORDSHIRE CC,SOCIAL AND COMMUNITY SERVICES,WANTAGE LIBRARY,CATERING PROVISIONS,11/11/2020,7381784380,12.00,WILKO RETAIL LIMITED
OXFORDSHIRE CC,CORPORATE CORE,"	LEGAL SERVICES",LEGAL COSTS,11/11/2020,7381784174,-13.00,LONDON BOROUGH OF
OXFORDSHIRE CC,ENTERPRISEVC,,CAR LEASING - PRIVATE RENTALS,11/11/2020,7381784538,70.70,ENTERPRISE RENT-A-CAR
OXFORDSHIRE CC,ENTERPRISEVC,,CAR LEASING - PRIVATE RENTALS,11/11/2020,7381784542,433.16,ENTERPRISE RENT-A-CAR
OXFORDSHIRE CC,,,CATERING,11/11/2020,7381784546,5.76,BRAKE BROS LTD
OXFORDSHIRE CC,,,CATERING,11/11/2020,7381784550,141.63,BRAKE BROS LTD
OXFORDSHIRE CC,,,CATERING,11/11/2020,7381784554,8.54,BRAKE BROS LTD
OXFORDSHIRE CC,ENVIRONMENT AND ECONOMY,HARD FM,GENERAL MAINTENANCE,11/11/2020,7381783616,18.30,WOLSELEY UK
OXFORDSHIRE CC,ENVIRONMENT AND ECONOMY,HARD FM,GENERAL MAINTENANCE,11/11/2020,7381783622,36.66,WOLSELEY UK
OXFORDSHIRE CC,ENVIRONMENT AND ECONOMY,HARD FM,HARDWARE AND CROCKERY,11/11/2020,7381783624,922.80,CITY PLUMBING
OXFORDSHIRE CC,ENVIRONMENT AND ECONOMY,HARD FM,HARDWARE AND CROCKERY,11/11/2020,7381783626,214.14,CITY PLUMBING
OXFORDSHIRE CC,ENVIRONMENT AND ECONOMY,HARD FM,HARDWARE AND CROCKERY,11/11/2020,7381783630,64.80,CITY PLUMBING
OXFORDSHIRE CC,ENVIRONMENT AND ECONOMY,HARD FM,HARDWARE AND CROCKERY,11/11/2020,7381783634,27.96,SCREWFIX DIRECT
OXFORDSHIRE CC,ENVIRONMENT AND ECONOMY,HARD FM,HARDWARE AND CROCKERY,11/11/2020,7381783636,163.52,CITY ELECTRICAL FA
OXFORDSHIRE CC,ENVIRONMENT AND ECONOMY,HARD FM,HARDWARE AND CROCKERY,11/11/2020,7381783640,9.99,SCREWFIX DIR LTD
OXFORDSHIRE CC,ENVIRONMENT AND ECONOMY,HARD FM,HARDWARE AND CROCKERY,11/11/2020,7381783642,57.92,SCREWFIX DIRECT
OXFORDSHIRE CC,SOCIAL AND COMMUNITY SERVICES,CSS BICESTER,CATERING PROVISIONS,11/11/2020,7381783868,-32.90,SAINSBURYS (2243)
OXFORDSHIRE CC,"CHILDRENS, YOUNG PEOPLE AND FAMILIES",NTH FAM SUPRT-BCSTR,OTHER TRANSPORT ARRANGEMENTS,11/11/2020,7381783876,41.00,STAGECOACH SERVICE
OXFORDSHIRE CC,"CHILDRENS, YOUNG PEOPLE AND FAMILIES","	LEAVING CARE NORTH",CLOTHING AND UNIFORMS,11/11/2020,7381783890,13.98,M AND M DIRECT LTD
OXFORDSHIRE CC,"CHILDRENS, YOUNG PEOPLE AND FAMILIES","	LEAVING CARE NORTH",CLOTHING AND UNIFORMS,11/11/2020,7381783892,21.97,WWW.BIGDUDECLOTHING.CO
OXFORDSHIRE CC,ENTERPRISEVC,BUSINESS SYST STAFF,REGISTRATION AND INSPECTION FEES,11/11/2020,7381783778,228.00,THOMSON REUTERS UK LTD
OXFORDSHIRE CC,"CHILDRENS, YOUNG PEOPLE AND FAMILIES",DIDCOT MOVE-ON HOME,MATERIALS,11/11/2020,7381783782,65.94,ROBERT DYAS HOLDNG LTD
OXFORDSHIRE CC,ENVIRONMENT AND ECONOMY,"	WASTE MNGMNT GEN","PUBLICITY, PROMOTIONS AND ADVERTISEMENT",11/11/2020,7381784082,247.50,WWW.LETSRECYCLE.COM
OXFORDSHIRE CC,ENVIRONMENT AND ECONOMY,"	ICT OPERATIONS & MAI",INTERNAL RECH OTHEXP,11/11/2020,7381784098,75.00,ROYAL MAIL GROUP LTD
OXFORDSHIRE CC,"CHILDRENS, YOUNG PEOPLE AND FAMILIES",EYNSHAM,CATERING PROVISIONS,11/11/2020,7381784450,134.95,TESCO STORES 2008
OXFORDSHIRE CC,"CHILDRENS, YOUNG PEOPLE AND FAMILIES",UASC 16&17,"SUPPLIES, STATIONERY AND MATERIALS",11/11/2020,7381784460,16.44,AMAZON.CO.UK M783H6PP4
OXFORDSHIRE CC,SOCIAL AND COMMUNITY SERVICES,CSS WITNEY,MATERIALS,11/11/2020,7381784244,14.99,AMAZON.CO.UK M77TP3GN4
OXFORDSHIRE CC,SOCIAL AND COMMUNITY SERVICES,CSS WITNEY,MATERIALS,11/11/2020,7381784248,15.40,AMAZON.CO.UK M78YP9GX4
OXFORDSHIRE CC,SOCIAL AND COMMUNITY SERVICES,CSS WITNEY,MATERIALS,11/11/2020,7381784254,27.34,AMZNMKTPLACE
OXFORDSHIRE CC,SOCIAL AND COMMUNITY SERVICES,CSS WITNEY,MATERIALS,11/11/2020,7381784258,9.95,AMZNMKTPLACE
OXFORDSHIRE CC,SOCIAL AND COMMUNITY SERVICES,LOOKED AFTER SOUTH,OTHER TRANSPORT ARRANGEMENTS,11/11/2020,7381783912,3.00,OXPENS CAR PARK
OXFORDSHIRE CC,"CHILDRENS, YOUNG PEOPLE AND FAMILIES",THAME E&A HOME,MATERIALS,11/11/2020,7381783922,6.99,TESCO SUBSCRIPTION
OXFORDSHIRE CC,SOCIAL AND COMMUNITY SERVICES,CSS WANTAGE,MATERIALS,11/11/2020,7381784264,3.98,HOME BARGAINS
OXFORDSHIRE CC,"CHILDRENS, YOUNG PEOPLE AND FAMILIES",POST 16 SI TRADED,DISABILITY AIDS AND EQUIPMENT,11/11/2020,7381784272,12.60,RNIB CHARITY
OXFORDSHIRE CC,CORPORATE CORE,CSC WORKFORCE DEVELOPMENT,FURNITURE,11/11/2020,7381784300,356.64,WWW.MACOIDIRECT.CO
OXFORDSHIRE CC,ENVIRONMENT AND ECONOMY,"	FLEET OPERATIONS",POSTAGE AND DELIVERY,11/11/2020,7381784306,1.83,POST OFFICE COUNTER
OXFORDSHIRE CC,CORPORATE CORE,,"SUPPLIES, STATIONERY AND MATERIALS",11/11/2020,7381784506,14.04,LYRECO UK LTD
OXFORDSHIRE CC,CORPORATE CORE,,"SUPPLIES, STATIONERY AND MATERIALS",11/11/2020,7381784510,3.48,LYRECO UK LTD
OXFORDSHIRE CC,ENTERPRISEVC,,CAR LEASING - PRIVATE RENTALS,11/11/2020,7381784514,59.96,ENTERPRISE RENT-A-CAR
OXFORDSHIRE CC,ENTERPRISEVC,,CAR LEASING - PRIVATE RENTALS,11/11/2020,7381784520,78.11,ENTERPRISE RENT-A-CAR
OXFORDSHIRE CC,ENTERPRISEVC,,CAR LEASING - PRIVATE RENTALS,11/11/2020,7381784524,97.01,ENTERPRISE RENT-A-CAR
OXFORDSHIRE CC,ENTERPRISEVC,,CAR LEASING - PRIVATE RENTALS,11/11/2020,7381784528,46.85,ENTERPRISE RENT-A-CAR
OXFORDSHIRE CC,ENTERPRISEVC,,CAR LEASING - PRIVATE RENTALS,11/11/2020,7381784532,42.96,ENTERPRISE RENT-A-CAR
OXFORDSHIRE CC,"CHILDRENS, YOUNG PEOPLE AND FAMILIES",ATV ADOPTION WOODLEY,MATERIALS,11/11/2020,7381783566,18.54,AMAZON.CO.UK M78U78GQ4
OXFORDSHIRE CC,SOCIAL AND COMMUNITY SERVICES,CSS - ABINGDON,CATERING PROVISIONS,11/11/2020,7381783568,30.77,TESCO STORES 2008
OXFORDSHIRE CC,"CHILDRENS, YOUNG PEOPLE AND FAMILIES","	RESIDENTIAL STRATEGY",CATERING,11/11/2020,7381783600,9.40,GREGGS ACORN
OXFORDSHIRE CC,SOCIAL AND COMMUNITY SERVICES,CSS - ABINGDON,"BOOKS, DVDS AND CDS",11/11/2020,7381783606,228.00,WWW.AMACSPORTS.CO.UK
OXFORDSHIRE CC,SOCIAL AND COMMUNITY SERVICES,CSS - ABINGDON,"BOOKS, DVDS AND CDS",11/11/2020,7381783610,119.00,WWW.AMACSPORTS.CO.UK
OXFORDSHIRE CC,SOCIAL AND COMMUNITY SERVICES,"	LEARNING & ACCESS",MATERIALS,11/11/2020,7381783822,24.79,AMZNMKTPLACE AMAZON.CO
OXFORDSHIRE CC,SOCIAL AND COMMUNITY SERVICES,"	LEARNING & ACCESS",MATERIALS,11/11/2020,7381783824,34.80,AMZNMKTPLACE AMAZON.CO
OXFORDSHIRE CC,SOCIAL AND COMMUNITY SERVICES,CSS WITNEY,MATERIALS,10/11/2020,7379264912,6.99,AMZNMKTPLACE
OXFORDSHIRE CC,SOCIAL AND COMMUNITY SERVICES,CSS WITNEY,CATERING PROVISIONS,10/11/2020,7379264914,130.68,TESCO STORES 2008
OXFORDSHIRE CC,SOCIAL AND COMMUNITY SERVICES,CSS WITNEY,MATERIALS,10/11/2020,7379264918,7.99,AMZNMKTPLACE
OXFORDSHIRE CC,SOCIAL AND COMMUNITY SERVICES,CSS WITNEY,MATERIALS,10/11/2020,7379264922,9.99,AMZNMKTPLACE
OXFORDSHIRE CC,SOCIAL AND COMMUNITY SERVICES,CSS WITNEY,CATERING PROVISIONS,10/11/2020,7379264924,-2.09,TESCO STORES 2008
OXFORDSHIRE CC,SOCIAL AND COMMUNITY SERVICES,CSS WANTAGE,CATERING PROVISIONS,10/11/2020,7379264928,17.00,SAINSBURYS SACAT 2244
OXFORDSHIRE CC,"CHILDRENS, YOUNG PEOPLE AND FAMILIES",CSS WALLINGFORD,CATERING PROVISIONS,10/11/2020,7379263798,32.75,WAITROSE 675
OXFORDSHIRE CC,"CHILDRENS, YOUNG PEOPLE AND FAMILIES",STH EARLY HELP-ABNDN,MATERIALS,10/11/2020,7379263806,23.98,AMAZON.CO.UK M73KM50F4
OXFORDSHIRE CC,"CHILDRENS, YOUNG PEOPLE AND FAMILIES",EYNSHAM,FURNITURE,10/11/2020,7379263858,7.99,AMZNMKTPLACE AMAZON.CO
OXFORDSHIRE CC,SOCIAL AND COMMUNITY SERVICES,CSS - ABINGDON,MATERIALS,10/11/2020,7379263864,8.00,POUNDLAND LTD 1366
OXFORDSHIRE CC,ENVIRONMENT AND ECONOMY,HARD FM,HARDWARE AND CROCKERY,10/11/2020,7379263962,33.27,B AND Q
OXFORDSHIRE CC,ENVIRONMENT AND ECONOMY,HARD FM,HARDWARE AND CROCKERY,10/11/2020,7379263972,153.00,WWW.PUMPSALESDIRECT.CO
OXFORDSHIRE CC,SOCIAL AND COMMUNITY SERVICES,CSS - BANBURY,CATERING PROVISIONS,10/11/2020,7379265074,7.24,TESCO STORE 2064
OXFORDSHIRE CC,"CHILDRENS, YOUNG PEOPLE AND FAMILIES","	40 THE MOORS",OTHER TRANSPORT ARRANGEMENTS,10/11/2020,7379265094,55.00,WWW.THENEWFORESTTOUR.I
OXFORDSHIRE CC,"CHILDRENS, YOUNG PEOPLE AND FAMILIES",DIDCOT MOVE-ON HOME,CATERING PROVISIONS,10/11/2020,7379265106,11.52,SAINSBURYS SACAT 2067
OXFORDSHIRE CC,ENVIRONMENT AND ECONOMY,HARD FM,HARDWARE AND CROCKERY,10/11/2020,7379263982,14.99,SCREWFIX DIRECT
OXFORDSHIRE CC,ENVIRONMENT AND ECONOMY,COUNTY LIBRARY,HARDWARE AND CROCKERY,10/11/2020,7379263990,29.98,SUREHEAT SPARES
OXFORDSHIRE CC,"CHILDRENS, YOUNG PEOPLE AND FAMILIES",EYNSHAM,CATERING PROVISIONS,10/11/2020,7379264046,16.00,CO-OPERATIVE FOOD
OXFORDSHIRE CC,"CHILDRENS, YOUNG PEOPLE AND FAMILIES","	LEAVING CARE CITY 2",MATERIALS,10/11/2020,7379265154,30.88,AMZNMKTPLACE
OXFORDSHIRE CC,"CHILDRENS, YOUNG PEOPLE AND FAMILIES","	LEAVING CARE CITY 2",OTHER EXPENSES,10/11/2020,7379265160,41.45,ARGOS LTD
OXFORDSHIRE CC,"CHILDRENS, YOUNG PEOPLE AND FAMILIES","	LEAVING CARE SOUTH",CATERING PROVISIONS,10/11/2020,7379265166,103.50,SAINSBURYS 2067
OXFORDSHIRE CC,CORPORATE CORE,ICT OPERATIONS & MAI,IT SERVICES,10/11/2020,7379265178,300.00,COMMS365 LIMITED
OXFORDSHIRE CC,"CHILDRENS, YOUNG PEOPLE AND FAMILIES",EYNSHAM,CATERING PROVISIONS,10/11/2020,7379265190,13.00,MAYFIELDEGGS
OXFORDSHIRE CC,"CHILDRENS, YOUNG PEOPLE AND FAMILIES",EYNSHAM,CATERING,10/11/2020,7379265194,194.75,BOOKER LIMITED OXFORD
OXFORDSHIRE CC,CORPORATE CORE,"	LEGAL SERVICES",LEGAL COSTS,10/11/2020,7379264796,22.00,WWW.BRENTGOV.UK
OXFORDSHIRE CC,"CHILDRENS, YOUNG PEOPLE AND FAMILIES","	RIVERSIDE CENTRE",CATERING PROVISIONS,10/11/2020,7379264802,1.75,TESCO-STORES 2305
OXFORDSHIRE CC,"CHILDRENS, YOUNG PEOPLE AND FAMILIES","	RIVERSIDE CENTRE",CATERING PROVISIONS,10/11/2020,7379264808,12.04,CO-OPERATIVE FOOD
OXFORDSHIRE CC,"CHILDRENS, YOUNG PEOPLE AND FAMILIES","	RESIDENTIAL STRATEGY",CATERING PROVISIONS,10/11/2020,7379264824,36.98,OXFORD PEARTREE KFC
OXFORDSHIRE CC,"CHILDRENS, YOUNG PEOPLE AND FAMILIES","	RESIDENTIAL STRATEGY",CATERING,10/11/2020,7379264830,19.50,OVISHER RESTAURANT
OXFORDSHIRE CC,"CHILDRENS, YOUNG PEOPLE AND FAMILIES","	LEAVING CARE NORTH",PAYMENTS TO VOLUNTARY BODIES,10/11/2020,7379264858,213.00,EMMAUS OXFORD
OXFORDSHIRE CC,"CHILDRENS, YOUNG PEOPLE AND FAMILIES","	LEAVING CARE NORTH",MATERIALS,10/11/2020,7379264864,149.99,CURRYS ONLINE
OXFORDSHIRE CC,SOCIAL AND COMMUNITY SERVICES,CSS WITNEY,MATERIALS,10/11/2020,7379264892,4.99,AMAZON.CO.UK M78LF31T4
OXFORDSHIRE CC,SOCIAL AND COMMUNITY SERVICES,CSS WITNEY,MATERIALS,10/11/2020,7379264896,11.99,AMZNMKTPLACE
OXFORDSHIRE CC,SOCIAL AND COMMUNITY SERVICES,CSS WITNEY,MATERIALS,10/11/2020,7379264900,29.95,AMZNMKTPLACE
OXFORDSHIRE CC,SOCIAL AND COMMUNITY SERVICES,CSS WITNEY,MATERIALS,10/11/2020,7379264906,10.99,AMZNMKTPLACE
OXFORDSHIRE CC,SOCIAL AND COMMUNITY SERVICES,CSS WITNEY,MATERIALS,10/11/2020,7379264908,10.99,AMZNMKTPLACE
OXFORDSHIRE CC,CORPORATE CORE,,"SUPPLIES, STATIONERY AND MATERIALS",10/11/2020,7379265272,23.09,LYRECO UK LTD
OXFORDSHIRE CC,CORPORATE CORE,,"SUPPLIES, STATIONERY AND MATERIALS",10/11/2020,7379265274,5.50,LYRECO UK LTD
OXFORDSHIRE CC,CORPORATE CORE,,"SUPPLIES, STATIONERY AND MATERIALS",10/11/2020,7379265278,15.71,LYRECO UK LTD
OXFORDSHIRE CC,SOCIAL AND COMMUNITY SERVICES,DIDCOT MOVE-ON HOME,CATERING PROVISIONS,10/11/2020,7379264232,11.88,B&M 514 - DICOT
OXFORDSHIRE CC,SOCIAL AND COMMUNITY SERVICES,CSS BICESTER,CATERING PROVISIONS,10/11/2020,7379264268,32.90,SAINSBURYS (2243)
OXFORDSHIRE CC,"CHILDRENS, YOUNG PEOPLE AND FAMILIES","	LOOKED AFTER CITY 1",POSTAGE AND DELIVERY,10/11/2020,7379264276,1.52,POST OFFICE COUNTER
OXFORDSHIRE CC,"CHILDRENS, YOUNG PEOPLE AND FAMILIES","	LEAVING CARE NORTH",CLOTHING AND UNIFORMS,10/11/2020,7379264288,42.29,BOOHOO.COM
OXFORDSHIRE CC,CORPORATE CORE,SCHOOLS FM CATERING AREA 3,CATERING,10/11/2020,7379264302,62.93,BOOKER LIMITED OXFORD
OXFORDSHIRE CC,"CHILDRENS, YOUNG PEOPLE AND FAMILIES",THAME E&A HOME,CATERING PROVISIONS,10/11/2020,7379264376,160.31,TESCO STORES 2038
OXFORDSHIRE CC,"CHILDRENS, YOUNG PEOPLE AND FAMILIES","	RIVERSIDE CENTRE",VEHICLE FUEL,10/11/2020,7379264412,69.00,SAINSBURYS OPT 0180
OXFORDSHIRE CC,ENVIRONMENT AND ECONOMY,HOLTON SITE,MATERIALS,10/11/2020,7379264452,13.98,AMZNMKTPLACE
OXFORDSHIRE CC,ENVIRONMENT AND ECONOMY,"	LIBRARY PROJECTS",HARDWARE AND CROCKERY,10/11/2020,7379264458,34.99,SCREWFIX DIRECT
OXFORDSHIRE CC,ENVIRONMENT AND ECONOMY,"	LIBRARY PROJECTS",MATERIALS,10/11/2020,7379264460,-39.99,AMZ SIWEIQI
OXFORDSHIRE CC,CORPORATE CORE,BUSINESS SUPPORT,"SUPPLIES, STATIONERY AND MATERIALS",10/11/2020,7379264472,609.92,EDENRED (INCENTIVES &
OXFORDSHIRE CC,CORPORATE CORE,RECHARGES SOC CARE,"SUPPLIES, STATIONERY AND MATERIALS",10/11/2020,7379264472,609.92,EDENRED (INCENTIVES &
OXFORDSHIRE CC,CORPORATE CORE,CEF EYECARE VOUCHERS,"SUPPLIES, STATIONERY AND MATERIALS",10/11/2020,7379264472,609.91,EDENRED (INCENTIVES &
OXFORDSHIRE CC,"CHILDRENS, YOUNG PEOPLE AND FAMILIES",WITNEY,CATERING,10/11/2020,7379264492,8.70,SAINSBURYS SACAT 0632
OXFORDSHIRE CC,"CHILDRENS, YOUNG PEOPLE AND FAMILIES",FIELDWORK UASC,NON-STAFF SUBSISTENCE AND EXPENSES,10/11/2020,7379263906,10.55,SAINSBURYS SACAT 0642
OXFORDSHIRE CC,SOCIAL AND COMMUNITY SERVICES,"	ASSESSMENT TEAM NORT",CAR LEASING - PRIVATE RENTALS,10/11/2020,7379265060,30.00,BICESTER CAR & VAN REN
OXFORDSHIRE CC,SOCIAL AND COMMUNITY SERVICES,"	ASSESSMENT TEAM NORT",VEHICLE FUEL,10/11/2020,7379265062,6.04,ESSO ERMONT WAY SSTN
OXFORDSHIRE CC,ENVIRONMENT AND ECONOMY,HARD FM,GENERAL MAINTENANCE,10/11/2020,7379263924,326.02,WOLSELEY UK
OXFORDSHIRE CC,ENVIRONMENT AND ECONOMY,HARD FM,GENERAL MAINTENANCE,10/11/2020,7379263932,30.31,WOLSELEY UK
OXFORDSHIRE CC,ENVIRONMENT AND ECONOMY,HARD FM,GENERAL MAINTENANCE,10/11/2020,7379263938,159.80,WOLSELEY UK
OXFORDSHIRE CC,ENVIRONMENT AND ECONOMY,HARD FM,GENERAL MAINTENANCE,10/11/2020,7379263940,27.28,WOLSELEY UK
OXFORDSHIRE CC,ENVIRONMENT AND ECONOMY,HARD FM,GENERAL MAINTENANCE,10/11/2020,7379263944,-119.04,WOLSELEY UK
OXFORDSHIRE CC,ENVIRONMENT AND ECONOMY,HARD FM,HARDWARE AND CROCKERY,10/11/2020,7379263952,59.85,SCREWFIX DIRECT
OXFORDSHIRE CC,CORPORATE CORE,INCOME TEAM,PAYMENT TO GOVERNMENT DEPARTMENTS,10/11/2020,7379264496,1.50,WWW.GOV.UK
OXFORDSHIRE CC,"CHILDRENS, YOUNG PEOPLE AND FAMILIES","	40 THE MOORS",CATERING PROVISIONS,10/11/2020,7379264498,157.24,SAINSBURYS (2243)
OXFORDSHIRE CC,"CHILDRENS, YOUNG PEOPLE AND FAMILIES","	40 THE MOORS",CLOTHING AND UNIFORMS,10/11/2020,7379264502,49.00,WWW.ASOS.COM
OXFORDSHIRE CC,CORPORATE CORE,"MARKETING, COMMUNICATIONS & ENGAGEMENT","PUBLICITY, PROMOTIONS AND ADVERTISEMENT",10/11/2020,7379264536,500.00,FACEBK XXXDAXW8Z2
OXFORDSHIRE CC,"CHILDRENS, YOUNG PEOPLE AND FAMILIES","	OCCG GRANT",CATERING PROVISIONS,10/11/2020,7379264578,4.50,TESCO STORES 2008
OXFORDSHIRE CC,"CHILDRENS, YOUNG PEOPLE AND FAMILIES",UASC 16&17,CATERING PROVISIONS,10/11/2020,7379264586,4.53,CO-OPERATIVE FOOD
OXFORDSHIRE CC,CORPORATE CORE,PUBLIC HEALTH GENERA,PAYMENTS TO VOLUNTARY BODIES,10/11/2020,7379264596,262.50,JUSTGIVING
OXFORDSHIRE CC,CORPORATE CORE,PUBLIC HEALTH GENERA,SUBSCRIPTIONS,10/11/2020,7379264604,238.25,HIGHSTREETVOUCHERS
OXFORDSHIRE CC,CORPORATE CORE,"	MEMBERS SERVICES",MATERIALS,10/11/2020,7379264660,30.96,AMAZON.CO.UK M744W90B4
OXFORDSHIRE CC,CORPORATE CORE,BULLINGDON PRISON,"BOOKS, DVDS AND CDS",10/11/2020,7379264680,395.00,THOMSON REUTERS UK LTD
OXFORDSHIRE CC,ENVIRONMENT AND ECONOMY,"	ICT OPERATIONS & MAI",INTERNAL RECH OTHEXP,10/11/2020,7379264722,163.00,ROYAL MAIL GROUP LTD
OXFORDSHIRE CC,CORPORATE CORE,ECH CENTRAL COSTS,FURNITURE,10/11/2020,7379265204,9.99,CHERWELL DC
OXFORDSHIRE CC,CORPORATE CORE,ECH CENTRAL COSTS,FURNITURE,10/11/2020,7379265210,34.50,ASDA GEORGE COM LEEDS
OXFORDSHIRE CC,CORPORATE CORE,ECH CENTRAL COSTS,FURNITURE,10/11/2020,7379265214,48.00,ARGOS LTD
OXFORDSHIRE CC,CORPORATE CORE,ECH CENTRAL COSTS,FURNITURE,10/11/2020,7379265220,256.95,ARGOS LTD
OXFORDSHIRE CC,"CHILDRENS, YOUNG PEOPLE AND FAMILIES",NTH FAM SUPRT-BCSTR,PAYMENTS TO TRANSPORT OPERATORS,10/11/2020,7379264192,9.80,WWW.GWR.COM
OXFORDSHIRE CC,ENTERPRISEVC,BUSINESS SYST STAFF,TELEPHONE - EQUIPMENT,10/11/2020,7379264202,39.00,BRITISH TELECOMMUNICAT
OXFORDSHIRE CC,"CHILDRENS, YOUNG PEOPLE AND FAMILIES",THAME E&A HOME,CATERING PROVISIONS,09/11/2020,7375798104,6.25,SAINSBURYS SACAT 0600
OXFORDSHIRE CC,"CHILDRENS, YOUNG PEOPLE AND FAMILIES",THAME E&A HOME,CATERING PROVISIONS,09/11/2020,7375798114,57.00,SAINSBURYS 2096
OXFORDSHIRE CC,"CHILDRENS, YOUNG PEOPLE AND FAMILIES",UASC 16&17,CATERING,09/11/2020,7375798196,27.34,DOMINO S PIZZA
OXFORDSHIRE CC,CORPORATE CORE,"MARKETING, COMMUNICATIONS & ENGAGEMENT",IT SOFTWARE,09/11/2020,7375797682,183.18,MAILCHIMP
OXFORDSHIRE CC,CORPORATE CORE,"MARKETING, COMMUNICATIONS & ENGAGEMENT",IT SOFTWARE,09/11/2020,7375797686,7.87,RSS.APP
OXFORDSHIRE CC,CORPORATE CORE,"MARKETING, COMMUNICATIONS & ENGAGEMENT",IT SOFTWARE,09/11/2020,7375797690,500.00,GOOGLE  ADS4896546035
OXFORDSHIRE CC,"CHILDRENS, YOUNG PEOPLE AND FAMILIES",THAME E&A HOME,MATERIALS,09/11/2020,7375797724,20.70,PP TRINITYOXFO
OXFORDSHIRE CC,"CHILDRENS, YOUNG PEOPLE AND FAMILIES",THAME E&A HOME,MATERIALS,09/11/2020,7375797730,22.00,PP TRINITYOXFO
OXFORDSHIRE CC,"CHILDRENS, YOUNG PEOPLE AND FAMILIES",THAME E&A HOME,MATERIALS,09/11/2020,7375797738,4.95,PP TRINITYOXFO
OXFORDSHIRE CC,"CHILDRENS, YOUNG PEOPLE AND FAMILIES",KINGFISHER,MATERIALS,09/11/2020,7375797768,7.99,AMAZON PRIME M74RU5AT4
OXFORDSHIRE CC,"CHILDRENS, YOUNG PEOPLE AND FAMILIES","	OCCG GRANT",CATERING PROVISIONS,09/11/2020,7375797790,16.45,TESCO STORES 6880
OXFORDSHIRE CC,"CHILDRENS, YOUNG PEOPLE AND FAMILIES",UASC 16&17,CATERING PROVISIONS,09/11/2020,7375797798,5.95,HEADINGTON BUTCHERS AN
OXFORDSHIRE CC,"CHILDRENS, YOUNG PEOPLE AND FAMILIES",UASC 16&17,CATERING PROVISIONS,09/11/2020,7375797806,16.85,TESCO STORES 6880
OXFORDSHIRE CC,"CHILDRENS, YOUNG PEOPLE AND FAMILIES","	LEAVING CARE CITY 1",FURNITURE,09/11/2020,7375797816,-398.00,IKEA LTD SHOP ONLINE
OXFORDSHIRE CC,"CHILDRENS, YOUNG PEOPLE AND FAMILIES","	LOOKED AFTER NORTH",OTHER EXPENSES,09/11/2020,7375797846,399.99,WWW.JDWILLIAMS.CO.UK
OXFORDSHIRE CC,"CHILDRENS, YOUNG PEOPLE AND FAMILIES","	LOOKED AFTER NORTH",MATERIALS,09/11/2020,7375797850,3.50,WWW.JDWILLIAMS.CO.UK
OXFORDSHIRE CC,ENVIRONMENT AND ECONOMY,"	BRIDGES GENERAL",OTHER COMMUNICATIONS,09/11/2020,7375797942,237.69,SPOT EURO
OXFORDSHIRE CC,"CHILDRENS, YOUNG PEOPLE AND FAMILIES",WITNEY,CATERING PROVISIONS,09/11/2020,7375797978,49.32,ASDA STORES 4920
OXFORDSHIRE CC,"CHILDRENS, YOUNG PEOPLE AND FAMILIES",WITNEY,MATERIALS,09/11/2020,7375797988,39.50,ARGOS LTD
OXFORDSHIRE CC,SOCIAL AND COMMUNITY SERVICES,CSS WITNEY,DRUGS AND MEDICAL SUPPLIES,09/11/2020,7375796666,7.78,LLOYDS PHARMACY
OXFORDSHIRE CC,SOCIAL AND COMMUNITY SERVICES,CSS WITNEY,CATERING PROVISIONS,09/11/2020,7375796672,1.86,WM MORRISONS STORE
OXFORDSHIRE CC,"CHILDRENS, YOUNG PEOPLE AND FAMILIES",STH EARLY HELP-ABNDN,"SUPPLIES, STATIONERY AND MATERIALS",09/11/2020,7375796682,23.95,NSPCC SHOPIFY
OXFORDSHIRE CC,"CHILDRENS, YOUNG PEOPLE AND FAMILIES","	RIVERSIDE CENTRE",CATERING PROVISIONS,09/11/2020,7375798084,6.80,TESCO STORES 4377
OXFORDSHIRE CC,SOCIAL AND COMMUNITY SERVICES,SCHOOLS FM,MATERIALS,09/11/2020,7375797222,44.79,AMAZON.CO.UK M75OX0AT4
OXFORDSHIRE CC,SOCIAL AND COMMUNITY SERVICES,CSS WALLINGFORD,CLOTHING AND UNIFORMS,09/11/2020,7375797232,40.00,WWW.DICKIESSTORE.CO.UK
OXFORDSHIRE CC,SOCIAL AND COMMUNITY SERVICES,CSS WALLINGFORD,CATERING PROVISIONS,09/11/2020,7375797238,12.09,WAITROSE 675
OXFORDSHIRE CC,"CHILDRENS, YOUNG PEOPLE AND FAMILIES","	ASSESS TEAM CITY",MATERIALS,09/11/2020,7375798726,346.97,CURRYS ONLINE
OXFORDSHIRE CC,"CHILDRENS, YOUNG PEOPLE AND FAMILIES",THAME E&A HOME,MATERIALS,09/11/2020,7375798770,7.99,AMAZON PRIME M76YE3JU4
OXFORDSHIRE CC,"CHILDRENS, YOUNG PEOPLE AND FAMILIES","	LOOKED AFTER SOUTH",CATERING PROVISIONS,09/11/2020,7375798854,10.50,SAINSBURYS SACAT 0600
OXFORDSHIRE CC,"CHILDRENS, YOUNG PEOPLE AND FAMILIES",THAME E&A HOME,CATERING PROVISIONS,09/11/2020,7375797298,90.44,TESCO STORES 2038
OXFORDSHIRE CC,"CHILDRENS, YOUNG PEOPLE AND FAMILIES",THAME E&A HOME,CATERING PROVISIONS,09/11/2020,7375797310,.95,SAINSBURYS 2096
OXFORDSHIRE CC,"CHILDRENS, YOUNG PEOPLE AND FAMILIES",THAME E&A HOME,CATERING PROVISIONS,09/11/2020,7375797320,18.45,MILK AND MORE
OXFORDSHIRE CC,"CHILDRENS, YOUNG PEOPLE AND FAMILIES",NORTH FSS- BANBURY,TELEPHONE - EQUIPMENT,09/11/2020,7375797374,10.00,GIFFGAFF
OXFORDSHIRE CC,SOCIAL AND COMMUNITY SERVICES,BICESTER LIBRARY,MATERIALS,09/11/2020,7375798868,12.90,AMZNMKTPLACE AMAZON.CO
OXFORDSHIRE CC,SOCIAL AND COMMUNITY SERVICES,BICESTER LIBRARY,MATERIALS,09/11/2020,7375798872,20.48,AMZNMKTPLACE
OXFORDSHIRE CC,"CHILDRENS, YOUNG PEOPLE AND FAMILIES",CNTL EARLY HELP-BRTN,MATERIALS,09/11/2020,7375798884,6.00,POUNDLAND LTD 1586
OXFORDSHIRE CC,"CHILDRENS, YOUNG PEOPLE AND FAMILIES",CNTL EARLY HELP-BRTN,MATERIALS,09/11/2020,7375798892,1.90,CO OPERATIVE FOOD
OXFORDSHIRE CC,"CHILDRENS, YOUNG PEOPLE AND FAMILIES",FSP NON-STAFFING - CENTRAL,CATERING PROVISIONS,09/11/2020,7375798900,1.09,TESCO STORE 2990
OXFORDSHIRE CC,SOCIAL AND COMMUNITY SERVICES,RESIDENTIAL STRATEGY,CATERING PROVISIONS,09/11/2020,7375797394,1.59,ALDI 77 775
OXFORDSHIRE CC,SOCIAL AND COMMUNITY SERVICES,RESIDENTIAL STRATEGY,CATERING PROVISIONS,09/11/2020,7375797398,7.40,SAINSBURYS 0631
OXFORDSHIRE CC,SOCIAL AND COMMUNITY SERVICES,RESIDENTIAL STRATEGY,CATERING PROVISIONS,09/11/2020,7375797404,18.80,TESCO STORE 2994
OXFORDSHIRE CC,"CHILDRENS, YOUNG PEOPLE AND FAMILIES","	40 THE MOORS",CATERING PROVISIONS,09/11/2020,7375797460,123.11,SAINSBURYS (2243)
OXFORDSHIRE CC,"CHILDRENS, YOUNG PEOPLE AND FAMILIES","	40 THE MOORS",MATERIALS,09/11/2020,7375797468,72.00,JD SPORTS INTERNET
OXFORDSHIRE CC,"CHILDRENS, YOUNG PEOPLE AND FAMILIES","	40 THE MOORS",CLOTHING AND UNIFORMS,09/11/2020,7375797474,40.39,BOOHOO.COM
OXFORDSHIRE CC,CORPORATE CORE,,"SUPPLIES, STATIONERY AND MATERIALS",09/11/2020,7375799032,8.04,LYRECO UK LTD
OXFORDSHIRE CC,SOCIAL AND COMMUNITY SERVICES,CSS - OXFORD,MATERIALS,09/11/2020,7375797530,38.99,SMYTHSTOYS.COM
OXFORDSHIRE CC,"CHILDRENS, YOUNG PEOPLE AND FAMILIES","	LOOKED AFTER CITY 2",PAYMENTS TO TRANSPORT OPERATORS,09/11/2020,7375797600,68.40,GWR OXFORD TO
OXFORDSHIRE CC,ENVIRONMENT AND ECONOMY,HARD FM,HARDWARE AND CROCKERY,09/11/2020,7375796938,11.98,SCREWFIX DIRECT
OXFORDSHIRE CC,ENVIRONMENT AND ECONOMY,HARD FM,HARDWARE AND CROCKERY,09/11/2020,7375796942,9.78,SCREWFIX DIRECT
OXFORDSHIRE CC,ENVIRONMENT AND ECONOMY,HARD FM,HARDWARE AND CROCKERY,09/11/2020,7375796948,1.18,SCREWFIX DIRECT
OXFORDSHIRE CC,ENVIRONMENT AND ECONOMY,HARD FM,HARDWARE AND CROCKERY,09/11/2020,7375796954,25.00,SCREWFIX DIRECT
OXFORDSHIRE CC,ENVIRONMENT AND ECONOMY,COUNTY LIBRARY,GENERAL MAINTENANCE,09/11/2020,7375796962,77.94,WOLSELEY UK
OXFORDSHIRE CC,ENVIRONMENT AND ECONOMY,COUNTY LIBRARY,HARDWARE AND CROCKERY,09/11/2020,7375796968,3.42,SCREWFIX DIRECT
OXFORDSHIRE CC,ENVIRONMENT AND ECONOMY,"	COUNTY PRINT FINSHRS",MATERIALS,09/11/2020,7375796994,16.67,WWW.TOOLSTATION.COM
OXFORDSHIRE CC,SOCIAL AND COMMUNITY SERVICES,UASC 16&17,VEHICLE FUEL,09/11/2020,7375797012,26.00,SAINSBURYS OPT 0146
OXFORDSHIRE CC,"CHILDRENS, YOUNG PEOPLE AND FAMILIES","	40 THE MOORS",CATERING,09/11/2020,7375798464,39.93,DOMINO S PIZZA
OXFORDSHIRE CC,SOCIAL AND COMMUNITY SERVICES,UASC 16&17,CATERING PROVISIONS,09/11/2020,7375797018,15.00,TESCO STORE 2064
OXFORDSHIRE CC,"CHILDRENS, YOUNG PEOPLE AND FAMILIES",EYNSHAM,CATERING PROVISIONS,09/11/2020,7375797032,8.80,SAINSBURYS SACAT 0632
OXFORDSHIRE CC,"CHILDRENS, YOUNG PEOPLE AND FAMILIES",THAME E&A HOME,CATERING PROVISIONS,09/11/2020,7375797036,22.35,SAINSBURYS 2096
OXFORDSHIRE CC,"CHILDRENS, YOUNG PEOPLE AND FAMILIES",NTH FAM SUPRT-BCSTR,POSTAGE AND DELIVERY,09/11/2020,7375797044,1.52,ROYAL MAIL GROUP LTD
OXFORDSHIRE CC,"CHILDRENS, YOUNG PEOPLE AND FAMILIES","	FAM SUPP SOUTH",OTHER TRANSPORT ARRANGEMENTS,09/11/2020,7375797058,45.00,PAYPAL  U WANT TAXI
OXFORDSHIRE CC,"CHILDRENS, YOUNG PEOPLE AND FAMILIES",NORTH FSS- BANBURY,IT SOFTWARE,09/11/2020,7375797068,33.55,DRI LENOVO
OXFORDSHIRE CC,"CHILDRENS, YOUNG PEOPLE AND FAMILIES",DIDCOT MOVE-ON HOME,CATERING PROVISIONS,09/11/2020,7375797078,6.00,SAINSBURYS SACAT 2067
OXFORDSHIRE CC,"CHILDRENS, YOUNG PEOPLE AND FAMILIES",DIDCOT MOVE-ON HOME,CATERING PROVISIONS,09/11/2020,7375797086,9.35,SAINSBURYS SACAT 2067
OXFORDSHIRE CC,SOCIAL AND COMMUNITY SERVICES,DIDCOT MOVE-ON HOME,CATERING PROVISIONS,09/11/2020,7375797150,9.50,SAINSBURYS 2067
OXFORDSHIRE CC,SOCIAL AND COMMUNITY SERVICES,DIDCOT MOVE-ON HOME,CATERING PROVISIONS,09/11/2020,7375797158,24.65,SAINSBURYS SACAT 2067
OXFORDSHIRE CC,SOCIAL AND COMMUNITY SERVICES,ABINGDON LIBRARY,"SUPPLIES, STATIONERY AND MATERIALS",09/11/2020,7375798650,13.59,AMZNMKTPLACE AMAZON.CO
OXFORDSHIRE CC,"CHILDRENS, YOUNG PEOPLE AND FAMILIES",BULLINGDON PRISON,MATERIALS,09/11/2020,7375798656,224.00,WWW.THEWORKS.CO.UK
OXFORDSHIRE CC,"CHILDRENS, YOUNG PEOPLE AND FAMILIES",EYNSHAM,CATERING PROVISIONS,09/11/2020,7375798700,91.01,TESCO STORES 2008
OXFORDSHIRE CC,"CHILDRENS, YOUNG PEOPLE AND FAMILIES",SWINDON,POSTAGE AND DELIVERY,09/11/2020,7375797170,14.47,POST OFFICE COUNTER
OXFORDSHIRE CC,"CHILDRENS, YOUNG PEOPLE AND FAMILIES",NTH FAM SUPRT-BCSTR,MATERIALS,09/11/2020,7375797178,83.29,AMZNMKTPLACE AMAZON.CO
OXFORDSHIRE CC,"CHILDRENS, YOUNG PEOPLE AND FAMILIES",EYNSHAM,CATERING,09/11/2020,7375796752,15.91,CO-OPERATIVE FOOD
OXFORDSHIRE CC,"CHILDRENS, YOUNG PEOPLE AND FAMILIES",EYNSHAM,FURNITURE,09/11/2020,7375796754,15.48,AMZNMKTPLACE AMAZON.CO
OXFORDSHIRE CC,"CHILDRENS, YOUNG PEOPLE AND FAMILIES",EYNSHAM,CATERING,09/11/2020,7375796758,5.40,CO-OPERATIVE FOOD
OXFORDSHIRE CC,SOCIAL AND COMMUNITY SERVICES,CSS - DIDCOT,POSTAGE AND DELIVERY,09/11/2020,7375796766,11.10,POST OFFICE COUNTER
OXFORDSHIRE CC,ENVIRONMENT AND ECONOMY,"	NAT TRAILS GENERAL",MATERIALS,09/11/2020,7375796792,6.40,PAYPAL  DOWN EARTH
OXFORDSHIRE CC,"CHILDRENS, YOUNG PEOPLE AND FAMILIES","	LEAVING CARE NORTH",MATERIALS,09/11/2020,7375798204,9.99,PAYPAL  LIXINGYANJI EB
OXFORDSHIRE CC,"CHILDRENS, YOUNG PEOPLE AND FAMILIES","	LEAVING CARE NORTH",MATERIALS,09/11/2020,7375798210,83.94,ARGOS LTD
OXFORDSHIRE CC,SOCIAL AND COMMUNITY SERVICES,CSS WANTAGE,MATERIALS,09/11/2020,7375798234,126.28,AMZNMKTPLACE
OXFORDSHIRE CC,"CHILDRENS, YOUNG PEOPLE AND FAMILIES",THAME E&A HOME,VEHICLE FUEL,09/11/2020,7375796796,14.90,THAME BP SF CONNECT
OXFORDSHIRE CC,"CHILDRENS, YOUNG PEOPLE AND FAMILIES","	MALTFIELD HOUSE",CATERING PROVISIONS,09/11/2020,7375798324,3.50,SAINSBURYS 0632
OXFORDSHIRE CC,"CHILDRENS, YOUNG PEOPLE AND FAMILIES","	MALTFIELD HOUSE",CATERING PROVISIONS,09/11/2020,7375798332,6.75,SAINSBURYS 0632
OXFORDSHIRE CC,ENVIRONMENT AND ECONOMY,HARD FM,GENERAL MAINTENANCE,09/11/2020,7375796892,125.87,WOLSELEY UK
OXFORDSHIRE CC,ENVIRONMENT AND ECONOMY,HARD FM,HARDWARE AND CROCKERY,09/11/2020,7375796900,10.79,CITY PLUMBING
OXFORDSHIRE CC,ENVIRONMENT AND ECONOMY,HARD FM,HARDWARE AND CROCKERY,09/11/2020,7375796906,93.44,SCREWFIX DIR LTD
OXFORDSHIRE CC,ENVIRONMENT AND ECONOMY,HARD FM,HARDWARE AND CROCKERY,09/11/2020,7375796912,-23.99,SCREWFIX DIR LTD
OXFORDSHIRE CC,ENVIRONMENT AND ECONOMY,HARD FM,HARDWARE AND CROCKERY,09/11/2020,7375796922,2.92,CITY ELECTRICAL FA
OXFORDSHIRE CC,ENVIRONMENT AND ECONOMY,HARD FM,GENERAL MAINTENANCE,09/11/2020,7375796928,46.13,WOLSELEY UK
OXFORDSHIRE CC,ENVIRONMENT AND ECONOMY,HARD FM,MATERIALS,09/11/2020,7375796934,6.18,WWW.TOOLSTATION.COM
OXFORDSHIRE CC,"CHILDRENS, YOUNG PEOPLE AND FAMILIES","	40 THE MOORS",MATERIALS,09/11/2020,7375798390,299.99,DFR MAPLIN.CO.UK
OXFORDSHIRE CC,"CHILDRENS, YOUNG PEOPLE AND FAMILIES","	40 THE MOORS",CATERING,09/11/2020,7375798394,35.00,JUST EAT
OXFORDSHIRE CC,"CHILDRENS, YOUNG PEOPLE AND FAMILIES","	40 THE MOORS",CATERING,09/11/2020,7375798402,27.40,JUST EAT
OXFORDSHIRE CC,SOCIAL AND COMMUNITY SERVICES,SCHOOLS FM CATERING AREA 1,MATERIALS,06/11/2020,7371340392,19.98,AMZNMKTPLACE
OXFORDSHIRE CC,SOCIAL AND COMMUNITY SERVICES,SCHOOLS FM,CATERING,06/11/2020,7371340400,86.38,BOOKER LIMITED OXFORD
OXFORDSHIRE CC,SOCIAL AND COMMUNITY SERVICES,DIDCOT MOVE-ON HOME,CATERING PROVISIONS,06/11/2020,7371340418,18.30,LLOYDS AT SAINSBURYS
OXFORDSHIRE CC,SOCIAL AND COMMUNITY SERVICES,DIDCOT MOVE-ON HOME,CATERING PROVISIONS,06/11/2020,7371340426,2.00,SAINSBURYS SACAT 2067
OXFORDSHIRE CC,"CHILDRENS, YOUNG PEOPLE AND FAMILIES","	RIVERSIDE CENTRE",CATERING PROVISIONS,06/11/2020,7371340936,6.00,TESCO STORES 4377
OXFORDSHIRE CC,CORPORATE CORE,HISTORY SERVICE,MATERIALS,06/11/2020,7371340950,71.60,AMAZON.CO.UK M740U2NE4
OXFORDSHIRE CC,CORPORATE CORE,"	CORPORATE FINANCE",PROFESSIONAL SUBSCRIPTIONS,06/11/2020,7371340954,495.00,WWW.CIPFA.ORG.UK/PFMCO
OXFORDSHIRE CC,SOCIAL AND COMMUNITY SERVICES,CSS BICESTER,MATERIALS,06/11/2020,7371340454,-35.97,AMZNMKTPLACE AMAZON.CO
OXFORDSHIRE CC,"CHILDRENS, YOUNG PEOPLE AND FAMILIES",NTH FAM SUPRT-BCSTR,MATERIALS,06/11/2020,7371340462,8.45,AMAZON.CO.UK M74VK53B4
OXFORDSHIRE CC,SOCIAL AND COMMUNITY SERVICES,"	HISTORY SERVICE","BOOKS, DVDS AND CDS",06/11/2020,7371340476,124.28,HIGGS &CO HENLEY STAND
OXFORDSHIRE CC,SOCIAL AND COMMUNITY SERVICES,LOOKED AFTER SOUTH,CATERING PROVISIONS,06/11/2020,7371340524,5.99,MIDDLE BARTON STORES
OXFORDSHIRE CC,"CHILDRENS, YOUNG PEOPLE AND FAMILIES","	LOOKED AFTER CITY 1",REGISTRATION AND INSPECTION FEES,06/11/2020,7371340538,28.00,GEN REGISTER OFFICE
OXFORDSHIRE CC,"CHILDRENS, YOUNG PEOPLE AND FAMILIES","	LOOKED AFTER CITY 1",REGISTRATION AND INSPECTION FEES,06/11/2020,7371340546,25.00,GEN REGISTER OFFICE
OXFORDSHIRE CC,ENVIRONMENT AND ECONOMY,"	FLEET OPERATIONS",VEHICLES REPAIRS AND MAINTENANCE,06/11/2020,7371341020,514.33,NATIONWIDE WINDSCREEN
OXFORDSHIRE CC,ENVIRONMENT AND ECONOMY,"	COMMERCIAL MANAGEMEN",EDUCATIONAL AND VOCATIONAL TRAINING ,06/11/2020,7371340572,148.99,STICHTING CROW
OXFORDSHIRE CC,ENVIRONMENT AND ECONOMY,"	COMMERCIAL MANAGEMEN",EDUCATIONAL AND VOCATIONAL TRAINING ,06/11/2020,7371340582,287.84,STICHTING CROW
OXFORDSHIRE CC,"CHILDRENS, YOUNG PEOPLE AND FAMILIES","	HOME SUPPORT",MATERIALS,06/11/2020,7371340590,28.17,AMZNMKTPLACE
OXFORDSHIRE CC,"CHILDRENS, YOUNG PEOPLE AND FAMILIES","	LOOKED AFTER CITY 2",CLOTHING AND UNIFORMS,06/11/2020,7371340898,145.60,PRICE AND BUCKLAND
OXFORDSHIRE CC,"CHILDRENS, YOUNG PEOPLE AND FAMILIES",WITNEY,CATERING,06/11/2020,7371340906,4.90,SAINSBURYS 0632
OXFORDSHIRE CC,SOCIAL AND COMMUNITY SERVICES,COMMENTS&INFORMATION,POSTAGE AND DELIVERY,06/11/2020,7371340618,6.70,POST OFFICE COUNTER
OXFORDSHIRE CC,"CHILDRENS, YOUNG PEOPLE AND FAMILIES",EYNSHAM,CATERING,06/11/2020,7371340628,76.20,PEKING CHEF
OXFORDSHIRE CC,"CHILDRENS, YOUNG PEOPLE AND FAMILIES","	40 THE MOORS",CLOTHING AND UNIFORMS,06/11/2020,7371340654,32.00,PRIMARK 440
OXFORDSHIRE CC,"CHILDRENS, YOUNG PEOPLE AND FAMILIES","	40 THE MOORS",CATERING PROVISIONS,06/11/2020,7371340660,20.00,SAINSBURYS
OXFORDSHIRE CC,"CHILDRENS, YOUNG PEOPLE AND FAMILIES","	40 THE MOORS",MATERIALS,06/11/2020,7371340666,66.98,TALMAGES
OXFORDSHIRE CC,"CHILDRENS, YOUNG PEOPLE AND FAMILIES",SOUTH FSS STATUTORY - ABINGDON,MATERIALS,06/11/2020,7371340056,27.99,AMZNMKTPLACE
OXFORDSHIRE CC,"CHILDRENS, YOUNG PEOPLE AND FAMILIES",STH EARLY HELP-ABNDN,MATERIALS,06/11/2020,7371340062,29.50,ARGOS LTD
OXFORDSHIRE CC,"CHILDRENS, YOUNG PEOPLE AND FAMILIES",THAME E&A HOME,MATERIALS,06/11/2020,7371340074,3.30,AMAZON.CO.UK M77PL1NC4
OXFORDSHIRE CC,"CHILDRENS, YOUNG PEOPLE AND FAMILIES",WITNEY,CATERING,06/11/2020,7371340116,-2.62,DOMINO S PIZZA
OXFORDSHIRE CC,"CHILDRENS, YOUNG PEOPLE AND FAMILIES",UASC 16&17,"SUPPLIES, STATIONERY AND MATERIALS",06/11/2020,7371340154,13.64,AMAZON.CO.UK M781X8N64
OXFORDSHIRE CC,SOCIAL AND COMMUNITY SERVICES,LOOKED AFTER NORTH,MATERIALS,06/11/2020,7371340730,14.99,CURRYS ONLINE
OXFORDSHIRE CC,"CHILDRENS, YOUNG PEOPLE AND FAMILIES","	FPT CITY",MATERIALS,06/11/2020,7371340736,139.99,AMZNMKTPLACE
OXFORDSHIRE CC,SOCIAL AND COMMUNITY SERVICES,"	CENTRAL LIBRARY","SUPPLIES, STATIONERY AND MATERIALS",06/11/2020,7371341098,13.59,AMZNMKTPLACE
OXFORDSHIRE CC,SOCIAL AND COMMUNITY SERVICES,KIDLINGTON LIBRARY,"SUPPLIES, STATIONERY AND MATERIALS",06/11/2020,7371341100,13.59,AMZNMKTPLACE
OXFORDSHIRE CC,SOCIAL AND COMMUNITY SERVICES,"	CENTRAL LIBRARY","SUPPLIES, STATIONERY AND MATERIALS",06/11/2020,7371341104,13.59,AMZNMKTPLACE
OXFORDSHIRE CC,ENVIRONMENT AND ECONOMY,"	KNIGHTS COURT",GENERAL REFUSE COLLECTION AND DISPOSAL,06/11/2020,7371340754,14.48,AMZNMKTPLACE
OXFORDSHIRE CC,CORPORATE CORE,"MARKETING, COMMUNICATIONS & ENGAGEMENT","PUBLICITY, PROMOTIONS AND ADVERTISEMENT",06/11/2020,7371340768,500.00,FACEBK S42EDXN9Z2
OXFORDSHIRE CC,CORPORATE CORE,"MARKETING, COMMUNICATIONS & ENGAGEMENT",IT SOFTWARE,06/11/2020,7371340772,19.92,ZAPIER.COM/CHARGE
OXFORDSHIRE CC,CORPORATE CORE,"MARKETING, COMMUNICATIONS & ENGAGEMENT","PUBLICITY, PROMOTIONS AND ADVERTISEMENT",06/11/2020,7371340776,81.27,FACEBK B8WCJXA9Z2
OXFORDSHIRE CC,"CHILDRENS, YOUNG PEOPLE AND FAMILIES","	OCCG GRANT",CATERING PROVISIONS,06/11/2020,7371340804,17.20,SAINSBURYS (2305)
OXFORDSHIRE CC,"CHILDRENS, YOUNG PEOPLE AND FAMILIES",UASC 16&17,DRUGS AND MEDICAL SUPPLIES,06/11/2020,7371341138,6.00,TESCO STORE 2990
OXFORDSHIRE CC,"CHILDRENS, YOUNG PEOPLE AND FAMILIES","	LEAVING CARE SOUTH",CLOTHING AND UNIFORMS,06/11/2020,7371341140,18.74,BOOHOO.COM
OXFORDSHIRE CC,"CHILDRENS, YOUNG PEOPLE AND FAMILIES","	LOOKED AFTER SOUTH",CATERING,06/11/2020,7371341144,5.79,MCDONALDS
OXFORDSHIRE CC,"CHILDRENS, YOUNG PEOPLE AND FAMILIES",CNTL EARLY HELP-BRTN,MATERIALS,06/11/2020,7371341146,6.00,POUNDLAND LTD 1586
OXFORDSHIRE CC,ENVIRONMENT AND ECONOMY,HARD FM,HARDWARE AND CROCKERY,06/11/2020,7371340254,57.06,CITY ELECTRICAL FA
OXFORDSHIRE CC,ENVIRONMENT AND ECONOMY,HARD FM,MATERIALS,06/11/2020,7371340264,8.04,AMZNMKTPLACE AMAZON.CO
OXFORDSHIRE CC,ENVIRONMENT AND ECONOMY,HARD FM,GENERAL MAINTENANCE,06/11/2020,7371340270,382.46,WOLSELEY UK
OXFORDSHIRE CC,"CHILDRENS, YOUNG PEOPLE AND FAMILIES","	LEAVING CARE CITY 1",VEHICLES REPAIRS AND MAINTENANCE,06/11/2020,7371341174,-30.00,CELL PHONE REPAIRS LTD
OXFORDSHIRE CC,CORPORATE CORE,,"SUPPLIES, STATIONERY AND MATERIALS",06/11/2020,7371341178,219.29,LYRECO UK LTD
OXFORDSHIRE CC,ENVIRONMENT AND ECONOMY,COUNTY LIBRARY,GENERAL MAINTENANCE,06/11/2020,7371340274,76.84,WOLSELEY UK
OXFORDSHIRE CC,ENVIRONMENT AND ECONOMY,COUNTY LIBRARY,GENERAL MAINTENANCE,06/11/2020,7371340278,64.16,WOLSELEY UK
OXFORDSHIRE CC,ENVIRONMENT AND ECONOMY,COUNTY LIBRARY,GENERAL MAINTENANCE,06/11/2020,7371340286,77.04,WOLSELEY UK
OXFORDSHIRE CC,SOCIAL AND COMMUNITY SERVICES,CSS - OXFORD,CATERING PROVISIONS,06/11/2020,7371340306,98.99,TESCO STORE 2994
OXFORDSHIRE CC,"CHILDRENS, YOUNG PEOPLE AND FAMILIES","	40 THE MOORS",PAYMENTS TO TRANSPORT OPERATORS,06/11/2020,7371340312,154.50,GWR OXFORD SST
OXFORDSHIRE CC,CORPORATE CORE,HUNTERCOMBE PRISON,"BOOKS, DVDS AND CDS",06/11/2020,7371340882,19.98,AMZNMKTPLACE AMAZON.CO
OXFORDSHIRE CC,SOCIAL AND COMMUNITY SERVICES,UASC 16&17,VEHICLE FUEL,06/11/2020,7371340318,15.05,SAINSBURYS PFS0459
OXFORDSHIRE CC,SOCIAL AND COMMUNITY SERVICES,DIDCOT MOVE-ON HOME,CATERING PROVISIONS,06/11/2020,7371340320,13.75,SAINSBURYS SACAT 2067
OXFORDSHIRE CC,CORPORATE CORE,REGISTRAR,MATERIALS,06/11/2020,7371340334,99.89,AMZNMKTPLACE
OXFORDSHIRE CC,"CHILDRENS, YOUNG PEOPLE AND FAMILIES","	LEAVING CARE CITY 2",MATERIALS,06/11/2020,7371340894,159.00,ARGOS LTD
OXFORDSHIRE CC,"CHILDRENS, YOUNG PEOPLE AND FAMILIES",EYNSHAM,OTHER EXPENSES,05/11/2020,7368409516,36.99,AMZNMKTPLACE AMAZON.CO
OXFORDSHIRE CC,"CHILDRENS, YOUNG PEOPLE AND FAMILIES",EYNSHAM,FURNITURE,05/11/2020,7368409524,15.98,AMZNMKTPLACE AMAZON.CO
OXFORDSHIRE CC,"CHILDRENS, YOUNG PEOPLE AND FAMILIES",EYNSHAM,OTHER EXPENSES,05/11/2020,7368409526,18.59,AMAZON.CO.UK M71LW6ZO4
OXFORDSHIRE CC,"CHILDRENS, YOUNG PEOPLE AND FAMILIES",EYNSHAM,CATERING PROVISIONS,05/11/2020,7368410350,.55,TESCO STORES 4377
OXFORDSHIRE CC,CORPORATE CORE,HISTORY SERVICE,FURNITURE,05/11/2020,7368410184,31.97,AMAZON.CO.UK M78Y61ZG4
OXFORDSHIRE CC,"CHILDRENS, YOUNG PEOPLE AND FAMILIES",CSS WALLINGFORD,CATERING PROVISIONS,05/11/2020,7368409458,25.15,WAITROSE 675
OXFORDSHIRE CC,"CHILDRENS, YOUNG PEOPLE AND FAMILIES",THAME E&A HOME,MATERIALS,05/11/2020,7368409462,3.48,AMZNMKTPLACE AMAZON.CO
OXFORDSHIRE CC,"CHILDRENS, YOUNG PEOPLE AND FAMILIES","	40 THE MOORS",CATERING PROVISIONS,05/11/2020,7368410338,7.94,TESCO STORE 2788
OXFORDSHIRE CC,SOCIAL AND COMMUNITY SERVICES,CSS - BANBURY,POSTAGE AND DELIVERY,05/11/2020,7368410346,31.20,TESCO STORE 2064
OXFORDSHIRE CC,"CHILDRENS, YOUNG PEOPLE AND FAMILIES","	LOOKED AFTER SOUTH",OTHER TRANSPORT ARRANGEMENTS,05/11/2020,7368409490,67.50,OXFORD BUS COMPANY
OXFORDSHIRE CC,"CHILDRENS, YOUNG PEOPLE AND FAMILIES","	OCCG GRANT",CATERING,05/11/2020,7368409926,3.02,COSTA COFFEE 43039930
OXFORDSHIRE CC,"CHILDRENS, YOUNG PEOPLE AND FAMILIES",DIDCOT MOVE-ON HOME,CATERING PROVISIONS,05/11/2020,7368410394,13.60,SAINSBURYS SACAT 2067
OXFORDSHIRE CC,"CHILDRENS, YOUNG PEOPLE AND FAMILIES",WITNEY,CATERING,05/11/2020,7368409532,67.64,DOMINO S PIZZA
OXFORDSHIRE CC,"CHILDRENS, YOUNG PEOPLE AND FAMILIES","	OSCB",MATERIALS,05/11/2020,7368409534,11.99,AMAZON.CO.UK M74P66ZI4
OXFORDSHIRE CC,SOCIAL AND COMMUNITY SERVICES,CSS BICESTER,CATERING PROVISIONS,05/11/2020,7368409544,1.00,WILKO RETAIL LIMITED
OXFORDSHIRE CC,SOCIAL AND COMMUNITY SERVICES,CSS BICESTER,MATERIALS,05/11/2020,7368409548,11.50,THEWORKS.CO.UK
OXFORDSHIRE CC,"CHILDRENS, YOUNG PEOPLE AND FAMILIES",THAME E&A HOME,CATERING PROVISIONS,05/11/2020,7368409554,4.90,SAINSBURYS 2096
OXFORDSHIRE CC,"CHILDRENS, YOUNG PEOPLE AND FAMILIES",WITNEY,MATERIALS,05/11/2020,7368409560,49.95,HOME BARGAINS
OXFORDSHIRE CC,"CHILDRENS, YOUNG PEOPLE AND FAMILIES",WITNEY,MATERIALS,05/11/2020,7368409566,144.83,HOME BARGAINS
OXFORDSHIRE CC,"CHILDRENS, YOUNG PEOPLE AND FAMILIES","	LOOKED AFTER CITY 1","SUPPLIES, STATIONERY AND MATERIALS",05/11/2020,7368409574,16.44,AMAZON.CO.UK M721X3ZU4
OXFORDSHIRE CC,"CHILDRENS, YOUNG PEOPLE AND FAMILIES","	LEAVING CARE NORTH",REGISTRATION AND INSPECTION FEES,05/11/2020,7368410430,35.00,GEN REGISTER OFFICE
OXFORDSHIRE CC,"CHILDRENS, YOUNG PEOPLE AND FAMILIES",FSP NON-STAFFING - CENTRAL,CATERING PROVISIONS,05/11/2020,7368410434,.80,TESCO STORE 2990
OXFORDSHIRE CC,"CHILDRENS, YOUNG PEOPLE AND FAMILIES","	LOOKED AFTER CITY 2",OTHER TRANSPORT ARRANGEMENTS,05/11/2020,7368410440,7.00,GWR OXFORD SST
OXFORDSHIRE CC,SOCIAL AND COMMUNITY SERVICES,SOUTH RAPID RESPONSE,PURCHASE OF IT EQUIPMENT,05/11/2020,7368410444,22.07,AMZNMKTPLACE
OXFORDSHIRE CC,ENVIRONMENT AND ECONOMY,HARD FM,EQUIPMENT,05/11/2020,7368409578,41.86,WILTS ELECTRICAL
OXFORDSHIRE CC,ENVIRONMENT AND ECONOMY,HARD FM,HARDWARE AND CROCKERY,05/11/2020,7368409580,114.90,THE FENCING CENTRE
OXFORDSHIRE CC,ENVIRONMENT AND ECONOMY,HARD FM,MATERIALS,05/11/2020,7368409584,-6.70,AMZ LINO'S 328
OXFORDSHIRE CC,"CHILDRENS, YOUNG PEOPLE AND FAMILIES",THAME E&A HOME,CATERING PROVISIONS,05/11/2020,7368409588,17.25,SAINSBURYS SACAT 2096
OXFORDSHIRE CC,ENVIRONMENT AND ECONOMY,COUNTY LIBRARY,VEHICLES REPAIRS AND MAINTENANCE,05/11/2020,7368409592,13.77,HALFORDS AUTOCENTRE
OXFORDSHIRE CC,ENVIRONMENT AND ECONOMY,COUNTY LIBRARY,VEHICLES REPAIRS AND MAINTENANCE,05/11/2020,7368409596,999.00,HALFORDS AUTOCENTRE
OXFORDSHIRE CC,SOCIAL AND COMMUNITY SERVICES,CSS - OXFORD,MATERIALS,05/11/2020,7368409612,17.68,MASONS
OXFORDSHIRE CC,SOCIAL AND COMMUNITY SERVICES,CSS - OXFORD,PAYMENTS TO VOLUNTARY BODIES,05/11/2020,7368409616,6.00,ACACIA UK
OXFORDSHIRE CC,"CHILDRENS, YOUNG PEOPLE AND FAMILIES","	LOOKED AFTER CITY 2",MATERIALS,05/11/2020,7368410474,29.08,AMAZON.CO.UK M753M9L34
OXFORDSHIRE CC,"CHILDRENS, YOUNG PEOPLE AND FAMILIES",FPT SOUTH/VALE,CATERING PROVISIONS,05/11/2020,7368410480,72.00,MARKS&SPENCER PLC
OXFORDSHIRE CC,"CHILDRENS, YOUNG PEOPLE AND FAMILIES","	DISABILITIES TEAM-C",CHILDCARE MANAGEMENT FEES,05/11/2020,7368409622,147.00,KINGSWOOD DAYCARE NURS
OXFORDSHIRE CC,SOCIAL AND COMMUNITY SERVICES,CSS BICESTER,CATERING PROVISIONS,05/11/2020,7368409626,26.47,ALDI 49 775
OXFORDSHIRE CC,CORPORATE CORE,"	MEMBERS SERVICES",MATERIALS,05/11/2020,7368410014,19.99,AMAZON.CO.UK M73QF3LI4
OXFORDSHIRE CC,CORPORATE CORE,"	MEMBERS SERVICES",MATERIALS,05/11/2020,7368410020,55.67,AMAZON.CO.UK M73U66ZO4
OXFORDSHIRE CC,"CHILDRENS, YOUNG PEOPLE AND FAMILIES",NTH EARLY HELP-BNRBY,CLOTHING AND UNIFORMS,05/11/2020,7368409664,73.75,CROSS EMBROIDERY LTD
OXFORDSHIRE CC,"CHILDRENS, YOUNG PEOPLE AND FAMILIES",DIDCOT MOVE-ON HOME,CATERING PROVISIONS,05/11/2020,7368409668,14.85,SAINSBURYS SACAT 2067
OXFORDSHIRE CC,"CHILDRENS, YOUNG PEOPLE AND FAMILIES",DIDCOT MOVE-ON HOME,CATERING PROVISIONS,05/11/2020,7368409672,20.50,SAINSBURYS SACAT 2067
OXFORDSHIRE CC,"CHILDRENS, YOUNG PEOPLE AND FAMILIES",SOUTH FSS STATUTORY - ABINGDON,MATERIALS,05/11/2020,7368409688,11.95,AMZNMKTPLACE AMAZON.CO
OXFORDSHIRE CC,"CHILDRENS, YOUNG PEOPLE AND FAMILIES",SOUTH FSS STATUTORY - ABINGDON,FURNITURE,05/11/2020,7368409690,54.95,AMAZON.CO.UK M75JL4L44
OXFORDSHIRE CC,"CHILDRENS, YOUNG PEOPLE AND FAMILIES",CSC COVID-19,TELEPHONE - EQUIPMENT,05/11/2020,7368409700,10.00,VESTA   VODAFONE TOPUP
OXFORDSHIRE CC,"CHILDRENS, YOUNG PEOPLE AND FAMILIES","	LEAVING CARE CITY 1",VEHICLES REPAIRS AND MAINTENANCE,05/11/2020,7368410544,30.00,CELL PHONE REPAIRS LTD
OXFORDSHIRE CC,CORPORATE CORE,,"SUPPLIES, STATIONERY AND MATERIALS",05/11/2020,7368410550,19.37,LYRECO UK LTD
OXFORDSHIRE CC,"CHILDRENS, YOUNG PEOPLE AND FAMILIES",ATV ADOPTION OXFORD,STATIONERY,05/11/2020,7368409706,108.60,AMZNMKTPLACE
OXFORDSHIRE CC,"CHILDRENS, YOUNG PEOPLE AND FAMILIES","	LEAVING CARE NORTH",CATERING PROVISIONS,05/11/2020,7368409716,10.30,TESCO STORES 4480
OXFORDSHIRE CC,"CHILDRENS, YOUNG PEOPLE AND FAMILIES","	LEAVING CARE NORTH",CATERING PROVISIONS,05/11/2020,7368409722,10.50,TESCO STORES 4480
OXFORDSHIRE CC,"CHILDRENS, YOUNG PEOPLE AND FAMILIES","	LOOKED AFTER CITY 1",REGISTRATION AND INSPECTION FEES,05/11/2020,7368409752,50.00,GEN REGISTER OFFICE
OXFORDSHIRE CC,"CHILDRENS, YOUNG PEOPLE AND FAMILIES",KINGFISHER,CATERING,05/11/2020,7368409756,7.57,MCDONALDS
OXFORDSHIRE CC,"CHILDRENS, YOUNG PEOPLE AND FAMILIES","	RIVERSIDE CENTRE",CATERING PROVISIONS,05/11/2020,7368409760,6.09,SAINSBURYS SACAT 0600
OXFORDSHIRE CC,"CHILDRENS, YOUNG PEOPLE AND FAMILIES","	RIVERSIDE CENTRE",MATERIALS,05/11/2020,7368409762,12.60,GO OUTDOORS
OXFORDSHIRE CC,SOCIAL AND COMMUNITY SERVICES,COMMENTS&INFORMATION,POSTAGE AND DELIVERY,05/11/2020,7368409770,7.50,POST OFFICE COUNTER
OXFORDSHIRE CC,"CHILDRENS, YOUNG PEOPLE AND FAMILIES","	40 THE MOORS",CLOTHING AND UNIFORMS,05/11/2020,7368409792,19.30,PRIMARK 440
OXFORDSHIRE CC,"CHILDRENS, YOUNG PEOPLE AND FAMILIES","	40 THE MOORS",CLOTHING AND UNIFORMS,05/11/2020,7368409796,57.49,BOOHOO.COM
OXFORDSHIRE CC,"CHILDRENS, YOUNG PEOPLE AND FAMILIES","	LEAVING CARE SOUTH",PAYMENTS TO TRANSPORT OPERATORS,05/11/2020,7368409812,110.30,AVANTI WEST COAST
OXFORDSHIRE CC,"CHILDRENS, YOUNG PEOPLE AND FAMILIES",CSS WALLINGFORD,MATERIALS,05/11/2020,7368409814,12.50,HALFORDS 0567
OXFORDSHIRE CC,"CHILDRENS, YOUNG PEOPLE AND FAMILIES",CSS WALLINGFORD,MATERIALS,05/11/2020,7368409818,22.00,HALFORDS 0567
OXFORDSHIRE CC,"CHILDRENS, YOUNG PEOPLE AND FAMILIES","	LEAVING CARE NORTH",CATERING PROVISIONS,05/11/2020,7368409826,2.75,TESCO STORES 2008
OXFORDSHIRE CC,ENVIRONMENT AND ECONOMY,"	KNIGHTS COURT",CATERING PROVISIONS,05/11/2020,7368409836,1.49,COWLEY CONVENIENCE STO
OXFORDSHIRE CC,"CHILDRENS, YOUNG PEOPLE AND FAMILIES",NORTH FSS- WITNEY,GAS,05/11/2020,7368409870,93.71,ALLSTAR BUSINESS SOLUT
OXFORDSHIRE CC,CORPORATE CORE,"MARKETING, COMMUNICATIONS & ENGAGEMENT","PUBLICITY, PROMOTIONS AND ADVERTISEMENT",05/11/2020,7368409882,500.00,GOOGLE  ADS4896546035
OXFORDSHIRE CC,SOCIAL AND COMMUNITY SERVICES,CSS WANTAGE,CATERING PROVISIONS,04/11/2020,7365524086,61.97,AMZNMKTPLACE
OXFORDSHIRE CC,SOCIAL AND COMMUNITY SERVICES,CSS WANTAGE,MATERIALS,04/11/2020,7365524090,21.78,AMZNMKTPLACE
OXFORDSHIRE CC,SOCIAL AND COMMUNITY SERVICES,CSS WANTAGE,CATERING PROVISIONS,04/11/2020,7365524092,40.50,SAINSBURYS SACAT 2244
OXFORDSHIRE CC,SOCIAL AND COMMUNITY SERVICES,CSS WANTAGE,ENTERTAINMENT EXPENSES,04/11/2020,7365524096,48.00,COTSWOLD WILDLIFE PARK
OXFORDSHIRE CC,SOCIAL AND COMMUNITY SERVICES,CSS WANTAGE,CATERING PROVISIONS,04/11/2020,7365524100,31.18,AMAZON.CO.UK M760424I4
OXFORDSHIRE CC,"CHILDRENS, YOUNG PEOPLE AND FAMILIES",WITNEY,CATERING PROVISIONS,04/11/2020,7365523726,9.35,SAINSBURYS SACAT 0632
OXFORDSHIRE CC,SOCIAL AND COMMUNITY SERVICES,CSS - ABINGDON,MATERIALS,04/11/2020,7365523728,15.05,CARD FACTORY
OXFORDSHIRE CC,SOCIAL AND COMMUNITY SERVICES,CSS BICESTER,MATERIALS,04/11/2020,7365523732,13.31,PETS CORNER
OXFORDSHIRE CC,"CHILDRENS, YOUNG PEOPLE AND FAMILIES",UASC 16&17,NON-STAFF SUBSISTENCE AND EXPENSES,04/11/2020,7365523734,20.00,THREE STORE
OXFORDSHIRE CC,ENVIRONMENT AND ECONOMY,HARD FM,MATERIALS,04/11/2020,7365523736,12.99,ROBERT DYAS HOLDNG LTD
OXFORDSHIRE CC,ENVIRONMENT AND ECONOMY,"	FLEET OPERATIONS",POSTAGE AND DELIVERY,04/11/2020,7365524124,5.16,POST OFFICE COUNTER
OXFORDSHIRE CC,ENVIRONMENT AND ECONOMY,HARD FM,HARDWARE AND CROCKERY,04/11/2020,7365523740,9.00,THE FENCING CENTRE
OXFORDSHIRE CC,ENVIRONMENT AND ECONOMY,HARD FM,HARDWARE AND CROCKERY,04/11/2020,7365523742,19.13,SUREHEAT SPARES
OXFORDSHIRE CC,ENVIRONMENT AND ECONOMY,HARD FM,GENERAL MAINTENANCE,04/11/2020,7365523744,29.76,WOLSELEY UK
OXFORDSHIRE CC,ENVIRONMENT AND ECONOMY,HARD FM,GENERAL MAINTENANCE,04/11/2020,7365523746,987.92,WOLSELEY UK
OXFORDSHIRE CC,ENVIRONMENT AND ECONOMY,HARD FM,GENERAL MAINTENANCE,04/11/2020,7365523748,164.12,WOLSELEY UK
OXFORDSHIRE CC,ENVIRONMENT AND ECONOMY,HARD FM,HARDWARE AND CROCKERY,04/11/2020,7365523750,23.88,WICKES BICESTER
OXFORDSHIRE CC,ENVIRONMENT AND ECONOMY,HARD FM,GENERAL MAINTENANCE,04/11/2020,7365523752,-164.06,WOLSELEY UK
OXFORDSHIRE CC,ENVIRONMENT AND ECONOMY,COUNTY LIBRARY,HARDWARE AND CROCKERY,04/11/2020,7365523754,358.62,SUREHEAT SPARES
OXFORDSHIRE CC,,,,04/11/2020,7365523942,"-295,461.02",
OXFORDSHIRE CC,"CHILDRENS, YOUNG PEOPLE AND FAMILIES",CNTL EARLY HELP-RHIL,MATERIALS,04/11/2020,7365523776,259.99,ARGOS LTD
OXFORDSHIRE CC,"CHILDRENS, YOUNG PEOPLE AND FAMILIES",EYNSHAM,TELEPHONE - EQUIPMENT,04/11/2020,7365524172,10.00,GIFFGAFF
OXFORDSHIRE CC,SOCIAL AND COMMUNITY SERVICES,SCHOOLS FM CATERING AREA 1,MATERIALS,04/11/2020,7365523792,109.96,AMZNMKTPLACE
OXFORDSHIRE CC,SOCIAL AND COMMUNITY SERVICES,SCHOOLS FM CATERING AREA 1,MATERIALS,04/11/2020,7365523794,13.49,AMZNMKTPLACE
OXFORDSHIRE CC,"CHILDRENS, YOUNG PEOPLE AND FAMILIES",DIDCOT MOVE-ON HOME,CATERING PROVISIONS,04/11/2020,7365523796,18.75,SAINSBURYS SACAT 2067
OXFORDSHIRE CC,"CHILDRENS, YOUNG PEOPLE AND FAMILIES",DIDCOT MOVE-ON HOME,CATERING PROVISIONS,04/11/2020,7365523798,5.90,SAINSBURYS SACAT 2067
OXFORDSHIRE CC,"CHILDRENS, YOUNG PEOPLE AND FAMILIES",DIDCOT MOVE-ON HOME,CATERING PROVISIONS,04/11/2020,7365523800,2.20,CO-OP FOOD
OXFORDSHIRE CC,SOCIAL AND COMMUNITY SERVICES,SCHOOLS FM,CATERING PROVISIONS,04/11/2020,7365523802,44.74,SAINSBURYS 0745
OXFORDSHIRE CC,"CHILDRENS, YOUNG PEOPLE AND FAMILIES","	LOOKED AFTER CITY 2",OTHER TRANSPORT ARRANGEMENTS,04/11/2020,7365524204,15.00,IZ  ROYAL CARS OXF
OXFORDSHIRE CC,SOCIAL AND COMMUNITY SERVICES,DIDCOT MOVE-ON HOME,MATERIALS,04/11/2020,7365523806,17.98,AMZNMKTPLACE
OXFORDSHIRE CC,"CHILDRENS, YOUNG PEOPLE AND FAMILIES","	LOOKED AFTER NORTH",PAYMENT TO GOVERNMENT DEPARTMENTS,04/11/2020,7365523808,38.00,GEN REGISTER OFFICE
OXFORDSHIRE CC,"CHILDRENS, YOUNG PEOPLE AND FAMILIES",SOUTH FSS STATUTORY - ABINGDON,FURNITURE,04/11/2020,7365523814,14.24,AMAZON.CO.UK M709P14G4
OXFORDSHIRE CC,"CHILDRENS, YOUNG PEOPLE AND FAMILIES",SOUTH FSS STATUTORY - ABINGDON,FURNITURE,04/11/2020,7365523816,14.24,AMAZON.CO.UK M719024T4
OXFORDSHIRE CC,"CHILDRENS, YOUNG PEOPLE AND FAMILIES",SOUTH FSS STATUTORY - ABINGDON,FURNITURE,04/11/2020,7365523818,14.24,AMAZON.CO.UK M779284R4
OXFORDSHIRE CC,CORPORATE CORE,"MARKETING, COMMUNICATIONS & ENGAGEMENT",MATERIALS,04/11/2020,7365523822,119.00,APPLE.COM/UK
OXFORDSHIRE CC,SOCIAL AND COMMUNITY SERVICES,SCHOOLS FM,CATERING,04/11/2020,7365523824,25.16,BOOKER LIMITED OXFORD
OXFORDSHIRE CC,"CHILDRENS, YOUNG PEOPLE AND FAMILIES","	LEAVING CARE SOUTH",MATERIALS,04/11/2020,7365524210,63.94,ARGOS LTD
OXFORDSHIRE CC,SOCIAL AND COMMUNITY SERVICES,CSS WANTAGE,CATERING PROVISIONS,04/11/2020,7365524084,8.29,AMZNMKTPLACE
OXFORDSHIRE CC,"CHILDRENS, YOUNG PEOPLE AND FAMILIES",EYNSHAM,MATERIALS,04/11/2020,7365524232,19.90,AMZNMKTPLACE AMAZON.CO
OXFORDSHIRE CC,CORPORATE CORE,,"SUPPLIES, STATIONERY AND MATERIALS",04/11/2020,7365524234,12.91,LYRECO UK LTD
OXFORDSHIRE CC,ENTERPRISEVC,,CAR LEASING - PRIVATE RENTALS,04/11/2020,7365524236,89.63,ENTERPRISE RENT-A-CAR
OXFORDSHIRE CC,ENTERPRISEVC,,CAR LEASING - PRIVATE RENTALS,04/11/2020,7365524238,144.18,ENTERPRISE RENT-A-CAR
OXFORDSHIRE CC,ENTERPRISEVC,,CAR LEASING - PRIVATE RENTALS,04/11/2020,7365524240,100.76,ENTERPRISE RENT-A-CAR
OXFORDSHIRE CC,ENTERPRISEVC,,CAR LEASING - PRIVATE RENTALS,04/11/2020,7365524242,78.11,ENTERPRISE RENT-A-CAR
OXFORDSHIRE CC,ENTERPRISEVC,,CAR LEASING - PRIVATE RENTALS,04/11/2020,7365524244,43.18,ENTERPRISE RENT-A-CAR
OXFORDSHIRE CC,ENVIRONMENT AND ECONOMY,"	LIBRARY PROJECTS",MATERIALS,04/11/2020,7365523854,39.99,AMZNMKTPLACE
OXFORDSHIRE CC,"CHILDRENS, YOUNG PEOPLE AND FAMILIES",MANAGEMENT,TRAINING RELATED EXPENDITURE,04/11/2020,7365523856,149.00,CVAA UK LTD
OXFORDSHIRE CC,"CHILDRENS, YOUNG PEOPLE AND FAMILIES",MANAGEMENT,TRAINING RELATED EXPENDITURE,04/11/2020,7365523858,149.00,CVAA UK LTD
OXFORDSHIRE CC,CORPORATE CORE,INCOME TEAM,PAYMENT TO GOVERNMENT DEPARTMENTS,04/11/2020,7365523860,1.50,WWW.GOV.UK
OXFORDSHIRE CC,SOCIAL AND COMMUNITY SERVICES,COMMENTS&INFORMATION,POSTAGE AND DELIVERY,04/11/2020,7365523862,6.70,POST OFFICE COUNTER
OXFORDSHIRE CC,"CHILDRENS, YOUNG PEOPLE AND FAMILIES",FSP NON-STAFFING - CENTRAL,HIRE OF ACCOMMODATION AND FACILITIES,04/11/2020,7365523864,90.00,WELCOME BREAK
OXFORDSHIRE CC,"CHILDRENS, YOUNG PEOPLE AND FAMILIES","	40 THE MOORS",CLOTHING AND UNIFORMS,04/11/2020,7365523870,98.99,SUPERDRYPOS
OXFORDSHIRE CC,"CHILDRENS, YOUNG PEOPLE AND FAMILIES","	40 THE MOORS",CATERING,04/11/2020,7365523872,8.95,THE MAC FACTORY
OXFORDSHIRE CC,ENTERPRISEVC,,CAR LEASING - PRIVATE RENTALS,04/11/2020,7365524246,83.52,ENTERPRISE RENT-A-CAR
OXFORDSHIRE CC,ENTERPRISEVC,,CAR LEASING - PRIVATE RENTALS,04/11/2020,7365524248,61.78,ENTERPRISE RENT-A-CAR
OXFORDSHIRE CC,ENTERPRISEVC,,CAR LEASING - PRIVATE RENTALS,04/11/2020,7365524250,34.78,ENTERPRISE RENT-A-CAR
OXFORDSHIRE CC,ENTERPRISEVC,,CAR LEASING - PRIVATE RENTALS,04/11/2020,7365524252,58.15,ENTERPRISE RENT-A-CAR
OXFORDSHIRE CC,ENTERPRISEVC,,CAR LEASING - PRIVATE RENTALS,04/11/2020,7365524254,24.82,ENTERPRISE RENT-A-CAR
OXFORDSHIRE CC,ENTERPRISEVC,,CAR LEASING - PRIVATE RENTALS,04/11/2020,7365524256,62.08,ENTERPRISE RENT-A-CAR
OXFORDSHIRE CC,,,CATERING,04/11/2020,7365524258,202.81,BRAKE BROS LTD
OXFORDSHIRE CC,"CHILDRENS, YOUNG PEOPLE AND FAMILIES","	40 THE MOORS",CATERING PROVISIONS,04/11/2020,7365523874,22.73,SAINSBURYS SACAT 0730
OXFORDSHIRE CC,"CHILDRENS, YOUNG PEOPLE AND FAMILIES","	40 THE MOORS",CATERING PROVISIONS,04/11/2020,7365523878,5.30,CO-OPERATIVE FOOD
OXFORDSHIRE CC,"CHILDRENS, YOUNG PEOPLE AND FAMILIES","	40 THE MOORS",CLOTHING AND UNIFORMS,04/11/2020,7365523880,50.00,WWW.ASOS.COM
OXFORDSHIRE CC,"CHILDRENS, YOUNG PEOPLE AND FAMILIES",UASC POST 18,FURNITURE,04/11/2020,7365523884,-228.00,BMF LTD.
OXFORDSHIRE CC,"CHILDRENS, YOUNG PEOPLE AND FAMILIES","	LEAVING CARE SOUTH",CATERING PROVISIONS,04/11/2020,7365523886,1.40,TESCO STORES 4377
OXFORDSHIRE CC,CORPORATE CORE,"MARKETING, COMMUNICATIONS & ENGAGEMENT",HIRED AND CONTRACTED SERVICES,04/11/2020,7365523914,32.97,CANVA  02863-6695655
OXFORDSHIRE CC,"CHILDRENS, YOUNG PEOPLE AND FAMILIES","	OCCG GRANT",BIRTHDAY ALLOWANCE,04/11/2020,7365523930,13.49,HALLMARK OUTLET NEWBUR
OXFORDSHIRE CC,"CHILDRENS, YOUNG PEOPLE AND FAMILIES","	OCCG GRANT",MATERIALS,04/11/2020,7365523932,1.29,CARD FACTORY
OXFORDSHIRE CC,"CHILDRENS, YOUNG PEOPLE AND FAMILIES","	PARENT PARTNERSHIP",TRAINING RELATED EXPENDITURE,04/11/2020,7365524162,76.86,WWW.THORTFUL.COM
OXFORDSHIRE CC,SOCIAL AND COMMUNITY SERVICES,CSS BICESTER,CATERING PROVISIONS,04/11/2020,7365523764,52.63,ALDI 49 775
OXFORDSHIRE CC,"CHILDRENS, YOUNG PEOPLE AND FAMILIES",THAME E&A HOME,MATERIALS,04/11/2020,7365523766,25.98,GAME RETAIL
OXFORDSHIRE CC,"CHILDRENS, YOUNG PEOPLE AND FAMILIES",THAME E&A HOME,MATERIALS,04/11/2020,7365523768,3.95,SUMUP   SPACE STORE LI
OXFORDSHIRE CC,"CHILDRENS, YOUNG PEOPLE AND FAMILIES",THAME E&A HOME,MATERIALS,04/11/2020,7365523770,13.47,SUMUP   SPACE STORE LI
OXFORDSHIRE CC,"CHILDRENS, YOUNG PEOPLE AND FAMILIES",THAME E&A HOME,CATERING PROVISIONS,04/11/2020,7365523772,1.79,TESCO STORES 2008
OXFORDSHIRE CC,"CHILDRENS, YOUNG PEOPLE AND FAMILIES",THAME E&A HOME,OTHER TRANSPORT ARRANGEMENTS,04/11/2020,7365523774,4.30,PARKING FEE
OXFORDSHIRE CC,ENVIRONMENT AND ECONOMY,"	BRIDGES GENERAL",HARDWARE AND CROCKERY,04/11/2020,7365523984,24.99,SCREWFIX DIRECT
OXFORDSHIRE CC,CORPORATE CORE,"	LEGAL SERVICES",SUBSCRIPTIONS,04/11/2020,7365524022,"2,900.00",WWW.ICO.ORG.UK
OXFORDSHIRE CC,"CHILDRENS, YOUNG PEOPLE AND FAMILIES",EYNSHAM,CATERING PROVISIONS,04/11/2020,7365523826,8.00,CO-OPERATIVE FOOD
OXFORDSHIRE CC,SOCIAL AND COMMUNITY SERVICES,CSS WALLINGFORD,CATERING PROVISIONS,04/11/2020,7365523828,3.15,WAITROSE 675
OXFORDSHIRE CC,SOCIAL AND COMMUNITY SERVICES,CSS - OXFORD,MATERIALS,04/11/2020,7365523844,-55.49,AMZ AMAZON.CO.UK
OXFORDSHIRE CC,"CHILDRENS, YOUNG PEOPLE AND FAMILIES","	RIVERSIDE CENTRE",VEHICLE FUEL,04/11/2020,7365523846,75.98,SAINSBURYS OPT 0180
OXFORDSHIRE CC,"CHILDRENS, YOUNG PEOPLE AND FAMILIES","	RIVERSIDE CENTRE",CATERING PROVISIONS,04/11/2020,7365523848,.55,TESCO STORES 4377
OXFORDSHIRE CC,"CHILDRENS, YOUNG PEOPLE AND FAMILIES",NTH EARLY HELP-BCSTR,MATERIALS,03/11/2020,7362846392,6.49,AMZNMKTPLACE
OXFORDSHIRE CC,"CHILDRENS, YOUNG PEOPLE AND FAMILIES","	LOOKED AFTER SOUTH",POSTAGE AND DELIVERY,03/11/2020,7362846840,6.70,POST OFFICE COUNTER
OXFORDSHIRE CC,"CHILDRENS, YOUNG PEOPLE AND FAMILIES",NTH FAM SUPRT-BCSTR,PAYMENTS TO TRANSPORT OPERATORS,03/11/2020,7362846008,20.30,WWW.GWR.COM
OXFORDSHIRE CC,"CHILDRENS, YOUNG PEOPLE AND FAMILIES",NTH FAM SUPRT-BCSTR,PAYMENTS TO TRANSPORT OPERATORS,03/11/2020,7362846012,9.80,WWW.GWR.COM
OXFORDSHIRE CC,CORPORATE CORE,"	LEGAL SERVICES",LEGAL COSTS,03/11/2020,7362846454,13.00,LONDON BOROUGH OF
OXFORDSHIRE CC,"CHILDRENS, YOUNG PEOPLE AND FAMILIES",THAME E&A HOME,CATERING PROVISIONS,03/11/2020,7362846462,1.40,TESCO STORES 6880
OXFORDSHIRE CC,"CHILDRENS, YOUNG PEOPLE AND FAMILIES",THAME E&A HOME,OTHER TRANSPORT ARRANGEMENTS,03/11/2020,7362846466,2.50,HEADINGTON CAR PARK
OXFORDSHIRE CC,ENVIRONMENT AND ECONOMY,ELEC NPR ST LTG,MATERIALS,03/11/2020,7362845744,66.30,AMZNMKTPLACE AMAZON.CO
OXFORDSHIRE CC,"CHILDRENS, YOUNG PEOPLE AND FAMILIES","	LEAVING CARE NORTH",IT SERVICES,03/11/2020,7362846504,5.00,WWW.SECURE-PAYMENT-SER
OXFORDSHIRE CC,"CHILDRENS, YOUNG PEOPLE AND FAMILIES",WITNEY,CATERING PROVISIONS,03/11/2020,7362845830,30.30,POUNDSTRETCHER 700
OXFORDSHIRE CC,"CHILDRENS, YOUNG PEOPLE AND FAMILIES",WITNEY,CATERING PROVISIONS,03/11/2020,7362845834,4.35,SAINSBURYS SACAT 0632
OXFORDSHIRE CC,SOCIAL AND COMMUNITY SERVICES,CSS - ABINGDON,FURNITURE,03/11/2020,7362845844,480.00,DUNELM LTD
OXFORDSHIRE CC,ENVIRONMENT AND ECONOMY,"	NAT TRAILS GENERAL",MATERIALS,03/11/2020,7362845864,105.00,WWW.LSENGINEERS.CO.UK
OXFORDSHIRE CC,"CHILDRENS, YOUNG PEOPLE AND FAMILIES","	RESIDENTIAL STRATEGY",CATERING,03/11/2020,7362845868,3.00,PERIOS
OXFORDSHIRE CC,"CHILDRENS, YOUNG PEOPLE AND FAMILIES","	RESIDENTIAL STRATEGY",CATERING,03/11/2020,7362845872,30.00,PERIOS
OXFORDSHIRE CC,ENVIRONMENT AND ECONOMY,HARD FM,HARDWARE AND CROCKERY,03/11/2020,7362845884,115.97,SCREWFIX DIRECT
OXFORDSHIRE CC,ENVIRONMENT AND ECONOMY,HARD FM,HARDWARE AND CROCKERY,03/11/2020,7362845892,53.81,JOHN NICHOLLS KIDLINGT
OXFORDSHIRE CC,"CHILDRENS, YOUNG PEOPLE AND FAMILIES",EYNSHAM,CATERING PROVISIONS,03/11/2020,7362846746,13.00,MAYFIELDEGGS
OXFORDSHIRE CC,"CHILDRENS, YOUNG PEOPLE AND FAMILIES",EYNSHAM,CATERING PROVISIONS,03/11/2020,7362846750,51.64,TESCO STORES 2008
OXFORDSHIRE CC,SOCIAL AND COMMUNITY SERVICES,"	SHARED LIVES",MATERIALS,03/11/2020,7362846760,79.80,AMZNMKTPLACE
OXFORDSHIRE CC,ENVIRONMENT AND ECONOMY,HARD FM,HARDWARE AND CROCKERY,03/11/2020,7362845896,77.76,JEWSONS
OXFORDSHIRE CC,ENVIRONMENT AND ECONOMY,HARD FM,HARDWARE AND CROCKERY,03/11/2020,7362845898,718.82,JEWSONS
OXFORDSHIRE CC,ENVIRONMENT AND ECONOMY,HARD FM,GENERAL MAINTENANCE,03/11/2020,7362845902,76.92,WOLSELEY UK
OXFORDSHIRE CC,SOCIAL AND COMMUNITY SERVICES,RESIDENTIAL STRATEGY,CATERING PROVISIONS,03/11/2020,7362845912,1.30,CO-OPERATIVE FOOD
OXFORDSHIRE CC,SOCIAL AND COMMUNITY SERVICES,"	SHARED LIVES",MATERIALS,03/11/2020,7362846766,-75.91,AMZ LIFE HEALTHCARE
OXFORDSHIRE CC,CORPORATE CORE,MOTOR FLEET,MOTOR IF FEES,03/11/2020,7362846788,42.00,SIDNEY H HOOPER & COMP
OXFORDSHIRE CC,CORPORATE CORE,MOTOR FLEET,MOTOR IF OWN DAMAGE,03/11/2020,7362846794,54.00,WWW.AUTOWINDSCREEN
OXFORDSHIRE CC,"CHILDRENS, YOUNG PEOPLE AND FAMILIES",EYNSHAM,STATIONERY,03/11/2020,7362846808,78.96,SNAPFISH UK
OXFORDSHIRE CC,"CHILDRENS, YOUNG PEOPLE AND FAMILIES","	40 THE MOORS",TELEPHONE - EQUIPMENT,03/11/2020,7362845940,30.00,EE TOPUP  VESTA
OXFORDSHIRE CC,"CHILDRENS, YOUNG PEOPLE AND FAMILIES",MEMBERS ALLOWANCES,CATERING PROVISIONS,03/11/2020,7362845950,11.43,TESCO STORES 4480
OXFORDSHIRE CC,"CHILDRENS, YOUNG PEOPLE AND FAMILIES","	LEAVING CARE NORTH",MATERIALS,03/11/2020,7362846826,25.39,AMAZON.CO.UK M78257O14
OXFORDSHIRE CC,"CHILDRENS, YOUNG PEOPLE AND FAMILIES","	LEAVING CARE NORTH",MATERIALS,03/11/2020,7362846828,25.39,AMAZON.CO.UK M765Z5FX4
OXFORDSHIRE CC,"CHILDRENS, YOUNG PEOPLE AND FAMILIES","	LEAVING CARE NORTH",MATERIALS,03/11/2020,7362846832,25.39,AMAZON.CO.UK M769L1FZ4
OXFORDSHIRE CC,"CHILDRENS, YOUNG PEOPLE AND FAMILIES","	LEAVING CARE NORTH",MATERIALS,03/11/2020,7362846834,25.39,AMAZON.CO.UK M779L3FP4
OXFORDSHIRE CC,CORPORATE CORE,"MARKETING, COMMUNICATIONS & ENGAGEMENT","PUBLICITY, PROMOTIONS AND ADVERTISEMENT",03/11/2020,7362846300,500.00,FACEBK K8CH8X2AZ2
OXFORDSHIRE CC,"CHILDRENS, YOUNG PEOPLE AND FAMILIES","	OCCG GRANT",MATERIALS,03/11/2020,7362846318,10.99,THE RANGE
OXFORDSHIRE CC,"CHILDRENS, YOUNG PEOPLE AND FAMILIES",NTH FAM SUPRT-BCSTR,PAYMENTS TO TRANSPORT OPERATORS,03/11/2020,7362846016,7.70,WWW.GWR.COM
OXFORDSHIRE CC,SOCIAL AND COMMUNITY SERVICES,LEADERSHIP TEAM,OTHER EXPENSES,03/11/2020,7362846018,120.00,WWW.ADASS.ORG.UK
OXFORDSHIRE CC,SOCIAL AND COMMUNITY SERVICES,DIDCOT MOVE-ON HOME,MATERIALS,03/11/2020,7362846028,11.99,AMZNMKTPLACE
OXFORDSHIRE CC,SOCIAL AND COMMUNITY SERVICES,DIDCOT MOVE-ON HOME,MATERIALS,03/11/2020,7362846032,24.98,AMZNMKTPLACE
OXFORDSHIRE CC,SOCIAL AND COMMUNITY SERVICES,DIDCOT MOVE-ON HOME,CATERING PROVISIONS,03/11/2020,7362846034,7.71,SAINSBURYS SACAT 2067
OXFORDSHIRE CC,SOCIAL AND COMMUNITY SERVICES,DIDCOT MOVE-ON HOME,MATERIALS,03/11/2020,7362846040,17.98,AMZNMKTPLACE
OXFORDSHIRE CC,"CHILDRENS, YOUNG PEOPLE AND FAMILIES","	LOOKED AFTER CITY 1",PAYMENT TO GOVERNMENT DEPARTMENTS,03/11/2020,7362846052,-11.00,GEN REGISTER OFFICE
OXFORDSHIRE CC,SOCIAL AND COMMUNITY SERVICES,CSS BICESTER,CATERING PROVISIONS,03/11/2020,7362846078,87.90,SAINSBURYS (2243)
OXFORDSHIRE CC,SOCIAL AND COMMUNITY SERVICES,CSS - OXFORD,CATERING,03/11/2020,7362846084,136.18,BOOKER LIMITED OXFORD
OXFORDSHIRE CC,SOCIAL AND COMMUNITY SERVICES,CSS - BANBURY,CATERING PROVISIONS,03/11/2020,7362846106,76.37,SAINSBURYS TO YOU 0642
OXFORDSHIRE CC,"CHILDRENS, YOUNG PEOPLE AND FAMILIES",THAME E&A HOME,CATERING PROVISIONS,03/11/2020,7362846124,160.89,TESCO STORES 2038
OXFORDSHIRE CC,CORPORATE CORE,INCOME TEAM,PAYMENT TO GOVERNMENT DEPARTMENTS,03/11/2020,7362846194,1.50,WWW.GOV.UK
OXFORDSHIRE CC,"CHILDRENS, YOUNG PEOPLE AND FAMILIES",FSP NON-STAFFING - CENTRAL,CLOTHING AND UNIFORMS,03/11/2020,7362846198,59.99,FOOTASYLUM PLC
OXFORDSHIRE CC,"CHILDRENS, YOUNG PEOPLE AND FAMILIES",FSP NON-STAFFING - CENTRAL,CLOTHING AND UNIFORMS,03/11/2020,7362846202,35.99,PRETTYLITTLETHING.COM
OXFORDSHIRE CC,"CHILDRENS, YOUNG PEOPLE AND FAMILIES","	40 THE MOORS",CATERING PROVISIONS,03/11/2020,7362846210,115.64,TESCO STORES 4480
OXFORDSHIRE CC,"CHILDRENS, YOUNG PEOPLE AND FAMILIES","	40 THE MOORS",CATERING PROVISIONS,03/11/2020,7362846212,228.09,SAINSBURYS (2243)
OXFORDSHIRE CC,"CHILDRENS, YOUNG PEOPLE AND FAMILIES",THAME E&A HOME,MATERIALS,02/11/2020,7359219592,24.98,AMZNMKTPLACE AMAZON.CO
OXFORDSHIRE CC,"CHILDRENS, YOUNG PEOPLE AND FAMILIES",THAME E&A HOME,MATERIALS,02/11/2020,7359219598,47.94,AMZNMKTPLACE
OXFORDSHIRE CC,"CHILDRENS, YOUNG PEOPLE AND FAMILIES",WITNEY,CATERING PROVISIONS,02/11/2020,7359219626,16.50,WM MORRISONS STORE
OXFORDSHIRE CC,"CHILDRENS, YOUNG PEOPLE AND FAMILIES",WITNEY,CATERING PROVISIONS,02/11/2020,7359219632,17.00,WM MORRISONS STORE
OXFORDSHIRE CC,"CHILDRENS, YOUNG PEOPLE AND FAMILIES",WITNEY,CATERING PROVISIONS,02/11/2020,7359219634,3.00,WM MORRISONS STORE
OXFORDSHIRE CC,"CHILDRENS, YOUNG PEOPLE AND FAMILIES",WITNEY,CATERING PROVISIONS,02/11/2020,7359219640,80.74,WM MORRISONS STORE
OXFORDSHIRE CC,"CHILDRENS, YOUNG PEOPLE AND FAMILIES","	LEAVING CARE NORTH",CATERING,02/11/2020,7359220598,4.40,MCDONALDS
OXFORDSHIRE CC,"CHILDRENS, YOUNG PEOPLE AND FAMILIES","	LEAVING CARE NORTH",MATERIALS,02/11/2020,7359220606,92.93,AMZNMKTPLACE
OXFORDSHIRE CC,"CHILDRENS, YOUNG PEOPLE AND FAMILIES","	LEAVING CARE NORTH",MATERIALS,02/11/2020,7359220610,-19.95,AMZ THE RUG HOUSE LTD.
OXFORDSHIRE CC,"CHILDRENS, YOUNG PEOPLE AND FAMILIES",SOUTH FSS STATUTORY - ABINGDON,OTHER TRANSPORT ARRANGEMENTS,02/11/2020,7359219644,45.00,READING-BUSES.CO.
OXFORDSHIRE CC,"CHILDRENS, YOUNG PEOPLE AND FAMILIES","	RESIDENTIAL STRATEGY",HIRED AND CONTRACTED SERVICES,02/11/2020,7359219656,13.00,JAKS BARBER SHOP
OXFORDSHIRE CC,"CHILDRENS, YOUNG PEOPLE AND FAMILIES",THAME E&A HOME,VEHICLE FUEL,02/11/2020,7359219664,1.25,THAME BP SF CONNECT
OXFORDSHIRE CC,"CHILDRENS, YOUNG PEOPLE AND FAMILIES",THAME E&A HOME,CATERING PROVISIONS,02/11/2020,7359219670,7.90,WAITROSE 206
OXFORDSHIRE CC,"CHILDRENS, YOUNG PEOPLE AND FAMILIES",THAME E&A HOME,MATERIALS,02/11/2020,7359219672,2.00,PP TRINITYOXFO
OXFORDSHIRE CC,"CHILDRENS, YOUNG PEOPLE AND FAMILIES",THAME E&A HOME,HIRE OF ACCOMMODATION AND FACILITIES,02/11/2020,7359219674,16.00,PP UPPER FARM HENTON
OXFORDSHIRE CC,"CHILDRENS, YOUNG PEOPLE AND FAMILIES","	LOOKED AFTER CITY 1",RESIDENTIAL ACTIVITIES,02/11/2020,7359219682,38.99,PUREGYM LIMITED
OXFORDSHIRE CC,ENVIRONMENT AND ECONOMY,HARD FM,HARDWARE AND CROCKERY,02/11/2020,7359219690,6.99,SCREWFIX DIRECT
OXFORDSHIRE CC,SOCIAL AND COMMUNITY SERVICES,CSS WANTAGE,MATERIALS,02/11/2020,7359220664,10.00,ARGOS LTD
OXFORDSHIRE CC,ENVIRONMENT AND ECONOMY,"	ROW MAINT",MATERIALS,02/11/2020,7359220722,90.73,AMZNMKTPLACE
OXFORDSHIRE CC,"CHILDRENS, YOUNG PEOPLE AND FAMILIES",THAME E&A HOME,MATERIALS,02/11/2020,7359219762,14.25,POUNDLAND LTD
OXFORDSHIRE CC,ENVIRONMENT AND ECONOMY,HARD FM,VEHICLES REPAIRS AND MAINTENANCE,02/11/2020,7359219768,54.85,DAVE CRAWFORD MOTOR SE
OXFORDSHIRE CC,ENVIRONMENT AND ECONOMY,HARD FM,HARDWARE AND CROCKERY,02/11/2020,7359219772,26.86,SCREWFIX DIRECT
OXFORDSHIRE CC,ENVIRONMENT AND ECONOMY,COUNTY LIBRARY,VEHICLES REPAIRS AND MAINTENANCE,02/11/2020,7359219776,39.85,HALFORDS AUTOCENTRE
OXFORDSHIRE CC,ENVIRONMENT AND ECONOMY,"	TVERC",IT SOFTWARE,02/11/2020,7359219782,7.99,COGNITO-PRO
OXFORDSHIRE CC,"CHILDRENS, YOUNG PEOPLE AND FAMILIES","	40 THE MOORS",ENTERTAINMENT EXPENSES,02/11/2020,7359219786,179.00,SCOTKART
OXFORDSHIRE CC,"CHILDRENS, YOUNG PEOPLE AND FAMILIES","	40 THE MOORS",CATERING,02/11/2020,7359219790,32.24,MCDONALDS
OXFORDSHIRE CC,"CHILDRENS, YOUNG PEOPLE AND FAMILIES","	40 THE MOORS",SUBSCRIPTIONS,02/11/2020,7359219792,11.00,TEAMSPORT
OXFORDSHIRE CC,"CHILDRENS, YOUNG PEOPLE AND FAMILIES",DIDCOT MOVE-ON HOME,CATERING PROVISIONS,02/11/2020,7359220826,25.24,SAINSBURYS SACAT 2067
OXFORDSHIRE CC,"CHILDRENS, YOUNG PEOPLE AND FAMILIES",DIDCOT MOVE-ON HOME,CATERING PROVISIONS,02/11/2020,7359220830,17.75,SAINSBURYS SACAT 2067
OXFORDSHIRE CC,"CHILDRENS, YOUNG PEOPLE AND FAMILIES",DIDCOT MOVE-ON HOME,CATERING PROVISIONS,02/11/2020,7359220838,14.74,SAINSBURYS 2067
OXFORDSHIRE CC,"CHILDRENS, YOUNG PEOPLE AND FAMILIES",NORTH FSS- BANBURY,MATERIALS,02/11/2020,7359219800,117.50,ARGOS LTD
OXFORDSHIRE CC,"CHILDRENS, YOUNG PEOPLE AND FAMILIES",ASSESSMENT TEAM NORT,FURNITURE,02/11/2020,7359219808,249.99,PAYPAL  COMFYLIVING ON
OXFORDSHIRE CC,"CHILDRENS, YOUNG PEOPLE AND FAMILIES",NORTH FSS- BANBURY,FURNITURE,02/11/2020,7359219814,269.97,PAYPAL  COMFYLIVING ON
OXFORDSHIRE CC,"CHILDRENS, YOUNG PEOPLE AND FAMILIES",NORTH FSS- BANBURY,FURNITURE,02/11/2020,7359219818,-269.97,PAYPAL  COMFYLIVING ON
OXFORDSHIRE CC,"CHILDRENS, YOUNG PEOPLE AND FAMILIES",NORTH FSS- BANBURY,MATERIALS,02/11/2020,7359219820,-117.50,ARGOS LTD
OXFORDSHIRE CC,"CHILDRENS, YOUNG PEOPLE AND FAMILIES","	FAM SUPP CITY 1",PAYMENT TO GOVERNMENT DEPARTMENTS,02/11/2020,7359219832,40.00,OXFORD DISTRICT SERVIC
OXFORDSHIRE CC,SOCIAL AND COMMUNITY SERVICES,DIDCOT MOVE-ON HOME,STATIONERY,02/11/2020,7359219848,6.00,PHOTO ME INTERNATIONAL
OXFORDSHIRE CC,"CHILDRENS, YOUNG PEOPLE AND FAMILIES",WITNEY,MATERIALS,02/11/2020,7359220896,6.10,POUNDLAND LTD
OXFORDSHIRE CC,"CHILDRENS, YOUNG PEOPLE AND FAMILIES",EYNSHAM,CATERING PROVISIONS,02/11/2020,7359220906,178.37,TESCO STORES 2008
OXFORDSHIRE CC,"CHILDRENS, YOUNG PEOPLE AND FAMILIES",EYNSHAM,CATERING PROVISIONS,02/11/2020,7359220912,-.48,TESCO STORES 2008
OXFORDSHIRE CC,"CHILDRENS, YOUNG PEOPLE AND FAMILIES",HOUSE PROJECT,OTHER TRANSPORT ARRANGEMENTS,02/11/2020,7359220918,4.80,OXFORD BUS COMPANY
OXFORDSHIRE CC,"CHILDRENS, YOUNG PEOPLE AND FAMILIES",THAME E&A HOME,"BOOKS, DVDS AND CDS",02/11/2020,7359220926,14.95,BTBOXOFFICE
OXFORDSHIRE CC,"CHILDRENS, YOUNG PEOPLE AND FAMILIES",THAME E&A HOME,MATERIALS,02/11/2020,7359220932,43.94,ARGOS LTD
OXFORDSHIRE CC,SOCIAL AND COMMUNITY SERVICES,"	MUSEUMS COLLECTIONS",CATERING PROVISIONS,02/11/2020,7359219854,1.56,MILK AND MORE
OXFORDSHIRE CC,"CHILDRENS, YOUNG PEOPLE AND FAMILIES","	LOOKED AFTER CITY 1",PAYMENTS TO TRANSPORT OPERATORS,02/11/2020,7359219860,7.90,THETRAINLINE.COM
OXFORDSHIRE CC,CORPORATE CORE,LIBRARY COLLECTIONS,"BOOKS, DVDS AND CDS",02/11/2020,7359219864,396.91,BOLINDA PUBLISHING
OXFORDSHIRE CC,CORPORATE CORE,LIBRARY COLLECTIONS,"BOOKS, DVDS AND CDS",02/11/2020,7359219870,97.25,BOLINDA PUBLISHING
OXFORDSHIRE CC,"CHILDRENS, YOUNG PEOPLE AND FAMILIES",0-5 STDS & PROGRESS,SUBSCRIPTIONS,02/11/2020,7359220430,127.98,WWW.FORUMBUSINESSTRAIN
OXFORDSHIRE CC,"CHILDRENS, YOUNG PEOPLE AND FAMILIES",0-5 STDS & PROGRESS,"SUPPLIES, STATIONERY AND MATERIALS",02/11/2020,7359220434,37.18,AMZNMKTPLACE
OXFORDSHIRE CC,"CHILDRENS, YOUNG PEOPLE AND FAMILIES",NORTH FSS- WITNEY,MATERIALS,02/11/2020,7359219568,12.86,AMAZON.CO.UK MC3OL6I64
OXFORDSHIRE CC,"CHILDRENS, YOUNG PEOPLE AND FAMILIES",STH EARLY HELP-ABNDN,MATERIALS,02/11/2020,7359219586,-29.50,ARGOS LTD
OXFORDSHIRE CC,"CHILDRENS, YOUNG PEOPLE AND FAMILIES",NTH EARLY HELP-BCSTR,MATERIALS,02/11/2020,7359220492,7.99,AMAZON PRIME MC7UZ4YO4
OXFORDSHIRE CC,"CHILDRENS, YOUNG PEOPLE AND FAMILIES","	FOSTER CARE RECRUIT","PUBLICITY, PROMOTIONS AND ADVERTISEMENT",02/11/2020,7359220518,50.00,FACEBK  GWQDSXA7L2
OXFORDSHIRE CC,CORPORATE CORE,HISTORY SERVICE,FURNITURE,02/11/2020,7359220556,10.18,AMAZON.CO.UK MC3QQ4WP4
OXFORDSHIRE CC,SOCIAL AND COMMUNITY SERVICES,CSS BICESTER,MATERIALS,02/11/2020,7359219944,20.99,AMZNMKTPLACE
OXFORDSHIRE CC,"CHILDRENS, YOUNG PEOPLE AND FAMILIES","	LEAVING CARE NORTH",PAYMENTS TO TRANSPORT OPERATORS,02/11/2020,7359219952,13.40,BANBURY STATION T/O
OXFORDSHIRE CC,CORPORATE CORE,INCOME TEAM,PAYMENT TO GOVERNMENT DEPARTMENTS,02/11/2020,7359221034,1.50,WWW.GOV.UK
OXFORDSHIRE CC,CORPORATE CORE,INCOME TEAM,PAYMENT TO GOVERNMENT DEPARTMENTS,02/11/2020,7359221036,4.12,POST OFFICE COUNTER
OXFORDSHIRE CC,CORPORATE CORE,,"SUPPLIES, STATIONERY AND MATERIALS",02/11/2020,7359221054,117.84,LYRECO UK LTD
OXFORDSHIRE CC,CORPORATE CORE,,"SUPPLIES, STATIONERY AND MATERIALS",02/11/2020,7359221058,87.42,LYRECO UK LTD
OXFORDSHIRE CC,SOCIAL AND COMMUNITY SERVICES,"	HISTORY SERVICE","BOOKS, DVDS AND CDS",02/11/2020,7359219978,70.00,LIVERPOOL UNIVERSITY P
OXFORDSHIRE CC,SOCIAL AND COMMUNITY SERVICES,LOOKED AFTER SOUTH,CATERING,02/11/2020,7359220004,6.58,MCDONALDS
OXFORDSHIRE CC,SOCIAL AND COMMUNITY SERVICES,LOOKED AFTER SOUTH,VEHICLE FUEL,02/11/2020,7359220010,15.26,SHELL M4 MEMBURY EAST
OXFORDSHIRE CC,SOCIAL AND COMMUNITY SERVICES,LOOKED AFTER SOUTH,VEHICLE FUEL,02/11/2020,7359220014,44.00,TESCO PFS 3932
OXFORDSHIRE CC,"CHILDRENS, YOUNG PEOPLE AND FAMILIES",THAME E&A HOME,CATERING PROVISIONS,02/11/2020,7359220020,44.68,TESCO STORES 2038
OXFORDSHIRE CC,SOCIAL AND COMMUNITY SERVICES,CSS - OXFORD,CATERING PROVISIONS,02/11/2020,7359220036,9.80,ALDI STORES 775-142
OXFORDSHIRE CC,"CHILDRENS, YOUNG PEOPLE AND FAMILIES","	MUSIC UNALLOCABLE",MATERIALS,02/11/2020,7359220044,276.00,M & M SKIP HIRE
